Department Family,Entity,Date,Expense Type,Expense Area,Supplier,Transaction Number,Amount,Vat No,Vat Registration Num
Department of Health,CT Revenue Funds,06-Mar-19,Additions - Assets Under Construction Generator Replacement,Balance Sheet Suspense,GMI POWER SOLUTIONS LTD,101253,22391.54,,
Department of Health,CT Revenue Funds,06-Mar-19,Additions - Assets Under Construction Generator Replacement,Balance Sheet Suspense,GMI POWER SOLUTIONS LTD,101253,111957.7,,
Department of Health,CT Revenue Funds,06-Mar-19,Additions - Assets Under Construction Generator Replacement,Balance Sheet Suspense,GMI POWER SOLUTIONS LTD,101254,5000,,
Department of Health,CT Revenue Funds,06-Mar-19,Additions - Assets Under Construction Generator Replacement,Balance Sheet Suspense,GMI POWER SOLUTIONS LTD,101254,1478,,
Department of Health,CT Revenue Funds,06-Mar-19,Additions - Assets Under Construction Generator Replacement,Balance Sheet Suspense,GMI POWER SOLUTIONS LTD,101254,1000,,
Department of Health,CT Revenue Funds,06-Mar-19,Additions - Assets Under Construction Generator Replacement,Balance Sheet Suspense,GMI POWER SOLUTIONS LTD,101254,-295.6,,
Department of Health,CT Revenue Funds,06-Mar-19,Additions - Assets Under Construction Generator Replacement,Balance Sheet Suspense,GMI POWER SOLUTIONS LTD,101254,-1000,,
Department of Health,CT Revenue Funds,06-Mar-19,Additions - Assets Under Construction Generator Replacement,Balance Sheet Suspense,GMI POWER SOLUTIONS LTD,101254,295.6,,
Department of Health,CT Revenue Funds,06-Mar-19,Additions - Assets Under Construction Generator Replacement,Balance Sheet Suspense,GMI POWER SOLUTIONS LTD,101269,3782.2,,
Department of Health,CT Revenue Funds,06-Mar-19,Additions - Assets Under Construction Generator Replacement,Balance Sheet Suspense,GMI POWER SOLUTIONS LTD,101269,18911,,
Department of Health,CT Revenue Funds,06-Mar-19,Additions - Assets Under Construction Generator Replacement,Balance Sheet Suspense,GMI POWER SOLUTIONS LTD,101275,6115,,
Department of Health,CT Revenue Funds,06-Mar-19,Additions - Assets Under Construction Generator Replacement,Balance Sheet Suspense,GMI POWER SOLUTIONS LTD,101275,1223,,
Department of Health,CT Revenue Funds,06-Mar-19,Additions - Assets Under Construction Generator Replacement,Balance Sheet Suspense,GMI POWER SOLUTIONS LTD,101275,0.1,,
Department of Health,CT Revenue Funds,06-Mar-19,Additions - Assets Under Construction Generator Replacement,Balance Sheet Suspense,GMI POWER SOLUTIONS LTD,101275,0.02,,
Department of Health,CT Revenue Funds,06-Mar-19,Additions - Assets Under Construction Generator Replacement,Balance Sheet Suspense,PETER HANDFORTH ASSOCIATES LTD,PHA/INV/SHRCOM01,344,,
Department of Health,CT Revenue Funds,06-Mar-19,Additions - Assets Under Construction Generator Replacement,Balance Sheet Suspense,PETER HANDFORTH ASSOCIATES LTD,PHA/INV/SHRCOM01,1720,,
Department of Health,CT Revenue Funds,06-Mar-19,Additions - Assets Under Construction Generator Replacement,Balance Sheet Suspense,PETER HANDFORTH ASSOCIATES LTD,PHA/INV/SHRCOM01,-344,,
Department of Health,CT Revenue Funds,06-Mar-19,Additions - Assets Under Construction IT Server And Firewall Replacement,Balance Sheet Suspense,SOFTCAT,INV02148034,1037.4,491 8485 03,
Department of Health,CT Revenue Funds,06-Mar-19,Additions - Assets Under Construction IT Server And Firewall Replacement,Balance Sheet Suspense,SOFTCAT,INV02148034,207.48,491 8485 03,
Department of Health,CT Revenue Funds,06-Mar-19,Additions - Assets Under Construction IT Server And Firewall Replacement,Balance Sheet Suspense,SOFTCAT,INV02148034,1118.8,491 8485 03,
Department of Health,CT Revenue Funds,06-Mar-19,Additions - Assets Under Construction IT Server And Firewall Replacement,Balance Sheet Suspense,SOFTCAT,INV02148034,223.76,491 8485 03,
Department of Health,CT Revenue Funds,06-Mar-19,Additions - Assets Under Construction Newport Cottage Wound Healing Improvements,Balance Sheet Suspense,WHITING ARCHITECTS LTD,INV-0179,-96,203305075,
Department of Health,CT Revenue Funds,06-Mar-19,Additions - Assets Under Construction Newport Cottage Wound Healing Improvements,Balance Sheet Suspense,WHITING ARCHITECTS LTD,INV-0179,480,203305075,
Department of Health,CT Revenue Funds,06-Mar-19,Additions - Assets Under Construction Newport Cottage Wound Healing Improvements,Balance Sheet Suspense,WHITING ARCHITECTS LTD,INV-0179,96,203305075,
Department of Health,CT Revenue Funds,06-Mar-19,Agency Admin & Clerical,Bridgnorth Hospital Outpatients,PERTEMPS,P806157,65.18,844 2788 00,
Department of Health,CT Revenue Funds,06-Mar-19,Agency Admin & Clerical,Bridgnorth Hospital Outpatients,PERTEMPS,P806157,325.92,844 2788 00,
Department of Health,CT Revenue Funds,06-Mar-19,Agency Hlthcare Assistants & Support Staff,Ludlow Hospital Inpatient Wards,ACTONBANKS HEALTHCARE RECRUITMENT SPECIALISTS,216613,130.49,308 4696 81,
Department of Health,CT Revenue Funds,06-Mar-19,Agency Hlthcare Assistants & Support Staff,Bridgnorth Hospital Inpatient Ward,ACTONBANKS HEALTHCARE RECRUITMENT SPECIALISTS,216625,148.53,308 4696 81,
Department of Health,CT Revenue Funds,06-Mar-19,Agency Hlthcare Assistants & Support Staff,Ludlow Hospital Inpatient Wards,ACTONBANKS HEALTHCARE RECRUITMENT SPECIALISTS,216627,148.53,308 4696 81,
Department of Health,CT Revenue Funds,06-Mar-19,Agency Hlthcare Assistants & Support Staff,Ludlow Hospital Inpatient Wards,ACTONBANKS HEALTHCARE RECRUITMENT SPECIALISTS,216628,196.65,308 4696 81,
Department of Health,CT Revenue Funds,06-Mar-19,Agency Hlthcare Assistants & Support Staff,Bridgnorth Hospital Inpatient Ward,DESTINY NURSING & SOCIAL CARE LTD,12000,106.8,,
Department of Health,CT Revenue Funds,06-Mar-19,Agency Hlthcare Assistants & Support Staff,Bridgnorth Hospital Inpatient Ward,EVERGOOD GENERAL PRACTITIONERS,86173,360.8,944 7347 94,
Department of Health,CT Revenue Funds,06-Mar-19,Agency Hlthcare Assistants & Support Staff,Bridgnorth Hospital Inpatient Ward,DRC LOCUMS LTD,DRN157390,219.11,755 8761 82,
Department of Health,CT Revenue Funds,06-Mar-19,Agency Hlthcare Assistants & Support Staff,Bridgnorth Hospital Inpatient Ward,DRC LOCUMS LTD,DRN157391,194.83,755 8761 82,
Department of Health,CT Revenue Funds,06-Mar-19,Agency Hlthcare Assistants & Support Staff,Bridgnorth Hospital Inpatient Ward,DRC LOCUMS LTD,DRN157392,195.1,755 8761 82,
Department of Health,CT Revenue Funds,06-Mar-19,Agency Hlthcare Assistants & Support Staff,Bridgnorth Hospital Inpatient Ward,DRC LOCUMS LTD,DRN157393,184.54,755 8761 82,
Department of Health,CT Revenue Funds,06-Mar-19,Agency Nursing,Ludlow Hospital Inpatient Wards,ACTONBANKS HEALTHCARE RECRUITMENT SPECIALISTS,216621,374.8,308 4696 81,
Department of Health,CT Revenue Funds,06-Mar-19,Agency Nursing,Ludlow Hospital Inpatient Wards,ACTONBANKS HEALTHCARE RECRUITMENT SPECIALISTS,216622,400.72,308 4696 81,
Department of Health,CT Revenue Funds,06-Mar-19,Agency Nursing,Ludlow Hospital Inpatient Wards,ACTONBANKS HEALTHCARE RECRUITMENT SPECIALISTS,216623,374.8,308 4696 81,
Department of Health,CT Revenue Funds,06-Mar-19,Agency Nursing,Stoke Heath Prison Healthcare,HAYS ACCOUNTANCY & FINANCE,1009219888,491.37,773 6958 71,
Department of Health,CT Revenue Funds,06-Mar-19,Agency Nursing,Bridgnorth Hospital Inpatient Ward,DESTINY NURSING & SOCIAL CARE LTD,12000,388.5,,
Department of Health,CT Revenue Funds,06-Mar-19,Agency Nursing,Bridgnorth Hospital Inpatient Ward,DESTINY NURSING & SOCIAL CARE LTD,12006,293.5,,
Department of Health,CT Revenue Funds,06-Mar-19,Agency Nursing,South East Interdisciplinary Teams,QUALITY CARE COVER,50009671,842.4,233467411,
Department of Health,CT Revenue Funds,06-Mar-19,Agency Nursing,South East Interdisciplinary Teams,QUALITY CARE COVER,50009811,1404,233467411,
Department of Health,CT Revenue Funds,06-Mar-19,Agency Nursing,Ludlow Hospital Inpatient Wards,MEDACS HEALTHCARE SERVICES PLC,604-1232523,264.38,745 7310 30,
Department of Health,CT Revenue Funds,06-Mar-19,Agency Nursing,Ludlow Hospital Inpatient Wards,MEDACS HEALTHCARE SERVICES PLC,604-1236846,264.38,745 7310 30,
Department of Health,CT Revenue Funds,06-Mar-19,Agency Nursing,Ludlow Hospital Inpatient Wards,FINAL CALL HEALTHCARE LTD,7702861,280.91,,
Department of Health,CT Revenue Funds,06-Mar-19,Agency Nursing,Ludlow Hospital Inpatient Wards,EVERGOOD GENERAL PRACTITIONERS,86281,538.5,944 7347 94,
Department of Health,CT Revenue Funds,06-Mar-19,Agency Nursing,Ludlow Hospital Inpatient Wards,CLINICAL 24,CLI52965,830.8,178715861,
Department of Health,CT Revenue Funds,06-Mar-19,Agency Nursing,Bishops Castle Hospital Inpatient Ward,ID MEDICAL,N649586,2401.66,733 7385 18,
Department of Health,CT Revenue Funds,06-Mar-19,Agency Nursing,Ludlow Hospital Inpatient Wards,MSL HEALTHCARE,PIN-27769,374.4,269773836,
Department of Health,CT Revenue Funds,06-Mar-19,Agency Nursing,Ludlow Hospital Inpatient Wards,MSL HEALTHCARE,PIN-27770,374.4,269773836,
Department of Health,CT Revenue Funds,06-Mar-19,Agency Nursing,Ludlow Hospital Inpatient Wards,MSL HEALTHCARE,PIN-27771,374.4,269773836,
Department of Health,CT Revenue Funds,06-Mar-19,Agency PAMs,ICS Central,MEDI CONNECT RECRUITMENT,21417,670.56,973 5565 79,
Department of Health,CT Revenue Funds,06-Mar-19,Agency PAMs,Bishops Castle Hospital Inpatient Ward,MEDI CONNECT RECRUITMENT,21417,201.13,973 5565 79,
Department of Health,CT Revenue Funds,06-Mar-19,Agency PAMs,Bishops Castle Hospital Inpatient Ward,MEDI CONNECT RECRUITMENT,21417,1005.64,973 5565 79,
Department of Health,CT Revenue Funds,06-Mar-19,Agency PAMs,ICS Central,MEDI CONNECT RECRUITMENT,21417,134.11,973 5565 79,
Department of Health,CT Revenue Funds,06-Mar-19,Agency PAMs,ICS Central,MEDI CONNECT RECRUITMENT,21424,690.04,973 5565 79,
Department of Health,CT Revenue Funds,06-Mar-19,Agency PAMs,Bishops Castle Hospital Inpatient Ward,MEDI CONNECT RECRUITMENT,21424,201.59,973 5565 79,
Department of Health,CT Revenue Funds,06-Mar-19,Agency PAMs,Bishops Castle Hospital Inpatient Ward,MEDI CONNECT RECRUITMENT,21424,1007.95,973 5565 79,
Department of Health,CT Revenue Funds,06-Mar-19,Agency PAMs,ICS Central,MEDI CONNECT RECRUITMENT,21424,138.01,973 5565 79,
Department of Health,CT Revenue Funds,06-Mar-19,ANAES : Accessories & Equipment,Community Childrens Nurses,SMITHS MEDICAL,1223039,259.6,226 6019 77,
Department of Health,CT Revenue Funds,06-Mar-19,ANAES : Accessories & Equipment,Community Childrens Nurses,SMITHS MEDICAL,1223039,51.92,226 6019 77,
Department of Health,CT Revenue Funds,06-Mar-19,ANAES : Accessories & Equipment,Community Childrens Nurses,BREAS MEDICAL LTD,79082,45.6,551305573,
Department of Health,CT Revenue Funds,06-Mar-19,ANAES : Accessories & Equipment,Community Childrens Nurses,BREAS MEDICAL LTD,79082,228,551305573,
Department of Health,CT Revenue Funds,06-Mar-19,Bed Accessories,Community Equipment Stores,ROMA MEDICAL AIDS LTD,627801,650,763 0039 51,
Department of Health,CT Revenue Funds,06-Mar-19,Bed Accessories,Community Equipment Stores,ROMA MEDICAL AIDS LTD,627801,130,763 0039 51,
Department of Health,CT Revenue Funds,06-Mar-19,Bed Accessories,Community Equipment Stores,ROMA MEDICAL AIDS LTD,627802,650,763 0039 51,
Department of Health,CT Revenue Funds,06-Mar-19,Bed Accessories,Community Equipment Stores,ROMA MEDICAL AIDS LTD,627802,130,763 0039 51,
Department of Health,CT Revenue Funds,06-Mar-19,Beds,Community Equipment Stores,LAYBROOK.COM,66410,816.8,970 1785 06,
Department of Health,CT Revenue Funds,06-Mar-19,Beds,Community Equipment Stores,LAYBROOK.COM,66410,4084,970 1785 06,
Department of Health,CT Revenue Funds,06-Mar-19,"Books, Journals & Subscriptions",Dudley School Nurses,BLACKWELLS BOOKSHOP,173431,19.48,532 5855 39,
Department of Health,CT Revenue Funds,06-Mar-19,"Books, Journals & Subscriptions",Dudley School Nurses,BLACKWELLS BOOKSHOP,173431,19.48,532 5855 39,
Department of Health,CT Revenue Funds,06-Mar-19,"Books, Journals & Subscriptions",Dudley School Nurses,BLACKWELLS BOOKSHOP,173431,19.48,532 5855 39,
Department of Health,CT Revenue Funds,06-Mar-19,"Books, Journals & Subscriptions",Dudley School Nurses,BLACKWELLS BOOKSHOP,173431,0.01,532 5855 39,
Department of Health,CT Revenue Funds,06-Mar-19,"Books, Journals & Subscriptions",Dudley School Nurses,BLACKWELLS BOOKSHOP,173431,0.01,532 5855 39,
Department of Health,CT Revenue Funds,06-Mar-19,"Books, Journals & Subscriptions",Dudley School Nurses,BLACKWELLS BOOKSHOP,173431,0.01,532 5855 39,
Department of Health,CT Revenue Funds,06-Mar-19,"Books, Journals & Subscriptions",Dudley School Nurses,BLACKWELLS BOOKSHOP,173431,0.01,532 5855 39,
Department of Health,CT Revenue Funds,06-Mar-19,"Books, Journals & Subscriptions",Dudley School Nurses,BLACKWELLS BOOKSHOP,173431,3.9,532 5855 39,
Department of Health,CT Revenue Funds,06-Mar-19,"Books, Journals & Subscriptions",Dudley School Nurses,BLACKWELLS BOOKSHOP,173431,3.9,532 5855 39,
Department of Health,CT Revenue Funds,06-Mar-19,"Books, Journals & Subscriptions",Dudley School Nurses,BLACKWELLS BOOKSHOP,173431,3.9,532 5855 39,
Department of Health,CT Revenue Funds,06-Mar-19,"Books, Journals & Subscriptions",Dudley School Nurses,BLACKWELLS BOOKSHOP,173431,3.9,532 5855 39,
Department of Health,CT Revenue Funds,06-Mar-19,"Books, Journals & Subscriptions",Dudley School Nurses,BLACKWELLS BOOKSHOP,173431,-3.9,532 5855 39,
Department of Health,CT Revenue Funds,06-Mar-19,"Books, Journals & Subscriptions",Dudley School Nurses,BLACKWELLS BOOKSHOP,173431,-3.9,532 5855 39,
Department of Health,CT Revenue Funds,06-Mar-19,"Books, Journals & Subscriptions",Dudley School Nurses,BLACKWELLS BOOKSHOP,173431,-3.9,532 5855 39,
Department of Health,CT Revenue Funds,06-Mar-19,"Books, Journals & Subscriptions",Dudley School Nurses,BLACKWELLS BOOKSHOP,173431,-3.9,532 5855 39,
Department of Health,CT Revenue Funds,06-Mar-19,"Books, Journals & Subscriptions",Dudley School Nurses,BLACKWELLS BOOKSHOP,173431,19.48,532 5855 39,
Department of Health,CT Revenue Funds,06-Mar-19,"Books, Journals & Subscriptions",Dudley School Nurses,PETTY CASH,SHEET 13 5.2-18.2.19,32.98,,
Department of Health,CT Revenue Funds,06-Mar-19,Catering Provisions,Whitchurch Hospital Catering,JOHAL DAIRIES LTD,1288182,89.62,101 3075 37,
Department of Health,CT Revenue Funds,06-Mar-19,Catering Provisions,Bridgnorth Hospital Catering,JOHAL DAIRIES LTD,1291351,73.88,101 3075 37,
Department of Health,CT Revenue Funds,06-Mar-19,Catering Provisions,Bridgnorth Hospital Catering,OLLECO CYMRU,520912,69.06,909 9860 70,
Department of Health,CT Revenue Funds,06-Mar-19,Catering Provisions,Whitchurch Hospital Catering,BIDFOOD,85366555,41.71,643 9946 92,
Department of Health,CT Revenue Funds,06-Mar-19,Catering Provisions,Whitchurch Hospital Catering,BIDFOOD,85366555,330.39,643 9946 92,
Department of Health,CT Revenue Funds,06-Mar-19,Catering Provisions,Whitchurch Hospital Catering,BIDFOOD,85366555,8.34,643 9946 92,
Department of Health,CT Revenue Funds,06-Mar-19,Catering Provisions,Bridgnorth Hospital Catering,BIDFOOD,85425703,550.55,643 9946 92,
Department of Health,CT Revenue Funds,06-Mar-19,Catering Provisions,Bridgnorth Hospital Catering,BIDFOOD,85425703,220.83,643 9946 92,
Department of Health,CT Revenue Funds,06-Mar-19,Catering Provisions,Bridgnorth Hospital Catering,BIDFOOD,85425703,44.17,643 9946 92,
Department of Health,CT Revenue Funds,06-Mar-19,Catering Provisions,Ludlow Hospital Catering,BIDFOOD,85426040,19.44,643 9946 92,
Department of Health,CT Revenue Funds,06-Mar-19,Catering Provisions,Ludlow Hospital Catering,BIDFOOD,85426040,147.89,643 9946 92,
Department of Health,CT Revenue Funds,06-Mar-19,Catering Provisions,Ludlow Hospital Catering,BIDFOOD,85426040,3.89,643 9946 92,
Department of Health,CT Revenue Funds,06-Mar-19,Catering Provisions,Ludlow Hospital Catering,BRAKE BROS FOODSERVICE LTD,9231333803,86.37,202 9353 88,
Department of Health,CT Revenue Funds,06-Mar-19,Catering Provisions,Ludlow Hospital Catering,BRAKE BROS FOODSERVICE LTD,9231333803,84.08,202 9353 88,
Department of Health,CT Revenue Funds,06-Mar-19,Catering Provisions,Ludlow Hospital Catering,BRAKE BROS FOODSERVICE LTD,9231333803,17.27,202 9353 88,
Department of Health,CT Revenue Funds,06-Mar-19,Catering Provisions,Whitchurch Hospital Catering,NH CASE LTD,SI099506,295.2,130 0233 45,
Department of Health,CT Revenue Funds,06-Mar-19,Catering Provisions,Bridgnorth Hospital Catering,JOHN SHEPPARD BUTCHERS LTD,SINV757031,68.92,214 649 019,
Department of Health,CT Revenue Funds,06-Mar-19,Catering Provisions,Bridgnorth Hospital Catering,JOHN SHEPPARD BUTCHERS LTD,SINV788016,98.05,214 649 019,
Department of Health,CT Revenue Funds,06-Mar-19,Charity Donations,Payables,CHARITIES TRUST,Feb-19,30,,
Department of Health,CT Revenue Funds,06-Mar-19,Computer Consumables,Telford Public Health Nursing Service,ARGOS,1728204,30.8,145 8990 25,
Department of Health,CT Revenue Funds,06-Mar-19,Computer Consumables,Telford Public Health Nursing Service,ARGOS,1728204,7.6,145 8990 25,
Department of Health,CT Revenue Funds,06-Mar-19,Computer Consumables,Telford Public Health Nursing Service,ARGOS,1728204,154,145 8990 25,
Department of Health,CT Revenue Funds,06-Mar-19,Computer Consumables,Telford Public Health Nursing Service,ARGOS,1728204,1.52,145 8990 25,
Department of Health,CT Revenue Funds,06-Mar-19,Computer Hardware & Software,Immunisations and Vaccinations,CCS MEDIA LIMITED,3440815,9,385 1234 54,
Department of Health,CT Revenue Funds,06-Mar-19,Computer Hardware & Software,Immunisations and Vaccinations,CCS MEDIA LIMITED,3440815,147,385 1234 54,
Department of Health,CT Revenue Funds,06-Mar-19,Computer Hardware & Software,Immunisations and Vaccinations,CCS MEDIA LIMITED,3440815,13.39,385 1234 54,
Department of Health,CT Revenue Funds,06-Mar-19,Computer Hardware & Software,Immunisations and Vaccinations,CCS MEDIA LIMITED,3440815,1.8,385 1234 54,
Department of Health,CT Revenue Funds,06-Mar-19,Computer Hardware & Software,Immunisations and Vaccinations,CCS MEDIA LIMITED,3440815,29.4,385 1234 54,
Department of Health,CT Revenue Funds,06-Mar-19,Computer Hardware & Software,Immunisations and Vaccinations,CCS MEDIA LIMITED,3440815,66.96,385 1234 54,
Department of Health,CT Revenue Funds,06-Mar-19,Computer Hardware & Software,Governance Risk and Complaints,CCS MEDIA LIMITED,3441959,26.78,385 1234 54,
Department of Health,CT Revenue Funds,06-Mar-19,Computer Hardware & Software,Governance Risk and Complaints,CCS MEDIA LIMITED,3441959,133.92,385 1234 54,
Department of Health,CT Revenue Funds,06-Mar-19,Computer Hardware & Software,Governance Risk and Complaints,CCS MEDIA LIMITED,3442134,5.38,385 1234 54,
Department of Health,CT Revenue Funds,06-Mar-19,Computer Hardware & Software,Governance Risk and Complaints,CCS MEDIA LIMITED,3442134,26.91,385 1234 54,
Department of Health,CT Revenue Funds,06-Mar-19,Computer Hardware & Software,Governance Risk and Complaints,CCS MEDIA LIMITED,3442865,0.98,385 1234 54,
Department of Health,CT Revenue Funds,06-Mar-19,Computer Hardware & Software,Governance Risk and Complaints,CCS MEDIA LIMITED,3442865,4.91,385 1234 54,
Department of Health,CT Revenue Funds,06-Mar-19,Computer Network Costs,Organisational Development,CCS MEDIA LIMITED,3439336,11.78,385 1234 54,
Department of Health,CT Revenue Funds,06-Mar-19,Computer Network Costs,Organisational Development,CCS MEDIA LIMITED,3439336,11.78,385 1234 54,
Department of Health,CT Revenue Funds,06-Mar-19,Computer Network Costs,Organisational Development,CCS MEDIA LIMITED,3439336,2.35,385 1234 54,
Department of Health,CT Revenue Funds,06-Mar-19,Computer Network Costs,Organisational Development,CCS MEDIA LIMITED,3439336,2.36,385 1234 54,
Department of Health,CT Revenue Funds,06-Mar-19,Computer Software / Licence  Fees,IM&T Support,BYTES TECHNOLOGY GROUP UK LTD,547501,105.2,823 81 82 26,
Department of Health,CT Revenue Funds,06-Mar-19,Computer Software / Licence  Fees,IM&T Support,BYTES TECHNOLOGY GROUP UK LTD,547501,21.04,823 81 82 26,
Department of Health,CT Revenue Funds,06-Mar-19,Computer Software / Licence  Fees,IM&T Support,BYTES TECHNOLOGY GROUP UK LTD,547502,4.21,823 81 82 26,
Department of Health,CT Revenue Funds,06-Mar-19,Computer Software / Licence  Fees,IM&T Support,BYTES TECHNOLOGY GROUP UK LTD,547502,21.04,823 81 82 26,
Department of Health,CT Revenue Funds,06-Mar-19,Conferences And Seminars,Trust Board,THE WROXETER HOTEL,230119,3004.17,916 966 285,
Department of Health,CT Revenue Funds,06-Mar-19,Contract : Photocopying Rental & Charges,MSK Management & Admin,KONICA BUSINESS MACHINES (UK) LTD,1142750654,56.02,974 9607 63,
Department of Health,CT Revenue Funds,06-Mar-19,Contract : Photocopying Rental & Charges,Community Neuro Rehabilitation Team (CNRT),XEROX UK,1608931586,12.77,232 3646 82,
Department of Health,CT Revenue Funds,06-Mar-19,Contract : Photocopying Rental & Charges,Continence Services,XEROX UK,1608931586,19,232 3646 82,
Department of Health,CT Revenue Funds,06-Mar-19,Contract : Photocopying Rental & Charges,Wheelchair Services,XEROX UK,1608931586,6.11,232 3646 82,
Department of Health,CT Revenue Funds,06-Mar-19,Contract : Photocopying Rental & Charges,Central Shropshire PHNS,ALTODIGITAL,1972949,363.29,249 3630 90,
Department of Health,CT Revenue Funds,06-Mar-19,Course Fees,Ludlow & Bishop Castle Admin,NOSS LTD,10902,136,763 1736 27,
Department of Health,CT Revenue Funds,06-Mar-19,Course Fees,Ludlow & Bishop Castle Admin,NOSS LTD,10902,-136,763 1736 27,
Department of Health,CT Revenue Funds,06-Mar-19,Course Fees,Ludlow & Bishop Castle Admin,NOSS LTD,10902,136,763 1736 27,
Department of Health,CT Revenue Funds,06-Mar-19,Course Fees,Ludlow & Bishop Castle Admin,NOSS LTD,10902,680,763 1736 27,
Department of Health,CT Revenue Funds,06-Mar-19,Course Fees,Ludlow & Bishop Castle Admin,NOSS LTD,10902,-136,763 1736 27,
Department of Health,CT Revenue Funds,06-Mar-19,Course Fees,Bridgnorth Hospital Radiology,BMUS - EDUCATION,714,150,138755579,
Department of Health,CT Revenue Funds,06-Mar-19,Court Order Payment,Payables,TELFORD & WREKIN COUNCIL,Feb-19,137.88,162 3321 00,
Department of Health,CT Revenue Funds,06-Mar-19,Court Order Payment,Payables,SHROPSHIRE COUNCIL,Feb-19,290.12,162 3474 72,
Department of Health,CT Revenue Funds,06-Mar-19,Cycle to Work Salary Sacrifice,Payables,SME HCI LTD,128583 PAYMENT 7,23.62,869 5780 54,
Department of Health,CT Revenue Funds,06-Mar-19,Cycle to Work Salary Sacrifice,Payables,SME HCI LTD,128665 PAYMENT 7,142.35,869 5780 54,
Department of Health,CT Revenue Funds,06-Mar-19,Cycle to Work Salary Sacrifice,Payables,SME HCI LTD,128796 PAYMENT 6,112.12,869 5780 54,
Department of Health,CT Revenue Funds,06-Mar-19,Cycle to Work Salary Sacrifice,Payables,SME HCI LTD,128954 PAYMENT 5,37.22,869 5780 54,
Department of Health,CT Revenue Funds,06-Mar-19,Debt Recovery & Credit Control,Ludlow Hospital Inpatient Wards,CCI CREDIT MANAGEMENT LTD,SCH8 INV043756,2,801 3197 64,
Department of Health,CT Revenue Funds,06-Mar-19,Dental Surgery Equipment,Special Care and Access,LG DAVIS (STATIONERS) LTD,132923,88.2,110 6445 14,
Department of Health,CT Revenue Funds,06-Mar-19,Dental Surgery Equipment,Special Care and Access,LG DAVIS (STATIONERS) LTD,133086,88.2,110 6445 14,
Department of Health,CT Revenue Funds,06-Mar-19,Dental Surgery Equipment,Special Care and Access,WRIGHT COTTRELL,93021027,69,268 991 395,
Department of Health,CT Revenue Funds,06-Mar-19,Dental Surgery Equipment,Special Care and Access,WRIGHT COTTRELL,93021027,13.8,268 991 395,
Department of Health,CT Revenue Funds,06-Mar-19,Dental Surgery Sundries,Special Care and Access,S4 DENTAL LABORATORY,GRIFF01-FEB19,24,,
Department of Health,CT Revenue Funds,06-Mar-19,Dental Surgery Sundries,M Drayton Dental Practice,OSWESTRY DENTAL LAB,INV528998,14.7,,
Department of Health,CT Revenue Funds,06-Mar-19,Dental Surgery Sundries,C Arms Dental Practice,S4 DENTAL LABORATORY,SEAG01-FEB19,109,,
Department of Health,CT Revenue Funds,06-Mar-19,Disclosure & Barring Service Checks,HR and Workforce,CAPITA RESOURCING LTD,R0060285,80.5,618 1841 40,
Department of Health,CT Revenue Funds,06-Mar-19,Drugs,Shrewsbury and Atcham DAART,ALLOGA UK LTD,SIN102547731,1542.3,684 0905 20,
Department of Health,CT Revenue Funds,06-Mar-19,Drugs,Shrewsbury and Atcham DAART,ALLOGA UK LTD,SIN102547731,308.46,684 0905 20,
Department of Health,CT Revenue Funds,06-Mar-19,Drugs,Shrewsbury and Atcham DAART,ALLOGA UK LTD,SIN102551250,308.46,684 0905 20,
Department of Health,CT Revenue Funds,06-Mar-19,Drugs,Shrewsbury and Atcham DAART,ALLOGA UK LTD,SIN102551250,1542.3,684 0905 20,
Department of Health,CT Revenue Funds,06-Mar-19,DWP Direct Earnings Attachment,Payables,DEPARTMENT FOR WORK AND PENSIONS,FEB19 NP042517C/YY434806B/JS918266C,107.66,,
Department of Health,CT Revenue Funds,06-Mar-19,Electromedical Equipment Instruments,ICS North East,PERFORMANCE HEALTH,INGB225135,3.82,945 7652 83,
Department of Health,CT Revenue Funds,06-Mar-19,Electromedical Equipment Instruments,ICS North East,PERFORMANCE HEALTH,INGB225135,19.1,945 7652 83,
Department of Health,CT Revenue Funds,06-Mar-19,Enteral Feeding,Community Childrens Nurses,GB UK HEALTHCARE LTD,147730,19.6,933 1964 16,
Department of Health,CT Revenue Funds,06-Mar-19,Enteral Feeding,Community Childrens Nurses,GB UK HEALTHCARE LTD,147730,98,933 1964 16,
Department of Health,CT Revenue Funds,06-Mar-19,Enteral Feeding,Community Childrens Nurses,GB UK HEALTHCARE LTD,148093,18,933 1964 16,
Department of Health,CT Revenue Funds,06-Mar-19,Enteral Feeding,Community Childrens Nurses,GB UK HEALTHCARE LTD,148093,90,933 1964 16,
Department of Health,CT Revenue Funds,06-Mar-19,Enteral Feeding,Community Childrens Nurses,GB UK HEALTHCARE LTD,148094,36.6,933 1964 16,
Department of Health,CT Revenue Funds,06-Mar-19,Enteral Feeding,Community Childrens Nurses,GB UK HEALTHCARE LTD,148094,183,933 1964 16,
Department of Health,CT Revenue Funds,06-Mar-19,Enteral Feeding,Community Childrens Nurses,GB UK HEALTHCARE LTD,148788,196,933 1964 16,
Department of Health,CT Revenue Funds,06-Mar-19,Enteral Feeding,Community Childrens Nurses,GB UK HEALTHCARE LTD,148788,39.2,933 1964 16,
Department of Health,CT Revenue Funds,06-Mar-19,Enteral Feeding,Community Childrens Nurses,GB UK HEALTHCARE LTD,148789,19.6,933 1964 16,
Department of Health,CT Revenue Funds,06-Mar-19,Enteral Feeding,Community Childrens Nurses,GB UK HEALTHCARE LTD,148789,98,933 1964 16,
Department of Health,CT Revenue Funds,06-Mar-19,Enteral Feeding,Community Childrens Nurses,GB UK HEALTHCARE LTD,149028,36.6,933 1964 16,
Department of Health,CT Revenue Funds,06-Mar-19,Enteral Feeding,Community Childrens Nurses,GB UK HEALTHCARE LTD,149028,183,933 1964 16,
Department of Health,CT Revenue Funds,06-Mar-19,Enteral Feeding,Community Childrens Nurses,GB UK HEALTHCARE LTD,149029,183,933 1964 16,
Department of Health,CT Revenue Funds,06-Mar-19,Enteral Feeding,Community Childrens Nurses,GB UK HEALTHCARE LTD,149029,36.6,933 1964 16,
Department of Health,CT Revenue Funds,06-Mar-19,External Consultancy Fees,Operations Directorate Management,PAULINE SMITH,011SCHT,-79.68,,
Department of Health,CT Revenue Funds,06-Mar-19,External Consultancy Fees,Operations Directorate Management,PAULINE SMITH,011SCHT,-0.32,,
Department of Health,CT Revenue Funds,06-Mar-19,External Consultancy Fees,Operations Directorate Management,PAULINE SMITH,011SCHT,-1.6,,
Department of Health,CT Revenue Funds,06-Mar-19,External Consultancy Fees,Operations Directorate Management,PAULINE SMITH,011SCHT,80,,
Department of Health,CT Revenue Funds,06-Mar-19,External Consultancy Fees,Operations Directorate Management,PAULINE SMITH,011SCHT,400,,
Department of Health,CT Revenue Funds,06-Mar-19,External Contracts : Domestics,Mercian House,AFRESH CLEANING SERVICE,1081,594,861 3512 40,
Department of Health,CT Revenue Funds,06-Mar-19,External Contracts : Domestics,Lady Forrester Much Wenlock,CLEANIT CLEANING SERVICES,231191,281.67,793 1287 06,
Department of Health,CT Revenue Funds,06-Mar-19,External Contracts : Window Cleaning,Bridgnorth Hospital,MJS WINDOW CLEANING,29-11/2/19,50,,
Department of Health,CT Revenue Funds,06-Mar-19,External Contracts : Window Cleaning,Dudley School Nurses,PETTY CASH,SHEET 13 5.2-18.2.19,15,,
Department of Health,CT Revenue Funds,06-Mar-19,Fair Share Credit Union,Payables,FAIRSHARE CREDIT UNION LTD,Feb-19,530,,
Department of Health,CT Revenue Funds,06-Mar-19,Furniture & Fittings,ICS Central,H JENKINSON & CO LTD,SINV00836696,272,163 4216 83,
Department of Health,CT Revenue Funds,06-Mar-19,Furniture & Fittings,ICS Central,H JENKINSON & CO LTD,SINV00836696,54.4,163 4216 83,
Department of Health,CT Revenue Funds,06-Mar-19,General Practitioners,APCS Dermatology,MARYSVILLE MEDICAL PRACTICE,432,2070.4,,
Department of Health,CT Revenue Funds,06-Mar-19,Hoists/Slings,Community Equipment Stores,CARE & INDEPENDENCE LTD,24155,150.3,781 471 809,
Department of Health,CT Revenue Funds,06-Mar-19,Hoists/Slings,Community Equipment Stores,CARE & INDEPENDENCE LTD,24155,751.5,781 471 809,
Department of Health,CT Revenue Funds,06-Mar-19,Hoists/Slings,Community Equipment Stores,CARE & INDEPENDENCE LTD,24184,81.72,781 471 809,
Department of Health,CT Revenue Funds,06-Mar-19,Hoists/Slings,Community Equipment Stores,CARE & INDEPENDENCE LTD,24184,408.6,781 471 809,
Department of Health,CT Revenue Funds,06-Mar-19,Hoists/Slings,Community Equipment Stores,CARE & INDEPENDENCE LTD,24288,150.3,781 471 809,
Department of Health,CT Revenue Funds,06-Mar-19,Hoists/Slings,Community Equipment Stores,CARE & INDEPENDENCE LTD,24288,751.5,781 471 809,
Department of Health,CT Revenue Funds,06-Mar-19,Hoists/Slings,Community Equipment Stores,MANGAR INTERNATIONAL LTD,194783,195,359 0957 16,
Department of Health,CT Revenue Funds,06-Mar-19,Hoists/Slings,Community Equipment Stores,MANGAR INTERNATIONAL LTD,194783,975,359 0957 16,
Department of Health,CT Revenue Funds,06-Mar-19,Home Management daily Living Aids Miscellaneous Appliances,Community Equipment Stores,HEALTHCARE MATTERS,102132,55.5,862 9754 77,
Department of Health,CT Revenue Funds,06-Mar-19,Home Management daily Living Aids Miscellaneous Appliances,Community Equipment Stores,HEALTHCARE MATTERS,102133,110.12,862 9754 77,
Department of Health,CT Revenue Funds,06-Mar-19,Home Management daily Living Aids Miscellaneous Appliances,Community Equipment Stores,HEALTHCARE MATTERS,102135,88.87,862 9754 77,
Department of Health,CT Revenue Funds,06-Mar-19,Home Management daily Living Aids Miscellaneous Appliances,Community Equipment Stores,HEALTHCARE MATTERS,102136,108,862 9754 77,
Department of Health,CT Revenue Funds,06-Mar-19,Home Management daily Living Aids Miscellaneous Appliances,Community Equipment Stores,HEALTHCARE MATTERS,102137,73,862 9754 77,
Department of Health,CT Revenue Funds,06-Mar-19,Home Management daily Living Aids Miscellaneous Appliances,Community Equipment Stores,HEALTHCARE MATTERS,102138,85.5,862 9754 77,
Department of Health,CT Revenue Funds,06-Mar-19,Home Management daily Living Aids Miscellaneous Appliances,Community Equipment Stores,HEALTHCARE MATTERS,102138,-102.6,862 9754 77,
Department of Health,CT Revenue Funds,06-Mar-19,Home Management daily Living Aids Miscellaneous Appliances,Community Equipment Stores,HEALTHCARE MATTERS,102138,102.6,862 9754 77,
Department of Health,CT Revenue Funds,06-Mar-19,Home Management daily Living Aids Miscellaneous Appliances,Community Equipment Stores,HEALTHCARE MATTERS,102152,96.25,862 9754 77,
Department of Health,CT Revenue Funds,06-Mar-19,Home Management daily Living Aids Miscellaneous Appliances,Community Equipment Stores,HEALTHCARE MATTERS,102154,108,862 9754 77,
Department of Health,CT Revenue Funds,06-Mar-19,Home Management daily Living Aids Miscellaneous Appliances,Community Equipment Stores,HEALTHCARE MATTERS,102183,108,862 9754 77,
Department of Health,CT Revenue Funds,06-Mar-19,Home Management daily Living Aids Miscellaneous Appliances,Community Equipment Stores,HEALTHCARE MATTERS,102184,108,862 9754 77,
Department of Health,CT Revenue Funds,06-Mar-19,Home Management daily Living Aids Miscellaneous Appliances,Community Equipment Stores,HEALTHCARE MATTERS,102185,96.86,862 9754 77,
Department of Health,CT Revenue Funds,06-Mar-19,Home Management daily Living Aids Miscellaneous Appliances,Community Equipment Stores,HEALTHCARE MATTERS,102186,118.99,862 9754 77,
Department of Health,CT Revenue Funds,06-Mar-19,Home Management daily Living Aids Miscellaneous Appliances,Community Equipment Stores,HEALTHCARE MATTERS,102187,55.5,862 9754 77,
Department of Health,CT Revenue Funds,06-Mar-19,Home Management daily Living Aids Miscellaneous Appliances,Community Equipment Stores,HEALTHCARE MATTERS,102188,55.5,862 9754 77,
Department of Health,CT Revenue Funds,06-Mar-19,Home Management daily Living Aids Miscellaneous Appliances,Community Equipment Stores,HEALTHCARE MATTERS,102189,69,862 9754 77,
Department of Health,CT Revenue Funds,06-Mar-19,Hospital Saturday Fund,Payables,BIRMINGHAM HOSPITAL SATURDAY FUND,Feb-19,124.8,,
Department of Health,CT Revenue Funds,06-Mar-19,Interpreting Services,Central Shropshire PHNS,ABSOLUTE INTERPRETING AND TRANSLATIONS LTD,177728,640,919 9117 92,
Department of Health,CT Revenue Funds,06-Mar-19,Just Credit Union,Payables,JUST CREDIT UNION,Feb-19,170,,
Department of Health,CT Revenue Funds,06-Mar-19,Laboratory External Tests,Occupational Health Commercial,MIDLAND PATHOLOGY SERVICES LIMITED,OHSA D 2 2019,263.6,,
Department of Health,CT Revenue Funds,06-Mar-19,Laboratory External Tests,Occupational Health Commercial,MIDLAND PATHOLOGY SERVICES LIMITED,SCHA D 2 2019,620.6,,
Department of Health,CT Revenue Funds,06-Mar-19,Leased Cars : Contract,IM&T Support,LEASEPLAN UK LTD,504998272,1326.42,442 5587 39,
Department of Health,CT Revenue Funds,06-Mar-19,Leased Cars : Contract,Telford Public Health Nursing Service,LEX AUTOLEASE LTD,EXI1245461,147.39,244 1555 76,
Department of Health,CT Revenue Funds,06-Mar-19,Leased Cars : Contract,IM&T Support,LEX AUTOLEASE LTD,EXI1251006,107.07,244 1555 76,
Department of Health,CT Revenue Funds,06-Mar-19,Leased Cars : Contract,Shrewsbury and Atcham North Interdisciplinary Teams,ARNOLD CLARK LTD,I00259293,-668.88,334 3318 79,
Department of Health,CT Revenue Funds,06-Mar-19,Leased Cars : Contract,Shrewsbury and Atcham North Interdisciplinary Teams,ARNOLD CLARK LTD,I00259293,668.88,334 3318 79,
Department of Health,CT Revenue Funds,06-Mar-19,Leased Cars : Contract,Shrewsbury and Atcham North Interdisciplinary Teams,ARNOLD CLARK LTD,I00259293,3344.4,334 3318 79,
Department of Health,CT Revenue Funds,06-Mar-19,Leased Cars : Contract,South Shropshire PHNS,ARNOLD CLARK LTD,M00192939,182.79,334 3318 79,
Department of Health,CT Revenue Funds,06-Mar-19,Leased Cars : Expenses Excl Rental,South East Interdisciplinary Teams,GREENHOUS GROUP LTD,21732252,100,713 2418 68,
Department of Health,CT Revenue Funds,06-Mar-19,Leased Cars : Expenses Excl Rental,South East Interdisciplinary Teams,GREENHOUS GROUP LTD,21732275,100,713 2418 68,
Department of Health,CT Revenue Funds,06-Mar-19,Leased Cars : Expenses Excl Rental,South Shropshire PHNS,GREENHOUS GROUP LTD,21732377,100,713 2418 68,
Department of Health,CT Revenue Funds,06-Mar-19,Legal/Professional Fees,Governance Risk and Complaints,MILLS & REEVE,BIRBIL/814253/V/1/1,1903.57,104 8345 88,
Department of Health,CT Revenue Funds,06-Mar-19,Locum Dental Consultant,Special Care and Access,CHURCHILL KNIGHT UMBRELLA LTD,129696,105,263393296,
Department of Health,CT Revenue Funds,06-Mar-19,Locum Dental Consultant,Special Care and Access,CHURCHILL KNIGHT UMBRELLA LTD,129696,525,263393296,
Department of Health,CT Revenue Funds,06-Mar-19,Locum GP,Whitchurch Hospital Inpatient Ward,ATHONA LTD,521752,3914.57,848 3521 11,
Department of Health,CT Revenue Funds,06-Mar-19,Locum GP,Whitchurch Hospital Inpatient Ward,ATHONA LTD,521752,782.91,848 3521 11,
Department of Health,CT Revenue Funds,06-Mar-19,Locum GP,Shrewsbury and Atcham DAART,DR PRASANTH KANDEPALLI,DAART RSH FEB19,2080,,
Department of Health,CT Revenue Funds,06-Mar-19,Locum GP,Oswestry DAART,DR PRASANTH KANDEPALLI,FEB19 - DAART SESSIONS,250,,
Department of Health,CT Revenue Funds,06-Mar-19,Locum GP,Oswestry DAART,DR ALWASHASH,FEB19 - DAART SESSIONS,750,,
Department of Health,CT Revenue Funds,06-Mar-19,Locum GP,Oswestry DAART,DR LWIN MAUNG,FEB19 - DAART SESSIONS,500,,
Department of Health,CT Revenue Funds,06-Mar-19,Materials - Electrical,Whitchurch Hospital,TOWN & COUNTY ELECTRICAL LTD,14992,63.25,159 2137 60,
Department of Health,CT Revenue Funds,06-Mar-19,Materials - Electrical,Whitchurch Hospital,TOWN & COUNTY ELECTRICAL LTD,14992,48.8,159 2137 60,
Department of Health,CT Revenue Funds,06-Mar-19,Materials - Electrical,Whitchurch Hospital,TOWN & COUNTY ELECTRICAL LTD,14992,0.01,159 2137 60,
Department of Health,CT Revenue Funds,06-Mar-19,Materials - Electrical,Whitchurch Hospital,TOWN & COUNTY ELECTRICAL LTD,14992,244,159 2137 60,
Department of Health,CT Revenue Funds,06-Mar-19,Materials - Electrical,Whitchurch Hospital,TOWN & COUNTY ELECTRICAL LTD,14992,417.27,159 2137 60,
Department of Health,CT Revenue Funds,06-Mar-19,Materials - Electrical,Whitchurch Hospital,TOWN & COUNTY ELECTRICAL LTD,14992,316.27,159 2137 60,
Department of Health,CT Revenue Funds,06-Mar-19,Materials - Electrical,Whitchurch Hospital,TOWN & COUNTY ELECTRICAL LTD,14992,48.8,159 2137 60,
Department of Health,CT Revenue Funds,06-Mar-19,Materials - Electrical,Whitchurch Hospital,TOWN & COUNTY ELECTRICAL LTD,14992,83.45,159 2137 60,
Department of Health,CT Revenue Funds,06-Mar-19,Materials - Electrical,Whitchurch Hospital,TOWN & COUNTY ELECTRICAL LTD,14992,-48.8,159 2137 60,
Department of Health,CT Revenue Funds,06-Mar-19,Mattress Systems,Community Equipment Stores,ULTIMATE HEALTHCARE,247312,518,892 3302 24,
Department of Health,CT Revenue Funds,06-Mar-19,Mattress Systems,Community Equipment Stores,ULTIMATE HEALTHCARE,247312,103.6,892 3302 24,
Department of Health,CT Revenue Funds,06-Mar-19,Mattress Systems,Community Equipment Stores,ULTIMATE HEALTHCARE,247313,24.4,892 3302 24,
Department of Health,CT Revenue Funds,06-Mar-19,Mattress Systems,Community Equipment Stores,ULTIMATE HEALTHCARE,247313,122,892 3302 24,
Department of Health,CT Revenue Funds,06-Mar-19,Mattress Systems,Community Equipment Stores,ULTIMATE HEALTHCARE,247314,610,892 3302 24,
Department of Health,CT Revenue Funds,06-Mar-19,Mattress Systems,Community Equipment Stores,ULTIMATE HEALTHCARE,247314,122,892 3302 24,
Department of Health,CT Revenue Funds,06-Mar-19,MDT Services From Non-NHS Bodies,MSK MDT Clinic,NUFFIELD HEALTH,TEMS27,26870.37,564 2911 37,
Department of Health,CT Revenue Funds,06-Mar-19,Medical Gases,Whitchurch Hospital Inpatient Ward,BOC LTD,3050889990,9.37,226 5565 55,
Department of Health,CT Revenue Funds,06-Mar-19,Medical Gases,Whitchurch Hospital Inpatient Ward,BOC LTD,3050889990,46.86,226 5565 55,
Department of Health,CT Revenue Funds,06-Mar-19,Medical Gases,Ludlow Hospital Inpatient Wards,BOC LTD,3051440940,7.51,226 5565 55,
Department of Health,CT Revenue Funds,06-Mar-19,Medical Gases,Ludlow Hospital Inpatient Wards,BOC LTD,3051440940,37.56,226 5565 55,
Department of Health,CT Revenue Funds,06-Mar-19,Medical Gases,Whitchurch Hospital Inpatient Ward,BOC LTD,3051464270,9.37,226 5565 55,
Department of Health,CT Revenue Funds,06-Mar-19,Medical Gases,Whitchurch Hospital Inpatient Ward,BOC LTD,3051464270,46.86,226 5565 55,
Department of Health,CT Revenue Funds,06-Mar-19,Medical Gases,Special Care and Access,BOC HEALTHCARE,3051484941,7.04,GB226556555,
Department of Health,CT Revenue Funds,06-Mar-19,Medical Gases,Special Care and Access,BOC HEALTHCARE,3051484941,35.18,GB226556555,
Department of Health,CT Revenue Funds,06-Mar-19,Medical Gases,Occupational Health Commercial,BOC HEALTHCARE,3051488158,0.83,GB226556555,
Department of Health,CT Revenue Funds,06-Mar-19,Medical Gases,Occupational Health Commercial,BOC HEALTHCARE,3051488158,4.17,GB226556555,
Department of Health,CT Revenue Funds,06-Mar-19,Medical Gases,Whitchurch Hospital Inpatient Ward,BOC HEALTHCARE,3051527216,55.19,GB226556555,
Department of Health,CT Revenue Funds,06-Mar-19,Medical Gases,Whitchurch Hospital Inpatient Ward,BOC HEALTHCARE,3051527216,275.95,GB226556555,
Department of Health,CT Revenue Funds,06-Mar-19,Medical Gases,Special Care and Access,BOC HEALTHCARE,3051527220,1.29,GB226556555,
Department of Health,CT Revenue Funds,06-Mar-19,Medical Gases,Special Care and Access,BOC HEALTHCARE,3051527220,0.26,GB226556555,
Department of Health,CT Revenue Funds,06-Mar-19,Medical Gases,Bishops Castle Hospital Inpatient Ward,BOC HEALTHCARE,3051527223,33.17,GB226556555,
Department of Health,CT Revenue Funds,06-Mar-19,Medical Gases,Bishops Castle Hospital Inpatient Ward,BOC HEALTHCARE,3051527223,165.87,GB226556555,
Department of Health,CT Revenue Funds,06-Mar-19,Medical Gases,Special Care and Access,BOC HEALTHCARE,3051527227,33.04,GB226556555,
Department of Health,CT Revenue Funds,06-Mar-19,Medical Gases,Special Care and Access,BOC HEALTHCARE,3051527227,6.61,GB226556555,
Department of Health,CT Revenue Funds,06-Mar-19,Medical Gases,C Arms Dental Practice,BOC HEALTHCARE,3051530034,3.52,GB226556555,
Department of Health,CT Revenue Funds,06-Mar-19,Medical Gases,C Arms Dental Practice,BOC HEALTHCARE,3051530034,17.6,GB226556555,
Department of Health,CT Revenue Funds,06-Mar-19,Medical Gases,MSK Rheumatology,BOC HEALTHCARE,3051588102,4.17,GB226556555,
Department of Health,CT Revenue Funds,06-Mar-19,Medical Gases,MSK Rheumatology,BOC HEALTHCARE,3051588102,0.83,GB226556555,
Department of Health,CT Revenue Funds,06-Mar-19,Medical Gases,Special Care and Access,BOC HEALTHCARE,3051603921,43.07,GB226556555,
Department of Health,CT Revenue Funds,06-Mar-19,Medical Gases,Special Care and Access,BOC HEALTHCARE,3051603921,8.61,GB226556555,
Department of Health,CT Revenue Funds,06-Mar-19,Medical Gases,Special Care and Access,BOC HEALTHCARE,3051757175,42.22,GB226556555,
Department of Health,CT Revenue Funds,06-Mar-19,Medical Gases,Special Care and Access,BOC HEALTHCARE,3051757175,8.44,GB226556555,
Department of Health,CT Revenue Funds,06-Mar-19,Medical Gases,Special Care and Access,CAPITA RESOURCING LTD,R0060285,736,618 1841 40,
Department of Health,CT Revenue Funds,06-Mar-19,Meeting Expenses/Room Hire,Children and Families Division Management,SHROPSHIRE WILDLIFE TRUST LTD,116,101,594216525,
Department of Health,CT Revenue Funds,06-Mar-19,Meeting Expenses/Room Hire,Diabetes Education Programme,BISHOP MASCALL FOUNDATION,12614,90.6,393986777,
Department of Health,CT Revenue Funds,06-Mar-19,Meeting Expenses/Room Hire,Diabetes Education Programme,PONTESBURY PUBLIC HALL,1698,52,,
Department of Health,CT Revenue Funds,06-Mar-19,Meeting Expenses/Room Hire,Diabetes Education Programme,COSY HALL,19/061,41.25,,
Department of Health,CT Revenue Funds,06-Mar-19,Meeting Expenses/Room Hire,Diabetes Education Programme,MEETING POINT TRUST LTD,190094,11,762 4326 34,
Department of Health,CT Revenue Funds,06-Mar-19,Meeting Expenses/Room Hire,Diabetes Education Programme,MEETING POINT TRUST LTD,190094,55,762 4326 34,
Department of Health,CT Revenue Funds,06-Mar-19,Meeting Expenses/Room Hire,Diabetes Education Programme,MEETING POINT TRUST LTD,190139,68.5,762 4326 34,
Department of Health,CT Revenue Funds,06-Mar-19,Meeting Expenses/Room Hire,Diabetes Education Programme,MEETING POINT TRUST LTD,190139,13.7,762 4326 34,
Department of Health,CT Revenue Funds,06-Mar-19,Meeting Expenses/Room Hire,Telford Public Health Nursing Service,OAKENGATES TOWN COUNCIL,2018/278,37.5,,
Department of Health,CT Revenue Funds,06-Mar-19,Meeting Expenses/Room Hire,Diabetes Education Programme,BRIDGNORTH TOWN COUNCIL,984,300,,
Department of Health,CT Revenue Funds,06-Mar-19,Meeting Expenses/Room Hire,Falls Prevention,THE VENUE,CM01112018-7,6.67,897 3660 65,
Department of Health,CT Revenue Funds,06-Mar-19,Meeting Expenses/Room Hire,Falls Prevention,THE VENUE,CM01112018-7,33.33,897 3660 65,
Department of Health,CT Revenue Funds,06-Mar-19,Meeting Expenses/Room Hire,Falls Prevention,THE VENUE,CM04122018-7,3.33,897 3660 65,
Department of Health,CT Revenue Funds,06-Mar-19,Meeting Expenses/Room Hire,Falls Prevention,THE VENUE,CM04122018-7,16.67,897 3660 65,
Department of Health,CT Revenue Funds,06-Mar-19,Meeting Expenses/Room Hire,Falls Prevention,CULMINGTON VILLAGE HALL,HIRE FEB 2019,108,,
Department of Health,CT Revenue Funds,06-Mar-19,Meeting Expenses/Room Hire,Telford Public Health Nursing Service,WOMBRIDGE PARISH CENTRE,HV'S 8/9&14.11.18,264,,
Department of Health,CT Revenue Funds,06-Mar-19,Meeting Expenses/Room Hire,Diabetes Education Programme,SEVERN FIELDS HEALTH VILLAGE,SF140554,75,,
Department of Health,CT Revenue Funds,06-Mar-19,Meeting Expenses/Room Hire,Diabetes Education Programme,SHROPSHIRE COUNCIL,SGL002740,97.92,162 3474 72,
Department of Health,CT Revenue Funds,06-Mar-19,Meeting Expenses/Room Hire,Diabetes Education Programme,SHROPSHIRE COUNCIL,SGL002765,251.6,162 3474 72,
Department of Health,CT Revenue Funds,06-Mar-19,Meeting Expenses/Room Hire,Diabetes Education Programme,SHROPSHIRE COUNCIL,SGL002774,65.28,162 3474 72,
Department of Health,CT Revenue Funds,06-Mar-19,Meeting Expenses/Room Hire,Diabetes Education Programme,SHROPSHIRE COUNCIL,SGL002800,32.64,162 3474 72,
Department of Health,CT Revenue Funds,06-Mar-19,Minor Works,Whitchurch Hospital,TOWN & COUNTY ELECTRICAL LTD,14994,1460.5,159 2137 60,
Department of Health,CT Revenue Funds,06-Mar-19,Minor Works,Whitchurch Hospital,TOWN & COUNTY ELECTRICAL LTD,14994,-292.1,159 2137 60,
Department of Health,CT Revenue Funds,06-Mar-19,Minor Works,Whitchurch Hospital,TOWN & COUNTY ELECTRICAL LTD,14994,292.1,159 2137 60,
Department of Health,CT Revenue Funds,06-Mar-19,Minor Works,Whitchurch Hospital,TOWN & COUNTY ELECTRICAL LTD,14994,-292.1,159 2137 60,
Department of Health,CT Revenue Funds,06-Mar-19,Minor Works,Whitchurch Hospital,TOWN & COUNTY ELECTRICAL LTD,14994,292.1,159 2137 60,
Department of Health,CT Revenue Funds,06-Mar-19,Minor Works,Bishops Castle Hospital,STATIC SYSTEMS GROUP PLC,PJ1008608,760.46,101 8596 81,
Department of Health,CT Revenue Funds,06-Mar-19,Minor Works,Bishops Castle Hospital,STATIC SYSTEMS GROUP PLC,PJ1008608,3802.31,101 8596 81,
Department of Health,CT Revenue Funds,06-Mar-19,Miscellaneous Expenditure,Stoke Heath Prison Healthcare,OLLECO CYMRU,520912,-69.06,909 9860 70,
Department of Health,CT Revenue Funds,06-Mar-19,Miscellaneous Expenditure,Stoke Heath Prison Healthcare,OLLECO CYMRU,520912,69.06,909 9860 70,
Department of Health,CT Revenue Funds,06-Mar-19,Mobile Phones,Telford South Community Nursing,CCS MEDIA LIMITED,3448086,159,385 1234 54,
Department of Health,CT Revenue Funds,06-Mar-19,Mobile Phones,Telford South Community Nursing,CCS MEDIA LIMITED,3448086,31.8,385 1234 54,
Department of Health,CT Revenue Funds,06-Mar-19,Office Equipment & Materials : Purchase,Coral House,ARGOS,1743398,1.06,145 8990 25,
Department of Health,CT Revenue Funds,06-Mar-19,Office Equipment & Materials : Purchase,Coral House,ARGOS,1743398,1.85,145 8990 25,
Department of Health,CT Revenue Funds,06-Mar-19,Office Equipment & Materials : Purchase,Coral House,ARGOS,1743398,5.31,145 8990 25,
Department of Health,CT Revenue Funds,06-Mar-19,Office Equipment & Materials : Purchase,Coral House,ARGOS,1743398,9.23,145 8990 25,
Department of Health,CT Revenue Funds,06-Mar-19,Office Equipment & Materials : Purchase,South West Interdisciplinary Teams,ALTODIGITAL,1971306,1265.08,249 3630 90,
Department of Health,CT Revenue Funds,06-Mar-19,Office Equipment & Materials : Purchase,South West Interdisciplinary Teams,ALTODIGITAL,1971306,-1265.08,249 3630 90,
Department of Health,CT Revenue Funds,06-Mar-19,Office Equipment & Materials : Purchase,South West Interdisciplinary Teams,ALTODIGITAL,1971306,1265.08,249 3630 90,
Department of Health,CT Revenue Funds,06-Mar-19,Office Equipment & Materials : Purchase,South West Interdisciplinary Teams,ALTODIGITAL,1971306,-1265.08,249 3630 90,
Department of Health,CT Revenue Funds,06-Mar-19,Office Equipment & Materials : Purchase,South West Interdisciplinary Teams,ALTODIGITAL,1971306,1265.08,249 3630 90,
Department of Health,CT Revenue Funds,06-Mar-19,Office Equipment & Materials : Purchase,Dudley School Nurses,HEALTH-CARE EQUIPMENT & SUPPLIES,20100408,44.25,785 1385 01,
Department of Health,CT Revenue Funds,06-Mar-19,Office Equipment & Materials : Purchase,Dudley School Nurses,HEALTH-CARE EQUIPMENT & SUPPLIES,20100408,221.25,785 1385 01,
Department of Health,CT Revenue Funds,06-Mar-19,Office Equipment & Materials : Purchase,MSK Management & Admin,CCS MEDIA LIMITED,3437657,255.5,385 1234 54,
Department of Health,CT Revenue Funds,06-Mar-19,Office Equipment & Materials : Purchase,MSK Management & Admin,CCS MEDIA LIMITED,3437657,51.1,385 1234 54,
Department of Health,CT Revenue Funds,06-Mar-19,Office Equipment & Materials : Purchase,South West Interdisciplinary Teams,ALTODIGITAL,9.53119E+13,166.69,249 3630 90,
Department of Health,CT Revenue Funds,06-Mar-19,Office Equipment & Materials : Purchase,South West Interdisciplinary Teams,ALTODIGITAL,9.53119E+13,33.34,249 3630 90,
Department of Health,CT Revenue Funds,06-Mar-19,Office Equipment & Materials : Purchase,South West Interdisciplinary Teams,ALTODIGITAL,9.53119E+13,-33.34,249 3630 90,
Department of Health,CT Revenue Funds,06-Mar-19,Office Equipment & Materials : Purchase,Diabetes Education Programme,WRS GROUP,IN24337,21.6,,
Department of Health,CT Revenue Funds,06-Mar-19,Office Equipment & Materials : Purchase,Diabetes Education Programme,WRS GROUP,IN24337,108,,
Department of Health,CT Revenue Funds,06-Mar-19,Orthotic Products General,South West Interdisciplinary Teams,PERFORMANCE HEALTH,INGB230831,18.67,945 7652 83,
Department of Health,CT Revenue Funds,06-Mar-19,Orthotic Products General,South West Interdisciplinary Teams,PERFORMANCE HEALTH,INGB230831,93.34,945 7652 83,
Department of Health,CT Revenue Funds,06-Mar-19,Other Bought-In Clinical Services,Occupational Health Commercial,CTC PHYSIOTHERAPY CLINIC,216241,2110,,
Department of Health,CT Revenue Funds,06-Mar-19,Other Bought-In Clinical Services,MSK MDT Clinic,INHEALTH LIMITED,IHLIN0013857,3200,787424685,
Department of Health,CT Revenue Funds,06-Mar-19,Other Bought-In Clinical Services,MSK MDT Clinic,INHEALTH LIMITED,IHLIN0013858,3200,787424685,
Department of Health,CT Revenue Funds,06-Mar-19,Other Bought-In Clinical Services,MSK MDT Clinic,INHEALTH LIMITED,IHLIN0013859,3339,787424685,
Department of Health,CT Revenue Funds,06-Mar-19,Other Bought-In Clinical Services,MSK MDT Clinic,INHEALTH LIMITED,IHLIN0013860,3200,787424685,
Department of Health,CT Revenue Funds,06-Mar-19,Other Bought-In Clinical Services,MSK MDT Clinic,INHEALTH LIMITED,IHLIN0013861,3200,787424685,
Department of Health,CT Revenue Funds,06-Mar-19,Other Bought-In Clinical Services,MSK MDT Clinic,INHEALTH LIMITED,IHLIN0013862,3200,787424685,
Department of Health,CT Revenue Funds,06-Mar-19,Other Bought-In Clinical Services,MSK MDT Clinic,INHEALTH LIMITED,IHLIN0013863,3816,787424685,
Department of Health,CT Revenue Funds,06-Mar-19,Other General Supplies & Services,Ludlow Hospital Hotel Services,BRISTOL MAID HOSPITAL METALCRAFT LIMITED,423230,495,137 5867 34,
Department of Health,CT Revenue Funds,06-Mar-19,Other General Supplies & Services,Ludlow Hospital Hotel Services,BRISTOL MAID HOSPITAL METALCRAFT LIMITED,423230,99,137 5867 34,
Department of Health,CT Revenue Funds,06-Mar-19,Packing & Storage,Bridgnorth Hospital Catering,HIRE THIS LIMITED,62618,48,754 5912 11,
Department of Health,CT Revenue Funds,06-Mar-19,Pain Services From Non-NHS Bodies,MSK Pain,INHEALTH PAIN MANAGEMENT SOLUTIONS LTD,PMSIN000578,12938.4,NOT VAT REG,
Department of Health,CT Revenue Funds,06-Mar-19,Pain Services From Non-NHS Bodies,MSK Pain,INHEALTH PAIN MANAGEMENT SOLUTIONS LTD,PMSIN000583,19151.2,NOT VAT REG,
Department of Health,CT Revenue Funds,06-Mar-19,Paper Items & General Stationery Sundries,Bishops Castle Hospital Inpatient Ward,LG DAVIS (STATIONERS) LTD,133011,85,110 6445 14,
Department of Health,CT Revenue Funds,06-Mar-19,Paper Items & General Stationery Sundries,Bridgnorth Hospital Inpatient Ward,LG DAVIS (STATIONERS) LTD,133011,85,110 6445 14,
Department of Health,CT Revenue Funds,06-Mar-19,Paper Items & General Stationery Sundries,Ludlow & Bishop Castle Admin,LG DAVIS (STATIONERS) LTD,133011,85,110 6445 14,
Department of Health,CT Revenue Funds,06-Mar-19,Paper Items & General Stationery Sundries,Whitchurch Hospital Inpatient Ward,LG DAVIS (STATIONERS) LTD,133011,85,110 6445 14,
Department of Health,CT Revenue Funds,06-Mar-19,Paper Items & General Stationery Sundries,South East Shropshire DAART,LG DAVIS (STATIONERS) LTD,133012,22.73,110 6445 14,
Department of Health,CT Revenue Funds,06-Mar-19,Paper Items & General Stationery Sundries,Shrewsbury and Atcham DAART,LG DAVIS (STATIONERS) LTD,133012,22.73,110 6445 14,
Department of Health,CT Revenue Funds,06-Mar-19,Paper Items & General Stationery Sundries,South West Interdisciplinary Teams,LG DAVIS (STATIONERS) LTD,133012,22.73,110 6445 14,
Department of Health,CT Revenue Funds,06-Mar-19,Paper Items & General Stationery Sundries,North East Shropshire Interdisciplinary Teams,LG DAVIS (STATIONERS) LTD,133012,22.73,110 6445 14,
Department of Health,CT Revenue Funds,06-Mar-19,Paper Items & General Stationery Sundries,Shrewsbury and Atcham North Interdisciplinary Teams,LG DAVIS (STATIONERS) LTD,133012,22.73,110 6445 14,
Department of Health,CT Revenue Funds,06-Mar-19,Paper Items & General Stationery Sundries,Bridgnorth Hospital Minor Injuries Unit,LG DAVIS (STATIONERS) LTD,133012,22.73,110 6445 14,
Department of Health,CT Revenue Funds,06-Mar-19,Paper Items & General Stationery Sundries,North West Shropshire Interdisciplinary Teams,LG DAVIS (STATIONERS) LTD,133012,22.73,110 6445 14,
Department of Health,CT Revenue Funds,06-Mar-19,Paper Items & General Stationery Sundries,Shrewsbury and Atcham South Interdisciplinary Teams,LG DAVIS (STATIONERS) LTD,133012,22.73,110 6445 14,
Department of Health,CT Revenue Funds,06-Mar-19,Paper Items & General Stationery Sundries,Telford South Community Nursing,LG DAVIS (STATIONERS) LTD,133012,22.73,110 6445 14,
Department of Health,CT Revenue Funds,06-Mar-19,Paper Items & General Stationery Sundries,Telford North Community Nursing,LG DAVIS (STATIONERS) LTD,133012,22.73,110 6445 14,
Department of Health,CT Revenue Funds,06-Mar-19,Paper Items & General Stationery Sundries,South East Interdisciplinary Teams,LG DAVIS (STATIONERS) LTD,133012,22.78,110 6445 14,
Department of Health,CT Revenue Funds,06-Mar-19,Paper Items & General Stationery Sundries,Whitchurch Hospital Minor Injuries Unit,LG DAVIS (STATIONERS) LTD,133012,22.73,110 6445 14,
Department of Health,CT Revenue Funds,06-Mar-19,Paper Items & General Stationery Sundries,Oswestry DAART,LG DAVIS (STATIONERS) LTD,133012,22.73,110 6445 14,
Department of Health,CT Revenue Funds,06-Mar-19,Paper Items & General Stationery Sundries,Ludlow Hospital Minor Injuries Unit,LG DAVIS (STATIONERS) LTD,133012,22.73,110 6445 14,
Department of Health,CT Revenue Funds,06-Mar-19,Paper Items & General Stationery Sundries,Oswestry Minor Injuries Unit,LG DAVIS (STATIONERS) LTD,133012,22.73,110 6445 14,
Department of Health,CT Revenue Funds,06-Mar-19,Patient Aids/Appliances : Mobility,Community Equipment Stores,DRIVE DEVILBISS HEALTHCARE LTD,1360695,104,779 8334 63,
Department of Health,CT Revenue Funds,06-Mar-19,Patient Aids/Appliances : Mobility,Community Equipment Stores,DRIVE DEVILBISS HEALTHCARE LTD,1360695,520,779 8334 63,
Department of Health,CT Revenue Funds,06-Mar-19,Patient Aids/Appliances : Mobility,Community Equipment Stores,COMPLETE CARE SHOP,2438509,7.45,920 8163  40,
Department of Health,CT Revenue Funds,06-Mar-19,Patient Aids/Appliances : Mobility,Community Equipment Stores,COMPLETE CARE SHOP,2438509,1.49,920 8163  40,
Department of Health,CT Revenue Funds,06-Mar-19,Patient Aids/Appliances : Mobility,Community Equipment Stores,HOME & MEDICAL,39284,19.99,134730823,
Department of Health,CT Revenue Funds,06-Mar-19,Patient Aids/Appliances : Mobility,Community Equipment Stores,HOME & MEDICAL,39284,4,134730823,
Department of Health,CT Revenue Funds,06-Mar-19,Patient Aids/Appliances : Mobility,Community Equipment Stores,SIMPLY MED UK LTD,79232,149.5,979 7837 26,
Department of Health,CT Revenue Funds,06-Mar-19,Patient Aids/Appliances : Mobility,Community Equipment Stores,SIMPLY MED UK LTD,79232,747.5,979 7837 26,
Department of Health,CT Revenue Funds,06-Mar-19,Patient Aids/Appliances : Mobility,Community Equipment Stores,SIMPLY MED UK LTD,79234,418.5,979 7837 26,
Department of Health,CT Revenue Funds,06-Mar-19,Patient Aids/Appliances : Mobility,Community Equipment Stores,SIMPLY MED UK LTD,79234,83.7,979 7837 26,
Department of Health,CT Revenue Funds,06-Mar-19,Patient Aids/Appliances : Toileting,Community Equipment Stores,DRIVE DEVILBISS HEALTHCARE LTD,1348613,165.25,779 8334 63,
Department of Health,CT Revenue Funds,06-Mar-19,Patient Aids/Appliances : Toileting,Community Equipment Stores,DRIVE DEVILBISS HEALTHCARE LTD,1348613,826.25,779 8334 63,
Department of Health,CT Revenue Funds,06-Mar-19,Patient Aids/Appliances : Toileting,Community Equipment Stores,DRIVE DEVILBISS HEALTHCARE LTD,1360890,-165.25,779 8334 63,
Department of Health,CT Revenue Funds,06-Mar-19,Patient Aids/Appliances : Toileting,Community Equipment Stores,DRIVE DEVILBISS HEALTHCARE LTD,1360890,-826.25,779 8334 63,
Department of Health,CT Revenue Funds,06-Mar-19,Patient Aids/Appliances : Toileting,Community Equipment Stores,COMPLETE CARE SHOP,2448677,9.39,920 8163  40,
Department of Health,CT Revenue Funds,06-Mar-19,Patient Aids/Appliances : Toileting,Community Equipment Stores,COMPLETE CARE SHOP,2448677,46.95,920 8163  40,
Department of Health,CT Revenue Funds,06-Mar-19,Patient Aids/Appliances : Toileting,Community Equipment Stores,SIMPLY MED UK LTD,79233,19,979 7837 26,
Department of Health,CT Revenue Funds,06-Mar-19,Patient Aids/Appliances : Toileting,Community Equipment Stores,SIMPLY MED UK LTD,79233,95,979 7837 26,
Department of Health,CT Revenue Funds,06-Mar-19,Patients Aid,Payables,PAYCARE,Feb-19,328.86,,
Department of Health,CT Revenue Funds,06-Mar-19,Pennies from Heaven,Payables,PENNIES FROM HEAVEN,Feb-19,9.8,,
Department of Health,CT Revenue Funds,06-Mar-19,Photographic Equipment,Stoke Heath Prison Healthcare,BROOMWELL HEALTHWATCH LIMITED,27109,150,,
Department of Health,CT Revenue Funds,06-Mar-19,Photographic Equipment,Stoke Heath Prison Healthcare,BROOMWELL HEALTHWATCH LIMITED,27109,30,,
Department of Health,CT Revenue Funds,06-Mar-19,Podiatry Products,Bridgnorth Hospital Theatre,BEAVER HEALTHCARE EQUIPMENT (T/A OCURA HEALTHCARE FURNITURE),1424367,439.6,486 3352 24,
Department of Health,CT Revenue Funds,06-Mar-19,Podiatry Products,Bridgnorth Hospital Theatre,BEAVER HEALTHCARE EQUIPMENT (T/A OCURA HEALTHCARE FURNITURE),1424367,527.1,486 3352 24,
Department of Health,CT Revenue Funds,06-Mar-19,Podiatry Products,Bridgnorth Hospital Theatre,BEAVER HEALTHCARE EQUIPMENT (T/A OCURA HEALTHCARE FURNITURE),1424367,87.92,486 3352 24,
Department of Health,CT Revenue Funds,06-Mar-19,Podiatry Products,Bridgnorth Hospital Theatre,BEAVER HEALTHCARE EQUIPMENT (T/A OCURA HEALTHCARE FURNITURE),1424367,105.42,486 3352 24,
Department of Health,CT Revenue Funds,06-Mar-19,Podiatry Products,Podiatry Services,DLT PODIATRY SUPPLIES,93432,764.55,721 2201 01,
Department of Health,CT Revenue Funds,06-Mar-19,Podiatry Products,Podiatry Services,DLT PODIATRY SUPPLIES,93432,152.91,721 2201 01,
Department of Health,CT Revenue Funds,06-Mar-19,Postage & Carriage,Community Equipment Stores,CARE & INDEPENDENCE LTD,24155,12.5,781 471 809,
Department of Health,CT Revenue Funds,06-Mar-19,Postage & Carriage,Community Equipment Stores,CARE & INDEPENDENCE LTD,24155,2.5,781 471 809,
Department of Health,CT Revenue Funds,06-Mar-19,Postage & Carriage,Wheelchair Services,QBITUS PRODUCTS,144819,7.95,525 8646 22,
Department of Health,CT Revenue Funds,06-Mar-19,Postage & Carriage,Wheelchair Services,QBITUS PRODUCTS,144819,1.59,525 8646 22,
Department of Health,CT Revenue Funds,06-Mar-19,Postage & Carriage,Telford Public Health Nursing Service,ARGOS,1728204,3.29,145 8990 25,
Department of Health,CT Revenue Funds,06-Mar-19,Postage & Carriage,Telford Public Health Nursing Service,ARGOS,1728204,0.66,145 8990 25,
Department of Health,CT Revenue Funds,06-Mar-19,Postage & Carriage,Coral House,ARGOS,1743398,3.29,145 8990 25,
Department of Health,CT Revenue Funds,06-Mar-19,Postage & Carriage,Coral House,ARGOS,1743398,0.66,145 8990 25,
Department of Health,CT Revenue Funds,06-Mar-19,Postage & Carriage,Community Equipment Stores,COMPLETE CARE SHOP,2438509,0.66,920 8163  40,
Department of Health,CT Revenue Funds,06-Mar-19,Postage & Carriage,Community Equipment Stores,COMPLETE CARE SHOP,2438509,3.29,920 8163  40,
Department of Health,CT Revenue Funds,06-Mar-19,Postage & Carriage,Coral House,NEOPOST LTD,246836 28.2.19,1000,597 2654 89,
Department of Health,CT Revenue Funds,06-Mar-19,Postage & Carriage,Coral House,NEOPOST LTD,246836 4.3.19,1000,597 2654 89,
Department of Health,CT Revenue Funds,06-Mar-19,Postage & Carriage,Community Equipment Stores,HOME & MEDICAL,39284,6.5,134730823,
Department of Health,CT Revenue Funds,06-Mar-19,Postage & Carriage,Community Childrens Nurses,BREAS MEDICAL LTD,79082,2.4,551305573,
Department of Health,CT Revenue Funds,06-Mar-19,Postage & Carriage,Community Childrens Nurses,BREAS MEDICAL LTD,79082,12,551305573,
Department of Health,CT Revenue Funds,06-Mar-19,Postage & Carriage,Wheelchair Services,PENNY & GILES CONTROLS LTD,793572,5,GB682443621,
Department of Health,CT Revenue Funds,06-Mar-19,Postage & Carriage,Wheelchair Services,PENNY & GILES CONTROLS LTD,793572,25,GB682443621,
Department of Health,CT Revenue Funds,06-Mar-19,Postage & Carriage,Immunisations and Vaccinations,ROYAL MAIL,9058268961,3.52,243 1700 02,
Department of Health,CT Revenue Funds,06-Mar-19,Postage & Carriage,Shropshire Child Occupational Therapy,NOTTINGHAM REHAB SUPPLIES,97685726,2.19,125 6886 44,
Department of Health,CT Revenue Funds,06-Mar-19,Postage & Carriage,Shropshire Child Occupational Therapy,NOTTINGHAM REHAB SUPPLIES,97685726,10.95,125 6886 44,
Department of Health,CT Revenue Funds,06-Mar-19,Postage & Carriage,Diabetes Specialist Nursing,WRS GROUP,IN24337,8,,
Department of Health,CT Revenue Funds,06-Mar-19,Postage & Carriage,Diabetes Specialist Nursing,WRS GROUP,IN24337,1.6,,
Department of Health,CT Revenue Funds,06-Mar-19,Postage & Carriage,APCS Gynaecology,MEDIPLUS LTD,SIN225404,3.2,442 4760 56,
Department of Health,CT Revenue Funds,06-Mar-19,Postage & Carriage,APCS Gynaecology,MEDIPLUS LTD,SIN225404,16,442 4760 56,
Department of Health,CT Revenue Funds,06-Mar-19,Postage & Carriage,Whitchurch Hospital Catering,JOHN SHEPPARD BUTCHERS LTD,SINV786344,169.28,214 649 019,
Department of Health,CT Revenue Funds,06-Mar-19,Postage Stamps Stock,Cash & Cash Equivalents,POST OFFICE LTD,WFH - STAMPS 27/2/19,2900,,
Department of Health,CT Revenue Funds,06-Mar-19,Printing Costs,Coral House,SYNERTEC LTD,QS198126,50,736 6764 94,
Department of Health,CT Revenue Funds,06-Mar-19,Printing Costs,MSK Management & Admin,SYNERTEC LTD,QS199272,295.25,736 6764 94,
Department of Health,CT Revenue Funds,06-Mar-19,Printing Costs,Coral House,SYNERTEC LTD,QS199273,67.77,736 6764 94,
Department of Health,CT Revenue Funds,06-Mar-19,Printing Costs,Coral House,SYNERTEC LTD,QS199274,6.85,736 6764 94,
Department of Health,CT Revenue Funds,06-Mar-19,Printing Costs,Coral House,SYNERTEC LTD,QS199276,184.8,736 6764 94,
Department of Health,CT Revenue Funds,06-Mar-19,Printing Costs,Coral House,SYNERTEC LTD,QS199277,87.55,736 6764 94,
Department of Health,CT Revenue Funds,06-Mar-19,Prudential AVCs,Payables,PRUDENTIAL (N001/18769),FEB19 LN01/4741 NE993755B,150,,
Department of Health,CT Revenue Funds,06-Mar-19,Radiotherapy Equipment,Whitchurch Hospital Inpatient Ward,BRISTOL MAID HOSPITAL METALCRAFT LIMITED,423231,13.32,137 5867 34,
Department of Health,CT Revenue Funds,06-Mar-19,Radiotherapy Equipment,Whitchurch Hospital Inpatient Ward,BRISTOL MAID HOSPITAL METALCRAFT LIMITED,423231,2.5,137 5867 34,
Department of Health,CT Revenue Funds,06-Mar-19,Radiotherapy Equipment,Whitchurch Hospital Inpatient Ward,BRISTOL MAID HOSPITAL METALCRAFT LIMITED,423231,12.5,137 5867 34,
Department of Health,CT Revenue Funds,06-Mar-19,Radiotherapy Equipment,Whitchurch Hospital Inpatient Ward,BRISTOL MAID HOSPITAL METALCRAFT LIMITED,423231,66.6,137 5867 34,
Department of Health,CT Revenue Funds,06-Mar-19,Special Seating,Wheelchair Services,SPECIALISED ORTHOTIC SERVICES LTD,724407,5.47,616 9753 09,
Department of Health,CT Revenue Funds,06-Mar-19,Special Seating,Wheelchair Services,SPECIALISED ORTHOTIC SERVICES LTD,724407,9.53,616 9753 09,
Department of Health,CT Revenue Funds,06-Mar-19,Special Seating,Wheelchair Services,SPECIALISED ORTHOTIC SERVICES LTD,724407,9.53,616 9753 09,
Department of Health,CT Revenue Funds,06-Mar-19,Special Seating,Wheelchair Services,SPECIALISED ORTHOTIC SERVICES LTD,724407,9.93,616 9753 09,
Department of Health,CT Revenue Funds,06-Mar-19,Special Seating,Wheelchair Services,SPECIALISED ORTHOTIC SERVICES LTD,724407,18.36,616 9753 09,
Department of Health,CT Revenue Funds,06-Mar-19,Special Seating,Wheelchair Services,SPECIALISED ORTHOTIC SERVICES LTD,724407,47.63,616 9753 09,
Department of Health,CT Revenue Funds,06-Mar-19,Special Seating,Wheelchair Services,SPECIALISED ORTHOTIC SERVICES LTD,724407,27.35,616 9753 09,
Department of Health,CT Revenue Funds,06-Mar-19,Special Seating,Wheelchair Services,SPECIALISED ORTHOTIC SERVICES LTD,724407,1.99,616 9753 09,
Department of Health,CT Revenue Funds,06-Mar-19,Special Seating,Wheelchair Services,SPECIALISED ORTHOTIC SERVICES LTD,724407,3.67,616 9753 09,
Department of Health,CT Revenue Funds,06-Mar-19,Special Seating,Wheelchair Services,SPECIALISED ORTHOTIC SERVICES LTD,724407,-9.53,616 9753 09,
Department of Health,CT Revenue Funds,06-Mar-19,Special Seating,Wheelchair Services,SPECIALISED ORTHOTIC SERVICES LTD,724407,9.53,616 9753 09,
Department of Health,CT Revenue Funds,06-Mar-19,Special Seating,Wheelchair Services,SPECIALISED ORTHOTIC SERVICES LTD,724407,-0.01,616 9753 09,
Department of Health,CT Revenue Funds,06-Mar-19,Special Seating,Wheelchair Services,SPECIALISED ORTHOTIC SERVICES LTD,724407,47.63,616 9753 09,
Department of Health,CT Revenue Funds,06-Mar-19,Special Seating,Community Equipment Stores,ULTIMATE HEALTHCARE,247315,128,892 3302 24,
Department of Health,CT Revenue Funds,06-Mar-19,Special Seating,Community Equipment Stores,ULTIMATE HEALTHCARE,247315,640,892 3302 24,
Department of Health,CT Revenue Funds,06-Mar-19,Special Seating,Community Equipment Stores,ULTIMATE HEALTHCARE,247316,128,892 3302 24,
Department of Health,CT Revenue Funds,06-Mar-19,Special Seating,Community Equipment Stores,ULTIMATE HEALTHCARE,247316,640,892 3302 24,
Department of Health,CT Revenue Funds,06-Mar-19,Special Seating,Community Equipment Stores,ULTIMATE HEALTHCARE,247317,640,892 3302 24,
Department of Health,CT Revenue Funds,06-Mar-19,Special Seating,Community Equipment Stores,ULTIMATE HEALTHCARE,247317,128,892 3302 24,
Department of Health,CT Revenue Funds,06-Mar-19,Special Seating,Community Equipment Stores,ULTIMATE HEALTHCARE,247318,128,892 3302 24,
Department of Health,CT Revenue Funds,06-Mar-19,Special Seating,Community Equipment Stores,ULTIMATE HEALTHCARE,247318,640,892 3302 24,
Department of Health,CT Revenue Funds,06-Mar-19,Special Seating,Community Equipment Stores,ULTIMATE HEALTHCARE,247331,640,892 3302 24,
Department of Health,CT Revenue Funds,06-Mar-19,Special Seating,Community Equipment Stores,ULTIMATE HEALTHCARE,247331,128,892 3302 24,
Department of Health,CT Revenue Funds,06-Mar-19,Special Seating,Community Equipment Stores,ABLEWORLD,38974,390.8,741 7775 10,
Department of Health,CT Revenue Funds,06-Mar-19,Special Seating,Community Equipment Stores,ABLEWORLD,38974,1954,741 7775 10,
Department of Health,CT Revenue Funds,06-Mar-19,Special Seating,Community Equipment Stores,PERMOBIL LTD,516151,613,780 130 457,
Department of Health,CT Revenue Funds,06-Mar-19,Special Seating,Community Equipment Stores,PERMOBIL LTD,516151,122.6,780 130 457,
Department of Health,CT Revenue Funds,06-Mar-19,Special Seating,Community Equipment Stores,PERMOBIL LTD,516152,613,780 130 457,
Department of Health,CT Revenue Funds,06-Mar-19,Special Seating,Community Equipment Stores,PERMOBIL LTD,516152,122.6,780 130 457,
Department of Health,CT Revenue Funds,06-Mar-19,Special Seating,Community Equipment Stores,PERMOBIL LTD,516153,122.6,780 130 457,
Department of Health,CT Revenue Funds,06-Mar-19,Special Seating,Community Equipment Stores,PERMOBIL LTD,516153,613,780 130 457,
Department of Health,CT Revenue Funds,06-Mar-19,Staff Lottery,Payables,STAFF LOTTERY,RE-ISSUE LOTTERY,25,,
Department of Health,CT Revenue Funds,06-Mar-19,Staff Uniforms & Clothing,Telford North Community Nursing,BECTON DICKINSON (CME) U.K. LTD,155183,3,776 588 167,
Department of Health,CT Revenue Funds,06-Mar-19,Staff Uniforms & Clothing,Telford North Community Nursing,BECTON DICKINSON (CME) U.K. LTD,155183,5.28,776 588 167,
Department of Health,CT Revenue Funds,06-Mar-19,Staff Uniforms & Clothing,Telford North Community Nursing,BECTON DICKINSON (CME) U.K. LTD,155183,15,776 588 167,
Department of Health,CT Revenue Funds,06-Mar-19,Staff Uniforms & Clothing,Telford North Community Nursing,BECTON DICKINSON (CME) U.K. LTD,155183,26.39,776 588 167,
Department of Health,CT Revenue Funds,06-Mar-19,Staff Uniforms & Clothing,Ludlow Hospital Catering,NISBETS,18483504,25.98,974 8030 00,
Department of Health,CT Revenue Funds,06-Mar-19,Staff Uniforms & Clothing,Ludlow Hospital Catering,NISBETS,18483504,5.2,974 8030 00,
Department of Health,CT Revenue Funds,06-Mar-19,Staff Uniforms & Clothing,Ludlow Hospital Catering,NISBETS,18483504,-0.01,974 8030 00,
Department of Health,CT Revenue Funds,06-Mar-19,Staff Uniforms & Clothing,Ludlow Hospital Catering,NISBETS,18483504,5.2,974 8030 00,
Department of Health,CT Revenue Funds,06-Mar-19,Staff Uniforms & Clothing,Ludlow Hospital Catering,NISBETS,18483504,-5.2,974 8030 00,
Department of Health,CT Revenue Funds,06-Mar-19,Staff Uniforms & Clothing,Ludlow Hospital Inpatient Wards,ARROW COUNTY SUPPLIES,4777584,3.47,163 0377 79,
Department of Health,CT Revenue Funds,06-Mar-19,Staff Uniforms & Clothing,Ludlow Hospital Inpatient Wards,ARROW COUNTY SUPPLIES,4777584,17.35,163 0377 79,
Department of Health,CT Revenue Funds,06-Mar-19,Staff Uniforms & Clothing,Ludlow Hospital Inpatient Wards,ARROW COUNTY SUPPLIES,4777584,1.04,163 0377 79,
Department of Health,CT Revenue Funds,06-Mar-19,Staff Uniforms & Clothing,Ludlow Hospital Inpatient Wards,ARROW COUNTY SUPPLIES,4777584,3.47,163 0377 79,
Department of Health,CT Revenue Funds,06-Mar-19,Staff Uniforms & Clothing,Ludlow Hospital Inpatient Wards,ARROW COUNTY SUPPLIES,4777584,1.04,163 0377 79,
Department of Health,CT Revenue Funds,06-Mar-19,Staff Uniforms & Clothing,Ludlow Hospital Inpatient Wards,ARROW COUNTY SUPPLIES,4777584,-17.35,163 0377 79,
Department of Health,CT Revenue Funds,06-Mar-19,Staff Uniforms & Clothing,Ludlow Hospital Inpatient Wards,ARROW COUNTY SUPPLIES,4777584,-1.04,163 0377 79,
Department of Health,CT Revenue Funds,06-Mar-19,Staff Uniforms & Clothing,Ludlow Hospital Inpatient Wards,ARROW COUNTY SUPPLIES,4777584,-3.47,163 0377 79,
Department of Health,CT Revenue Funds,06-Mar-19,Staff Uniforms & Clothing,Ludlow Hospital Inpatient Wards,ARROW COUNTY SUPPLIES,4777584,-0.21,163 0377 79,
Department of Health,CT Revenue Funds,06-Mar-19,Staff Uniforms & Clothing,Ludlow Hospital Inpatient Wards,ARROW COUNTY SUPPLIES,4777584,17.35,163 0377 79,
Department of Health,CT Revenue Funds,06-Mar-19,Staff Uniforms & Clothing,Ludlow Hospital Inpatient Wards,ARROW COUNTY SUPPLIES,4777584,0.21,163 0377 79,
Department of Health,CT Revenue Funds,06-Mar-19,Staff Uniforms & Clothing,Ludlow Hospital Inpatient Wards,ARROW COUNTY SUPPLIES,4777584,0.21,163 0377 79,
Department of Health,CT Revenue Funds,06-Mar-19,Staff Uniforms & Clothing,Ludlow Hospital Inpatient Wards,ARROW COUNTY SUPPLIES,4778009,0.21,163 0377 79,
Department of Health,CT Revenue Funds,06-Mar-19,Staff Uniforms & Clothing,Ludlow Hospital Inpatient Wards,ARROW COUNTY SUPPLIES,4778009,1.04,163 0377 79,
Department of Health,CT Revenue Funds,06-Mar-19,Staff Uniforms & Clothing,Ludlow Hospital Inpatient Wards,ARROW COUNTY SUPPLIES,4778009,3.47,163 0377 79,
Department of Health,CT Revenue Funds,06-Mar-19,Staff Uniforms & Clothing,Ludlow Hospital Inpatient Wards,ARROW COUNTY SUPPLIES,4778009,17.35,163 0377 79,
Department of Health,CT Revenue Funds,06-Mar-19,Staff Uniforms & Clothing,Telford Public Health Nursing Service,SIMON JERSEY LTD,8630611,1.59,732 3615 53,
Department of Health,CT Revenue Funds,06-Mar-19,Staff Uniforms & Clothing,Telford Public Health Nursing Service,SIMON JERSEY LTD,8630611,-1,732 3615 53,
Department of Health,CT Revenue Funds,06-Mar-19,Staff Uniforms & Clothing,Telford Public Health Nursing Service,SIMON JERSEY LTD,8630611,7.95,732 3615 53,
Department of Health,CT Revenue Funds,06-Mar-19,Staff Uniforms & Clothing,Telford Public Health Nursing Service,SIMON JERSEY LTD,8630611,5.4,732 3615 53,
Department of Health,CT Revenue Funds,06-Mar-19,Staff Uniforms & Clothing,Telford Public Health Nursing Service,SIMON JERSEY LTD,8630611,1.08,732 3615 53,
Department of Health,CT Revenue Funds,06-Mar-19,Staff Uniforms & Clothing,Telford Public Health Nursing Service,SIMON JERSEY LTD,8630611,-0.2,732 3615 53,
Department of Health,CT Revenue Funds,06-Mar-19,Staff Uniforms & Clothing,Telford Public Health Nursing Service,SIMON JERSEY LTD,8634147,-0.06,732 3615 53,
Department of Health,CT Revenue Funds,06-Mar-19,Staff Uniforms & Clothing,Telford Public Health Nursing Service,SIMON JERSEY LTD,8634147,2.06,732 3615 53,
Department of Health,CT Revenue Funds,06-Mar-19,Staff Uniforms & Clothing,Telford Public Health Nursing Service,SIMON JERSEY LTD,8634147,10.28,732 3615 53,
Department of Health,CT Revenue Funds,06-Mar-19,Staff Uniforms & Clothing,Telford Public Health Nursing Service,SIMON JERSEY LTD,8634147,-0.29,732 3615 53,
Department of Health,CT Revenue Funds,06-Mar-19,Staff Uniforms & Clothing,Whitchurch Hospital Hotel Services,SIMON JERSEY LTD,8648265,3.36,732 3615 53,
Department of Health,CT Revenue Funds,06-Mar-19,Staff Uniforms & Clothing,Whitchurch Hospital Hotel Services,SIMON JERSEY LTD,8648265,16.8,732 3615 53,
Department of Health,CT Revenue Funds,06-Mar-19,Staff Uniforms & Clothing,Telford North Community Nursing,SIMON JERSEY LTD,8651891,23.85,732 3615 53,
Department of Health,CT Revenue Funds,06-Mar-19,Staff Uniforms & Clothing,Telford North Community Nursing,SIMON JERSEY LTD,8651891,8.1,732 3615 53,
Department of Health,CT Revenue Funds,06-Mar-19,Staff Uniforms & Clothing,Telford North Community Nursing,SIMON JERSEY LTD,8651891,15.56,732 3615 53,
Department of Health,CT Revenue Funds,06-Mar-19,Staff Uniforms & Clothing,Telford North Community Nursing,SIMON JERSEY LTD,8651891,-0.6,732 3615 53,
Department of Health,CT Revenue Funds,06-Mar-19,Staff Uniforms & Clothing,Telford North Community Nursing,SIMON JERSEY LTD,8651891,4.77,732 3615 53,
Department of Health,CT Revenue Funds,06-Mar-19,Staff Uniforms & Clothing,Telford North Community Nursing,SIMON JERSEY LTD,8651891,1.62,732 3615 53,
Department of Health,CT Revenue Funds,06-Mar-19,Staff Uniforms & Clothing,Telford North Community Nursing,SIMON JERSEY LTD,8651891,3.11,732 3615 53,
Department of Health,CT Revenue Funds,06-Mar-19,Staff Uniforms & Clothing,Telford North Community Nursing,SIMON JERSEY LTD,8651891,-3,732 3615 53,
Department of Health,CT Revenue Funds,06-Mar-19,Staff Uniforms & Clothing,Telford Public Health Nursing Service,SIMON JERSEY LTD,8662140,-4.25,732 3615 53,
Department of Health,CT Revenue Funds,06-Mar-19,Staff Uniforms & Clothing,Telford Public Health Nursing Service,SIMON JERSEY LTD,8662140,0.54,732 3615 53,
Department of Health,CT Revenue Funds,06-Mar-19,Staff Uniforms & Clothing,Telford Public Health Nursing Service,SIMON JERSEY LTD,8662140,2.7,732 3615 53,
Department of Health,CT Revenue Funds,06-Mar-19,Staff Uniforms & Clothing,Telford Public Health Nursing Service,SIMON JERSEY LTD,8662140,11.83,732 3615 53,
Department of Health,CT Revenue Funds,06-Mar-19,Staff Uniforms & Clothing,Telford Public Health Nursing Service,SIMON JERSEY LTD,8662140,-0.85,732 3615 53,
Department of Health,CT Revenue Funds,06-Mar-19,Staff Uniforms & Clothing,Telford Public Health Nursing Service,SIMON JERSEY LTD,8662140,2.37,732 3615 53,
Department of Health,CT Revenue Funds,06-Mar-19,Staff Uniforms & Clothing,Oswestry DAART,SIMON JERSEY LTD,8663418,-0.4,732 3615 53,
Department of Health,CT Revenue Funds,06-Mar-19,Staff Uniforms & Clothing,Oswestry DAART,SIMON JERSEY LTD,8663418,1.08,732 3615 53,
Department of Health,CT Revenue Funds,06-Mar-19,Staff Uniforms & Clothing,Oswestry DAART,SIMON JERSEY LTD,8663418,3.18,732 3615 53,
Department of Health,CT Revenue Funds,06-Mar-19,Staff Uniforms & Clothing,Oswestry DAART,SIMON JERSEY LTD,8663418,5.4,732 3615 53,
Department of Health,CT Revenue Funds,06-Mar-19,Staff Uniforms & Clothing,Oswestry DAART,SIMON JERSEY LTD,8663418,15.9,732 3615 53,
Department of Health,CT Revenue Funds,06-Mar-19,Staff Uniforms & Clothing,Oswestry DAART,SIMON JERSEY LTD,8663418,-2,732 3615 53,
Department of Health,CT Revenue Funds,06-Mar-19,Staff Uniforms & Clothing,Whitchurch Hospital Domestics,SIMON JERSEY LTD,8665685,25.2,732 3615 53,
Department of Health,CT Revenue Funds,06-Mar-19,Staff Uniforms & Clothing,Whitchurch Hospital Domestics,SIMON JERSEY LTD,8665685,5.04,732 3615 53,
Department of Health,CT Revenue Funds,06-Mar-19,Staff Uniforms & Clothing,Bridgnorth Hospital Inpatient Ward,SIMON JERSEY LTD,8665723,-0.4,732 3615 53,
Department of Health,CT Revenue Funds,06-Mar-19,Staff Uniforms & Clothing,Bridgnorth Hospital Inpatient Ward,SIMON JERSEY LTD,8665723,1.08,732 3615 53,
Department of Health,CT Revenue Funds,06-Mar-19,Staff Uniforms & Clothing,Bridgnorth Hospital Inpatient Ward,SIMON JERSEY LTD,8665723,3.18,732 3615 53,
Department of Health,CT Revenue Funds,06-Mar-19,Staff Uniforms & Clothing,Bridgnorth Hospital Inpatient Ward,SIMON JERSEY LTD,8665723,-2,732 3615 53,
Department of Health,CT Revenue Funds,06-Mar-19,Staff Uniforms & Clothing,Bridgnorth Hospital Inpatient Ward,SIMON JERSEY LTD,8665723,5.4,732 3615 53,
Department of Health,CT Revenue Funds,06-Mar-19,Staff Uniforms & Clothing,Bridgnorth Hospital Inpatient Ward,SIMON JERSEY LTD,8665723,15.9,732 3615 53,
Department of Health,CT Revenue Funds,06-Mar-19,Staff Uniforms & Clothing,Bridgnorth Hospital Inpatient Ward,SIMON JERSEY LTD,8665726,1.77,732 3615 53,
Department of Health,CT Revenue Funds,06-Mar-19,Staff Uniforms & Clothing,Bridgnorth Hospital Inpatient Ward,SIMON JERSEY LTD,8665726,1.74,732 3615 53,
Department of Health,CT Revenue Funds,06-Mar-19,Staff Uniforms & Clothing,Bridgnorth Hospital Inpatient Ward,SIMON JERSEY LTD,8665726,1.56,732 3615 53,
Department of Health,CT Revenue Funds,06-Mar-19,Staff Uniforms & Clothing,Bridgnorth Hospital Inpatient Ward,SIMON JERSEY LTD,8665726,-0.74,732 3615 53,
Department of Health,CT Revenue Funds,06-Mar-19,Staff Uniforms & Clothing,Bridgnorth Hospital Inpatient Ward,SIMON JERSEY LTD,8665726,31.48,732 3615 53,
Department of Health,CT Revenue Funds,06-Mar-19,Staff Uniforms & Clothing,Bridgnorth Hospital Inpatient Ward,SIMON JERSEY LTD,8665726,2.16,732 3615 53,
Department of Health,CT Revenue Funds,06-Mar-19,Staff Uniforms & Clothing,Bridgnorth Hospital Inpatient Ward,SIMON JERSEY LTD,8665726,8.68,732 3615 53,
Department of Health,CT Revenue Funds,06-Mar-19,Staff Uniforms & Clothing,Bridgnorth Hospital Inpatient Ward,SIMON JERSEY LTD,8665726,8.86,732 3615 53,
Department of Health,CT Revenue Funds,06-Mar-19,Staff Uniforms & Clothing,Bridgnorth Hospital Inpatient Ward,SIMON JERSEY LTD,8665726,7.78,732 3615 53,
Department of Health,CT Revenue Funds,06-Mar-19,Staff Uniforms & Clothing,Bridgnorth Hospital Inpatient Ward,SIMON JERSEY LTD,8665726,-3.68,732 3615 53,
Department of Health,CT Revenue Funds,06-Mar-19,Staff Uniforms & Clothing,Bridgnorth Hospital Inpatient Ward,SIMON JERSEY LTD,8665726,6.3,732 3615 53,
Department of Health,CT Revenue Funds,06-Mar-19,Staff Uniforms & Clothing,Bridgnorth Hospital Inpatient Ward,SIMON JERSEY LTD,8665726,10.8,732 3615 53,
Department of Health,CT Revenue Funds,06-Mar-19,Staff Uniforms & Clothing,Bridgnorth Hospital Inpatient Ward,SIMON JERSEY LTD,8665992,35.44,732 3615 53,
Department of Health,CT Revenue Funds,06-Mar-19,Staff Uniforms & Clothing,Bridgnorth Hospital Inpatient Ward,SIMON JERSEY LTD,8665992,17.36,732 3615 53,
Department of Health,CT Revenue Funds,06-Mar-19,Staff Uniforms & Clothing,Bridgnorth Hospital Inpatient Ward,SIMON JERSEY LTD,8665992,3.11,732 3615 53,
Department of Health,CT Revenue Funds,06-Mar-19,Staff Uniforms & Clothing,Bridgnorth Hospital Inpatient Ward,SIMON JERSEY LTD,8665992,3.47,732 3615 53,
Department of Health,CT Revenue Funds,06-Mar-19,Staff Uniforms & Clothing,Bridgnorth Hospital Inpatient Ward,SIMON JERSEY LTD,8665992,3.54,732 3615 53,
Department of Health,CT Revenue Funds,06-Mar-19,Staff Uniforms & Clothing,Bridgnorth Hospital Inpatient Ward,SIMON JERSEY LTD,8665992,7.09,732 3615 53,
Department of Health,CT Revenue Funds,06-Mar-19,Staff Uniforms & Clothing,Bridgnorth Hospital Inpatient Ward,SIMON JERSEY LTD,8665992,17.72,732 3615 53,
Department of Health,CT Revenue Funds,06-Mar-19,Staff Uniforms & Clothing,Bridgnorth Hospital Inpatient Ward,SIMON JERSEY LTD,8665992,15.56,732 3615 53,
Department of Health,CT Revenue Funds,06-Mar-19,Staff Uniforms & Clothing,North West Shropshire Interdisciplinary Teams,SIMON JERSEY LTD,8666112,-1.62,732 3615 53,
Department of Health,CT Revenue Funds,06-Mar-19,Staff Uniforms & Clothing,North West Shropshire Interdisciplinary Teams,SIMON JERSEY LTD,8666112,0.33,732 3615 53,
Department of Health,CT Revenue Funds,06-Mar-19,Staff Uniforms & Clothing,North West Shropshire Interdisciplinary Teams,SIMON JERSEY LTD,8666112,-4.5,732 3615 53,
Department of Health,CT Revenue Funds,06-Mar-19,Staff Uniforms & Clothing,North West Shropshire Interdisciplinary Teams,SIMON JERSEY LTD,8666112,1.65,732 3615 53,
Department of Health,CT Revenue Funds,06-Mar-19,Staff Uniforms & Clothing,North West Shropshire Interdisciplinary Teams,SIMON JERSEY LTD,8666112,-8.1,732 3615 53,
Department of Health,CT Revenue Funds,06-Mar-19,Staff Uniforms & Clothing,North West Shropshire Interdisciplinary Teams,SIMON JERSEY LTD,8666112,-22.5,732 3615 53,
Department of Health,CT Revenue Funds,06-Mar-19,Staff Uniforms & Clothing,Telford Wound Care pilot,SIMON JERSEY LTD,8666386,3.11,732 3615 53,
Department of Health,CT Revenue Funds,06-Mar-19,Staff Uniforms & Clothing,Telford Wound Care pilot,SIMON JERSEY LTD,8666386,15.56,732 3615 53,
Department of Health,CT Revenue Funds,06-Mar-19,Staff Uniforms & Clothing,Telford South Community Nursing,SIMON JERSEY LTD,8666982,1.08,732 3615 53,
Department of Health,CT Revenue Funds,06-Mar-19,Staff Uniforms & Clothing,Telford South Community Nursing,SIMON JERSEY LTD,8666982,-1.12,732 3615 53,
Department of Health,CT Revenue Funds,06-Mar-19,Staff Uniforms & Clothing,Telford South Community Nursing,SIMON JERSEY LTD,8666982,25.6,732 3615 53,
Department of Health,CT Revenue Funds,06-Mar-19,Staff Uniforms & Clothing,Telford South Community Nursing,SIMON JERSEY LTD,8666982,5.4,732 3615 53,
Department of Health,CT Revenue Funds,06-Mar-19,Staff Uniforms & Clothing,Telford South Community Nursing,SIMON JERSEY LTD,8666982,-5.62,732 3615 53,
Department of Health,CT Revenue Funds,06-Mar-19,Staff Uniforms & Clothing,Telford South Community Nursing,SIMON JERSEY LTD,8666982,5.12,732 3615 53,
Department of Health,CT Revenue Funds,06-Mar-19,Staff Uniforms & Clothing,Bridgnorth Hospital Minor Injuries Unit,SIMON JERSEY LTD,8666985,-2.81,732 3615 53,
Department of Health,CT Revenue Funds,06-Mar-19,Staff Uniforms & Clothing,Bridgnorth Hospital Minor Injuries Unit,SIMON JERSEY LTD,8666985,2.56,732 3615 53,
Department of Health,CT Revenue Funds,06-Mar-19,Staff Uniforms & Clothing,Bridgnorth Hospital Minor Injuries Unit,SIMON JERSEY LTD,8666985,-0.56,732 3615 53,
Department of Health,CT Revenue Funds,06-Mar-19,Staff Uniforms & Clothing,Bridgnorth Hospital Minor Injuries Unit,SIMON JERSEY LTD,8666985,12.8,732 3615 53,
Department of Health,CT Revenue Funds,06-Mar-19,Staff Uniforms & Clothing,Shrewsbury and Atcham North Interdisciplinary Teams,SIMON JERSEY LTD,8668567,-2.81,732 3615 53,
Department of Health,CT Revenue Funds,06-Mar-19,Staff Uniforms & Clothing,Shrewsbury and Atcham North Interdisciplinary Teams,SIMON JERSEY LTD,8668567,2.56,732 3615 53,
Department of Health,CT Revenue Funds,06-Mar-19,Staff Uniforms & Clothing,Shrewsbury and Atcham North Interdisciplinary Teams,SIMON JERSEY LTD,8668567,0.54,732 3615 53,
Department of Health,CT Revenue Funds,06-Mar-19,Staff Uniforms & Clothing,Shrewsbury and Atcham North Interdisciplinary Teams,SIMON JERSEY LTD,8668567,2.7,732 3615 53,
Department of Health,CT Revenue Funds,06-Mar-19,Staff Uniforms & Clothing,Shrewsbury and Atcham North Interdisciplinary Teams,SIMON JERSEY LTD,8668567,12.8,732 3615 53,
Department of Health,CT Revenue Funds,06-Mar-19,Staff Uniforms & Clothing,Shrewsbury and Atcham North Interdisciplinary Teams,SIMON JERSEY LTD,8668567,-0.56,732 3615 53,
Department of Health,CT Revenue Funds,06-Mar-19,Staff Uniforms & Clothing,Shrewsbury and Atcham North Interdisciplinary Teams,SIMON JERSEY LTD,8668871,38.9,732 3615 53,
Department of Health,CT Revenue Funds,06-Mar-19,Staff Uniforms & Clothing,Shrewsbury and Atcham North Interdisciplinary Teams,SIMON JERSEY LTD,8668871,7.78,732 3615 53,
Department of Health,CT Revenue Funds,06-Mar-19,Staff Uniforms & Clothing,Shrewsbury and Atcham North Interdisciplinary Teams,SIMON JERSEY LTD,8670077,8.1,732 3615 53,
Department of Health,CT Revenue Funds,06-Mar-19,Staff Uniforms & Clothing,Shrewsbury and Atcham North Interdisciplinary Teams,SIMON JERSEY LTD,8670077,15.9,732 3615 53,
Department of Health,CT Revenue Funds,06-Mar-19,Staff Uniforms & Clothing,Shrewsbury and Atcham North Interdisciplinary Teams,SIMON JERSEY LTD,8670077,1.62,732 3615 53,
Department of Health,CT Revenue Funds,06-Mar-19,Staff Uniforms & Clothing,Shrewsbury and Atcham North Interdisciplinary Teams,SIMON JERSEY LTD,8670077,3.18,732 3615 53,
Department of Health,CT Revenue Funds,06-Mar-19,Staff Uniforms & Clothing,Shrewsbury and Atcham North Interdisciplinary Teams,SIMON JERSEY LTD,8670108,15.42,732 3615 53,
Department of Health,CT Revenue Funds,06-Mar-19,Staff Uniforms & Clothing,Shrewsbury and Atcham North Interdisciplinary Teams,SIMON JERSEY LTD,8670108,5.4,732 3615 53,
Department of Health,CT Revenue Funds,06-Mar-19,Staff Uniforms & Clothing,Shrewsbury and Atcham North Interdisciplinary Teams,SIMON JERSEY LTD,8670108,1.08,732 3615 53,
Department of Health,CT Revenue Funds,06-Mar-19,Staff Uniforms & Clothing,Shrewsbury and Atcham North Interdisciplinary Teams,SIMON JERSEY LTD,8670108,3.08,732 3615 53,
Department of Health,CT Revenue Funds,06-Mar-19,Staff Uniforms & Clothing,North West Shropshire Interdisciplinary Teams,SIMON JERSEY LTD,8670944,-1.65,732 3615 53,
Department of Health,CT Revenue Funds,06-Mar-19,Staff Uniforms & Clothing,North West Shropshire Interdisciplinary Teams,SIMON JERSEY LTD,8670944,8.1,732 3615 53,
Department of Health,CT Revenue Funds,06-Mar-19,Staff Uniforms & Clothing,North West Shropshire Interdisciplinary Teams,SIMON JERSEY LTD,8670944,22.5,732 3615 53,
Department of Health,CT Revenue Funds,06-Mar-19,Staff Uniforms & Clothing,North West Shropshire Interdisciplinary Teams,SIMON JERSEY LTD,8670944,4.5,732 3615 53,
Department of Health,CT Revenue Funds,06-Mar-19,Staff Uniforms & Clothing,North West Shropshire Interdisciplinary Teams,SIMON JERSEY LTD,8670944,1.62,732 3615 53,
Department of Health,CT Revenue Funds,06-Mar-19,Staff Uniforms & Clothing,North West Shropshire Interdisciplinary Teams,SIMON JERSEY LTD,8670944,-0.33,732 3615 53,
Department of Health,CT Revenue Funds,06-Mar-19,Staff Uniforms & Clothing,Shrewsbury and Atcham North Interdisciplinary Teams,SIMON JERSEY LTD,8674149,1.59,732 3615 53,
Department of Health,CT Revenue Funds,06-Mar-19,Staff Uniforms & Clothing,Shrewsbury and Atcham North Interdisciplinary Teams,SIMON JERSEY LTD,8674149,7.95,732 3615 53,
Department of Health,CT Revenue Funds,06-Mar-19,Staff Uniforms & Clothing,Telford Public Health Nursing Service,MELTEMI COMPANY CLOTHING LTD,INV/1968326,-5.89,198 0705 37,
Department of Health,CT Revenue Funds,06-Mar-19,Staff Uniforms & Clothing,Telford Public Health Nursing Service,MELTEMI COMPANY CLOTHING LTD,INV/1968326,45.9,198 0705 37,
Department of Health,CT Revenue Funds,06-Mar-19,Staff Uniforms & Clothing,Telford Public Health Nursing Service,MELTEMI COMPANY CLOTHING LTD,INV/1968326,9.18,198 0705 37,
Department of Health,CT Revenue Funds,06-Mar-19,Staff Uniforms & Clothing,Telford Public Health Nursing Service,MELTEMI COMPANY CLOTHING LTD,INV/1968326,-29.45,198 0705 37,
Department of Health,CT Revenue Funds,06-Mar-19,Surgical Instruments : General,APCS Gynaecology,MEDISAVE (UK) LTD,1509192,21.42,760 4603 46,
Department of Health,CT Revenue Funds,06-Mar-19,Surgical Instruments : General,APCS Gynaecology,MEDISAVE (UK) LTD,1509192,107.12,760 4603 46,
Department of Health,CT Revenue Funds,06-Mar-19,Surgical Instruments : General,APCS Gynaecology,MEDIPLUS LTD,SIN225404,32.59,442 4760 56,
Department of Health,CT Revenue Funds,06-Mar-19,Surgical Instruments : General,APCS Gynaecology,MEDIPLUS LTD,SIN225404,19.55,442 4760 56,
Department of Health,CT Revenue Funds,06-Mar-19,Surgical Instruments : General,APCS Gynaecology,MEDIPLUS LTD,SIN225404,13.04,442 4760 56,
Department of Health,CT Revenue Funds,06-Mar-19,Surgical Instruments : General,APCS Gynaecology,MEDIPLUS LTD,SIN225404,252.9,442 4760 56,
Department of Health,CT Revenue Funds,06-Mar-19,Surgical Instruments : General,APCS Gynaecology,MEDIPLUS LTD,SIN225404,252.9,442 4760 56,
Department of Health,CT Revenue Funds,06-Mar-19,Surgical Instruments : General,APCS Gynaecology,MEDIPLUS LTD,SIN225404,84.3,442 4760 56,
Department of Health,CT Revenue Funds,06-Mar-19,Surgical Instruments : General,APCS Gynaecology,MEDIPLUS LTD,SIN225404,126.45,442 4760 56,
Department of Health,CT Revenue Funds,06-Mar-19,Surgical Instruments : General,APCS Gynaecology,MEDIPLUS LTD,SIN225404,32.59,442 4760 56,
Department of Health,CT Revenue Funds,06-Mar-19,Surgical Instruments : General,APCS Gynaecology,MEDIPLUS LTD,SIN225404,60.7,442 4760 56,
Department of Health,CT Revenue Funds,06-Mar-19,Surgical Instruments : General,APCS Gynaecology,MEDIPLUS LTD,SIN225404,65.18,442 4760 56,
Department of Health,CT Revenue Funds,06-Mar-19,Surgical Instruments : General,APCS Gynaecology,MEDIPLUS LTD,SIN225404,97.77,442 4760 56,
Department of Health,CT Revenue Funds,06-Mar-19,Surgical Instruments : General,APCS Gynaecology,MEDIPLUS LTD,SIN225404,6.52,442 4760 56,
Department of Health,CT Revenue Funds,06-Mar-19,Surgical Instruments : General,APCS Gynaecology,MEDIPLUS LTD,SIN225404,50.58,442 4760 56,
Department of Health,CT Revenue Funds,06-Mar-19,Surgical Instruments : General,APCS Gynaecology,MEDIPLUS LTD,SIN225404,50.58,442 4760 56,
Department of Health,CT Revenue Funds,06-Mar-19,Surgical Instruments : General,APCS Gynaecology,MEDIPLUS LTD,SIN225404,16.86,442 4760 56,
Department of Health,CT Revenue Funds,06-Mar-19,Surgical Instruments : General,APCS Gynaecology,MEDIPLUS LTD,SIN225404,25.29,442 4760 56,
Department of Health,CT Revenue Funds,06-Mar-19,Surgical Instruments : General,APCS Gynaecology,MEDIPLUS LTD,SIN225404,6.52,442 4760 56,
Department of Health,CT Revenue Funds,06-Mar-19,Surgical Instruments : General,APCS Gynaecology,MEDIPLUS LTD,SIN225404,12.14,442 4760 56,
Department of Health,CT Revenue Funds,06-Mar-19,"Telephone Handsets,  Payphones & Cordless Phones",Bridgnorth Hospital Administration,MITEL NETWORKS LTD,99697656,21,301 9683 65,
Department of Health,CT Revenue Funds,06-Mar-19,"Telephone Handsets,  Payphones & Cordless Phones",Bridgnorth Hospital Administration,MITEL NETWORKS LTD,99697656,42,301 9683 65,
Department of Health,CT Revenue Funds,06-Mar-19,"Telephone Handsets,  Payphones & Cordless Phones",Bridgnorth Hospital Administration,MITEL NETWORKS LTD,99697656,105,301 9683 65,
Department of Health,CT Revenue Funds,06-Mar-19,"Telephone Handsets,  Payphones & Cordless Phones",Bridgnorth Hospital Administration,MITEL NETWORKS LTD,99697656,210,301 9683 65,
Department of Health,CT Revenue Funds,06-Mar-19,Telephone Installation & Maintenance,Bridgnorth Hospital Administration,MIT DYNAMIC TECHNOLOGIES LTD,3195,1485,802 7091 54,
Department of Health,CT Revenue Funds,06-Mar-19,Telephone Installation & Maintenance,Bridgnorth Hospital Administration,MIT DYNAMIC TECHNOLOGIES LTD,3195,297,802 7091 54,
Department of Health,CT Revenue Funds,06-Mar-19,Therapy Equipment & Materials,Shropshire Child Occupational Therapy,THE PEN COMPANY,19020752,-36.87,770 4795 04,
Department of Health,CT Revenue Funds,06-Mar-19,Therapy Equipment & Materials,Shropshire Child Occupational Therapy,THE PEN COMPANY,19020752,-36.87,770 4795 04,
Department of Health,CT Revenue Funds,06-Mar-19,Therapy Equipment & Materials,Shropshire Child Occupational Therapy,THE PEN COMPANY,19020752,36.87,770 4795 04,
Department of Health,CT Revenue Funds,06-Mar-19,Therapy Equipment & Materials,Shropshire Child Occupational Therapy,THE PEN COMPANY,19020752,36.87,770 4795 04,
Department of Health,CT Revenue Funds,06-Mar-19,Therapy Equipment & Materials,Shropshire Child Occupational Therapy,THE PEN COMPANY,19020752,30.72,770 4795 04,
Department of Health,CT Revenue Funds,06-Mar-19,Therapy Equipment & Materials,Shropshire Child Occupational Therapy,THE PEN COMPANY,19020752,30.72,770 4795 04,
Department of Health,CT Revenue Funds,06-Mar-19,Therapy Equipment & Materials,Shropshire Child Occupational Therapy,THE PEN COMPANY,19020752,6.14,770 4795 04,
Department of Health,CT Revenue Funds,06-Mar-19,Therapy Equipment & Materials,Shropshire Child Occupational Therapy,THE PEN COMPANY,19020752,0.01,770 4795 04,
Department of Health,CT Revenue Funds,06-Mar-19,Therapy Equipment & Materials,Shropshire Child Occupational Therapy,THE PEN COMPANY,19020752,0.01,770 4795 04,
Department of Health,CT Revenue Funds,06-Mar-19,Therapy Equipment & Materials,Shropshire Child Occupational Therapy,THE PEN COMPANY,19020752,6.14,770 4795 04,
Department of Health,CT Revenue Funds,06-Mar-19,Therapy Equipment & Materials,Child Speech and Language Therapy,CCS MEDIA LIMITED,3419662,25.6,385 1234 54,
Department of Health,CT Revenue Funds,06-Mar-19,Therapy Equipment & Materials,Child Speech and Language Therapy,CCS MEDIA LIMITED,3419662,25.6,385 1234 54,
Department of Health,CT Revenue Funds,06-Mar-19,Therapy Equipment & Materials,Child Speech and Language Therapy,CCS MEDIA LIMITED,3419662,127.98,385 1234 54,
Department of Health,CT Revenue Funds,06-Mar-19,Therapy Equipment & Materials,Child Speech and Language Therapy,CCS MEDIA LIMITED,3419662,127.98,385 1234 54,
Department of Health,CT Revenue Funds,06-Mar-19,Therapy Equipment & Materials,Child Speech and Language Therapy,CCS MEDIA LIMITED,3419662,127.98,385 1234 54,
Department of Health,CT Revenue Funds,06-Mar-19,Therapy Equipment & Materials,Child Speech and Language Therapy,CCS MEDIA LIMITED,3419662,19.12,385 1234 54,
Department of Health,CT Revenue Funds,06-Mar-19,Therapy Equipment & Materials,Child Speech and Language Therapy,CCS MEDIA LIMITED,3419662,95.6,385 1234 54,
Department of Health,CT Revenue Funds,06-Mar-19,Therapy Equipment & Materials,Child Speech and Language Therapy,CCS MEDIA LIMITED,3419662,25.6,385 1234 54,
Department of Health,CT Revenue Funds,06-Mar-19,Therapy Equipment & Materials,Child Speech and Language Therapy,CCS MEDIA LIMITED,3419788,48.71,385 1234 54,
Department of Health,CT Revenue Funds,06-Mar-19,Therapy Equipment & Materials,Child Speech and Language Therapy,CCS MEDIA LIMITED,3419788,243.54,385 1234 54,
Department of Health,CT Revenue Funds,06-Mar-19,Therapy Equipment & Materials,Shropshire Child Occupational Therapy,NOTTINGHAM REHAB SUPPLIES,97685726,-1.37,125 6886 44,
Department of Health,CT Revenue Funds,06-Mar-19,Therapy Equipment & Materials,Shropshire Child Occupational Therapy,NOTTINGHAM REHAB SUPPLIES,97685726,1.37,125 6886 44,
Department of Health,CT Revenue Funds,06-Mar-19,Therapy Equipment & Materials,Shropshire Child Occupational Therapy,NOTTINGHAM REHAB SUPPLIES,97685726,-0.01,125 6886 44,
Department of Health,CT Revenue Funds,06-Mar-19,Therapy Equipment & Materials,Shropshire Child Occupational Therapy,NOTTINGHAM REHAB SUPPLIES,97685726,1.37,125 6886 44,
Department of Health,CT Revenue Funds,06-Mar-19,Therapy Equipment & Materials,Shropshire Child Occupational Therapy,NOTTINGHAM REHAB SUPPLIES,97685726,1.37,125 6886 44,
Department of Health,CT Revenue Funds,06-Mar-19,Therapy Equipment & Materials,Shropshire Child Occupational Therapy,NOTTINGHAM REHAB SUPPLIES,97685726,1.37,125 6886 44,
Department of Health,CT Revenue Funds,06-Mar-19,Therapy Equipment & Materials,Shropshire Child Occupational Therapy,NOTTINGHAM REHAB SUPPLIES,97685726,-1.37,125 6886 44,
Department of Health,CT Revenue Funds,06-Mar-19,Therapy Equipment & Materials,Shropshire Child Occupational Therapy,NOTTINGHAM REHAB SUPPLIES,97685726,-1.37,125 6886 44,
Department of Health,CT Revenue Funds,06-Mar-19,Therapy Equipment & Materials,Shropshire Child Occupational Therapy,NOTTINGHAM REHAB SUPPLIES,97685726,-1.37,125 6886 44,
Department of Health,CT Revenue Funds,06-Mar-19,Therapy Equipment & Materials,Shropshire Child Occupational Therapy,NOTTINGHAM REHAB SUPPLIES,97685726,1.37,125 6886 44,
Department of Health,CT Revenue Funds,06-Mar-19,Therapy Equipment & Materials,Shropshire Child Occupational Therapy,NOTTINGHAM REHAB SUPPLIES,97685726,1.37,125 6886 44,
Department of Health,CT Revenue Funds,06-Mar-19,Therapy Equipment & Materials,Shropshire Child Occupational Therapy,NOTTINGHAM REHAB SUPPLIES,97685726,1.37,125 6886 44,
Department of Health,CT Revenue Funds,06-Mar-19,Therapy Equipment & Materials,Shropshire Child Occupational Therapy,NOTTINGHAM REHAB SUPPLIES,97685726,6.84,125 6886 44,
Department of Health,CT Revenue Funds,06-Mar-19,Therapy Equipment & Materials,Shropshire Child Occupational Therapy,NOTTINGHAM REHAB SUPPLIES,97685726,6.84,125 6886 44,
Department of Health,CT Revenue Funds,06-Mar-19,Therapy Equipment & Materials,Shropshire Child Occupational Therapy,NOTTINGHAM REHAB SUPPLIES,97685726,6.84,125 6886 44,
Department of Health,CT Revenue Funds,06-Mar-19,Therapy Equipment & Materials,Shropshire Child Occupational Therapy,THE CONSORTIUM FOR PURCHASING AND DISTRIBUTION LTD,C697240,7.79,,
Department of Health,CT Revenue Funds,06-Mar-19,Therapy Equipment & Materials,Shropshire Child Occupational Therapy,THE CONSORTIUM FOR PURCHASING AND DISTRIBUTION LTD,C697240,-0.16,,
Department of Health,CT Revenue Funds,06-Mar-19,Therapy Equipment & Materials,Shropshire Child Occupational Therapy,THE CONSORTIUM FOR PURCHASING AND DISTRIBUTION LTD,C697240,2.45,,
Department of Health,CT Revenue Funds,06-Mar-19,Therapy Equipment & Materials,Shropshire Child Occupational Therapy,THE CONSORTIUM FOR PURCHASING AND DISTRIBUTION LTD,C697240,4.56,,
Department of Health,CT Revenue Funds,06-Mar-19,Therapy Equipment & Materials,Shropshire Child Occupational Therapy,THE CONSORTIUM FOR PURCHASING AND DISTRIBUTION LTD,C697240,-2.1,,
Department of Health,CT Revenue Funds,06-Mar-19,Therapy Equipment & Materials,Shropshire Child Occupational Therapy,THE CONSORTIUM FOR PURCHASING AND DISTRIBUTION LTD,C697240,-1.12,,
Department of Health,CT Revenue Funds,06-Mar-19,Therapy Equipment & Materials,Shropshire Child Occupational Therapy,THE CONSORTIUM FOR PURCHASING AND DISTRIBUTION LTD,C697240,-0.8,,
Department of Health,CT Revenue Funds,06-Mar-19,Therapy Equipment & Materials,Shropshire Child Occupational Therapy,THE CONSORTIUM FOR PURCHASING AND DISTRIBUTION LTD,C697240,-0.22,,
Department of Health,CT Revenue Funds,06-Mar-19,Therapy Equipment & Materials,Shropshire Child Occupational Therapy,THE CONSORTIUM FOR PURCHASING AND DISTRIBUTION LTD,C697240,-0.42,,
Department of Health,CT Revenue Funds,06-Mar-19,Therapy Equipment & Materials,Shropshire Child Occupational Therapy,THE CONSORTIUM FOR PURCHASING AND DISTRIBUTION LTD,C697240,22.78,,
Department of Health,CT Revenue Funds,06-Mar-19,Therapy Equipment & Materials,Shropshire Child Occupational Therapy,THE CONSORTIUM FOR PURCHASING AND DISTRIBUTION LTD,C697240,12.29,,
Department of Health,CT Revenue Funds,06-Mar-19,Therapy Equipment & Materials,Shropshire Child Occupational Therapy,THE CONSORTIUM FOR PURCHASING AND DISTRIBUTION LTD,C697240,38.94,,
Department of Health,CT Revenue Funds,06-Mar-19,Therapy Services From Non-NHS Bodies,MSK Therapy,THE MADDOCKS CLINIC,INCREASE BACKDATED FROM APR2018-DEC18,12602,,
Department of Health,CT Revenue Funds,06-Mar-19,Therapy Services From Non-NHS Bodies,MSK Therapy,THE MADDOCKS CLINIC,Jan-19,21420,,
Department of Health,CT Revenue Funds,06-Mar-19,Training Expenses,Shropshire Child Occupational Therapy,LEARNING2PRACTICE LTD,719,2616,,
Department of Health,CT Revenue Funds,06-Mar-19,Training Expenses,Dudley School Nurses,MINDFUL HORIZONS,MH-0031901,60,,
Department of Health,CT Revenue Funds,06-Mar-19,Travel & Subsistence,Library & Knowledge Service,DENISE FEATHERSTONE,TRAVEL 14/2-25/2/19,67.8,,
Department of Health,CT Revenue Funds,06-Mar-19,Travel & Subsistence,Library & Knowledge Service,JANET THORNHILL,TRAVEL 3/12/18-4/2/19,137.25,,
Department of Health,CT Revenue Funds,06-Mar-19,Travel & Subsistence,Library & Knowledge Service,MR ROGER BUCKLEY,TRAVEL 9/1-25/1/19,54,,
Department of Health,CT Revenue Funds,06-Mar-19,UNISON,Payables,UNISON,Feb-19,2375.41,,
Department of Health,CT Revenue Funds,06-Mar-19,Valuation Fees,SCHT Trustwide,VALUATION OFFICE AGENCY,2.50001E+13,2600,888848141,
Department of Health,CT Revenue Funds,06-Mar-19,Valuation Fees,SCHT Trustwide,VALUATION OFFICE AGENCY,2.50001E+13,520,888848141,
Department of Health,CT Revenue Funds,06-Mar-19,Vehicle Maintenance,Community Equipment Stores,SSH SELF DRIVE,21/744563/1,138.72,868311508,
Department of Health,CT Revenue Funds,06-Mar-19,Vehicle Maintenance,Community Equipment Stores,SSH SELF DRIVE,21/744563/1,-138.72,868311508,
Department of Health,CT Revenue Funds,06-Mar-19,Vehicle Maintenance,Community Equipment Stores,SSH SELF DRIVE,21/744563/1,693.58,868311508,
Department of Health,CT Revenue Funds,06-Mar-19,Water,Oswestry Minor Injuries Unit,HORIZON SOFT DRINKS LTD,157865,12.53,377 5375 11,
Department of Health,CT Revenue Funds,06-Mar-19,Water,Oswestry Minor Injuries Unit,HORIZON SOFT DRINKS LTD,157865,2.51,377 5375 11,
Department of Health,CT Revenue Funds,06-Mar-19,Water Cooler Rental,Corporate IT,HORIZON SOFT DRINKS LTD,157959,2.51,377 5375 11,
Department of Health,CT Revenue Funds,06-Mar-19,Water Cooler Rental,Corporate IT,HORIZON SOFT DRINKS LTD,157959,12.53,377 5375 11,
Department of Health,CT Revenue Funds,06-Mar-19,Water Cooler Rental,Bridgnorth Hospital Catering,WENLOCK WATER COOLERS,322684,226.72,771 4918 08,
Department of Health,CT Revenue Funds,06-Mar-19,Water Cooler Rental,Bridgnorth Hospital Catering,WENLOCK WATER COOLERS,322684,45.34,771 4918 08,
Department of Health,CT Revenue Funds,06-Mar-19,Water Cooler Rental,Continence Services,ANGEL SPRINGS LTD,4815037,8.07,828 382 407,
Department of Health,CT Revenue Funds,06-Mar-19,Water Cooler Rental,Continence Services,ANGEL SPRINGS LTD,4815037,1.61,828 382 407,
Department of Health,CT Revenue Funds,06-Mar-19,Water Cooler Rental,Wheelchair Services,ANGEL SPRINGS LTD,4815037,1.62,828 382 407,
Department of Health,CT Revenue Funds,06-Mar-19,Water Cooler Rental,Wheelchair Services,ANGEL SPRINGS LTD,4815037,8.06,828 382 407,
Department of Health,CT Revenue Funds,06-Mar-19,Water Cooler Rental,Community Neuro Rehabilitation Team (CNRT),ANGEL SPRINGS LTD,4815037,1.61,828 382 407,
Department of Health,CT Revenue Funds,06-Mar-19,Water Cooler Rental,Community Neuro Rehabilitation Team (CNRT),ANGEL SPRINGS LTD,4815037,8.07,828 382 407,
Department of Health,CT Revenue Funds,06-Mar-19,Wheelchair Batteries & Chargers,Wheelchair Services,SUNRISE MEDICAL,19UI067501,258.08,388 6068 02,
Department of Health,CT Revenue Funds,06-Mar-19,Wheelchair Batteries & Chargers,Wheelchair Services,SUNRISE MEDICAL,19UI067501,51.62,388 6068 02,
Department of Health,CT Revenue Funds,06-Mar-19,Wheelchair Batteries & Chargers,Wheelchair Services,SUNRISE MEDICAL,19UI067501,-51.62,388 6068 02,
Department of Health,CT Revenue Funds,06-Mar-19,Wheelchair Batteries & Chargers,Wheelchair Services,SUNRISE MEDICAL,19UI067503,258.08,388 6068 02,
Department of Health,CT Revenue Funds,06-Mar-19,Wheelchair Batteries & Chargers,Wheelchair Services,SUNRISE MEDICAL,19UI067503,-51.62,388 6068 02,
Department of Health,CT Revenue Funds,06-Mar-19,Wheelchair Batteries & Chargers,Wheelchair Services,SUNRISE MEDICAL,19UI067503,51.62,388 6068 02,
Department of Health,CT Revenue Funds,06-Mar-19,Wheelchair Cushions,Wheelchair Services,QBITUS PRODUCTS,144820,5.19,525 8646 22,
Department of Health,CT Revenue Funds,06-Mar-19,Wheelchair Cushions,Wheelchair Services,QBITUS PRODUCTS,144820,25.95,525 8646 22,
Department of Health,CT Revenue Funds,06-Mar-19,Wheelchair Cushions,Wheelchair Services,SUNRISE MEDICAL,19UI064633,55.6,388 6068 02,
Department of Health,CT Revenue Funds,06-Mar-19,Wheelchair Cushions,Wheelchair Services,SUNRISE MEDICAL,19UI064633,278,388 6068 02,
Department of Health,CT Revenue Funds,06-Mar-19,Wheelchair Cushions,Wheelchair Services,SUNRISE MEDICAL,19UI065280,24.2,388 6068 02,
Department of Health,CT Revenue Funds,06-Mar-19,Wheelchair Cushions,Wheelchair Services,SUNRISE MEDICAL,19UI065280,121,388 6068 02,
Department of Health,CT Revenue Funds,06-Mar-19,Wheelchair Spares & Accessories,Wheelchair Services,QBITUS PRODUCTS,144819,11.33,525 8646 22,
Department of Health,CT Revenue Funds,06-Mar-19,Wheelchair Spares & Accessories,Wheelchair Services,QBITUS PRODUCTS,144819,56.65,525 8646 22,
Department of Health,CT Revenue Funds,06-Mar-19,Wheelchair Spares & Accessories,Wheelchair Services,INVACARE UK LTD,1921034798,435,840 9031 46,
Department of Health,CT Revenue Funds,06-Mar-19,Wheelchair Spares & Accessories,Wheelchair Services,INVACARE UK LTD,1921034798,87,840 9031 46,
Department of Health,CT Revenue Funds,06-Mar-19,Wheelchair Spares & Accessories,Wheelchair Services,INVACARE UK LTD,1921036663,41.66,840 9031 46,
Department of Health,CT Revenue Funds,06-Mar-19,Wheelchair Spares & Accessories,Wheelchair Services,INVACARE UK LTD,1921036663,8.33,840 9031 46,
Department of Health,CT Revenue Funds,06-Mar-19,Wheelchair Spares & Accessories,Wheelchair Services,INVACARE UK LTD,1921036663,7.15,840 9031 46,
Department of Health,CT Revenue Funds,06-Mar-19,Wheelchair Spares & Accessories,Wheelchair Services,INVACARE UK LTD,1921036663,35.74,840 9031 46,
Department of Health,CT Revenue Funds,06-Mar-19,Wheelchair Spares & Accessories,Wheelchair Services,INVACARE UK LTD,1921037230,19.37,840 9031 46,
Department of Health,CT Revenue Funds,06-Mar-19,Wheelchair Spares & Accessories,Wheelchair Services,INVACARE UK LTD,1921037230,96.86,840 9031 46,
Department of Health,CT Revenue Funds,06-Mar-19,Wheelchair Spares & Accessories,Wheelchair Services,INVACARE UK LTD,1921039656,-2.7,840 9031 46,
Department of Health,CT Revenue Funds,06-Mar-19,Wheelchair Spares & Accessories,Wheelchair Services,INVACARE UK LTD,1921039656,-4.83,840 9031 46,
Department of Health,CT Revenue Funds,06-Mar-19,Wheelchair Spares & Accessories,Wheelchair Services,INVACARE UK LTD,1921039656,7.53,840 9031 46,
Department of Health,CT Revenue Funds,06-Mar-19,Wheelchair Spares & Accessories,Wheelchair Services,INVACARE UK LTD,1921039656,37.64,840 9031 46,
Department of Health,CT Revenue Funds,06-Mar-19,Wheelchair Spares & Accessories,Wheelchair Services,INVACARE UK LTD,1921039656,-13.52,840 9031 46,
Department of Health,CT Revenue Funds,06-Mar-19,Wheelchair Spares & Accessories,Wheelchair Services,PENNY & GILES CONTROLS LTD,793572,-18.15,GB682443621,
Department of Health,CT Revenue Funds,06-Mar-19,Wheelchair Spares & Accessories,Wheelchair Services,PENNY & GILES CONTROLS LTD,793572,18.15,GB682443621,
Department of Health,CT Revenue Funds,06-Mar-19,Wheelchair Spares & Accessories,Wheelchair Services,PENNY & GILES CONTROLS LTD,793572,90.75,GB682443621,
Department of Health,CT Revenue Funds,06-Mar-19,Wheelchair Vouchers,Wheelchair Services,ABLEWORLD,38946,1131,741 7775 10,
Department of Health,CT Revenue Funds,06-Mar-19,Wheelchairs,Wheelchair Services,INVACARE UK LTD,1921031617,176.4,840 9031 46,
Department of Health,CT Revenue Funds,06-Mar-19,Wheelchairs,Wheelchair Services,INVACARE UK LTD,1921031617,882,840 9031 46,
Department of Health,CT Revenue Funds,06-Mar-19,Wheelchairs,Wheelchair Services,INVACARE UK LTD,1921038140,2250,840 9031 46,
Department of Health,CT Revenue Funds,06-Mar-19,Wheelchairs,Wheelchair Services,INVACARE UK LTD,1921038140,450,840 9031 46,
Department of Health,CT Revenue Funds,06-Mar-19,Wheelchairs,Wheelchair Services,INVACARE UK LTD,1921040147,1023,840 9031 46,
Department of Health,CT Revenue Funds,06-Mar-19,Wheelchairs,Wheelchair Services,INVACARE UK LTD,1921040147,204.6,840 9031 46,
Department of Health,CT Revenue Funds,06-Mar-19,Wheelchairs,Wheelchair Services,SUNRISE MEDICAL,19UI066600,349.8,388 6068 02,
Department of Health,CT Revenue Funds,06-Mar-19,Wheelchairs,Wheelchair Services,SUNRISE MEDICAL,19UI066600,1749,388 6068 02,
Department of Health,CT Revenue Funds,06-Mar-19,Wheelchairs,Wheelchair Services,SUNRISE MEDICAL,19UI066851,1202,388 6068 02,
Department of Health,CT Revenue Funds,06-Mar-19,Wheelchairs,Wheelchair Services,SUNRISE MEDICAL,19UI066851,240.4,388 6068 02,
Department of Health,CT Revenue Funds,06-Mar-19,Wheelchairs,Wheelchair Services,SUNRISE MEDICAL,19UI068481,2175,388 6068 02,
Department of Health,CT Revenue Funds,06-Mar-19,Wheelchairs,Wheelchair Services,SUNRISE MEDICAL,19UI068481,435,388 6068 02,
Department of Health,CT Revenue Funds,07-Mar-19,Absorbents Non X Ray Detectable,Bridgnorth Hospital Theatre,NHS SUPPLY CHAIN,1019236321,5.58,290 8858 54,
Department of Health,CT Revenue Funds,07-Mar-19,Absorbents Non X Ray Detectable,Bridgnorth Hospital Theatre,NHS SUPPLY CHAIN,1019236321,0.02,290 8858 54,
Department of Health,CT Revenue Funds,07-Mar-19,Absorbents Non X Ray Detectable,Bridgnorth Hospital Theatre,NHS SUPPLY CHAIN,1019236321,1.12,290 8858 54,
Department of Health,CT Revenue Funds,07-Mar-19,Absorbents Non X Ray Detectable,Tissue Viability Nurses (T&W),NHS SUPPLY CHAIN,1019236321,1.56,290 8858 54,
Department of Health,CT Revenue Funds,07-Mar-19,Absorbents Non X Ray Detectable,Tissue Viability Nurses (T&W),NHS SUPPLY CHAIN,1019236321,0.31,290 8858 54,
Department of Health,CT Revenue Funds,07-Mar-19,Absorbents Non X Ray Detectable,Tissue Viability Nurses (T&W),NHS SUPPLY CHAIN,1019236321,-0.01,290 8858 54,
Department of Health,CT Revenue Funds,07-Mar-19,Absorbents Non X Ray Detectable,South East Interdisciplinary Teams,NHS SUPPLY CHAIN,1019236321,1.52,290 8858 54,
Department of Health,CT Revenue Funds,07-Mar-19,Absorbents Non X Ray Detectable,South East Interdisciplinary Teams,NHS SUPPLY CHAIN,1019236321,0.31,290 8858 54,
Department of Health,CT Revenue Funds,07-Mar-19,Absorbents Non X Ray Detectable,South East Interdisciplinary Teams,NHS SUPPLY CHAIN,1019236321,0.01,290 8858 54,
Department of Health,CT Revenue Funds,07-Mar-19,Absorbents Non X Ray Detectable,Ludlow Hospital Inpatient Wards,NHS SUPPLY CHAIN,1019236321,4.86,290 8858 54,
Department of Health,CT Revenue Funds,07-Mar-19,Absorbents Non X Ray Detectable,Ludlow Hospital Inpatient Wards,NHS SUPPLY CHAIN,1019236321,0.97,290 8858 54,
Department of Health,CT Revenue Funds,07-Mar-19,Absorbents Non X Ray Detectable,South West Interdisciplinary Teams,NHS SUPPLY CHAIN,1019236321,6.03,290 8858 54,
Department of Health,CT Revenue Funds,07-Mar-19,Absorbents Non X Ray Detectable,South West Interdisciplinary Teams,NHS SUPPLY CHAIN,1019236321,33.64,290 8858 54,
Department of Health,CT Revenue Funds,07-Mar-19,Absorbents Non X Ray Detectable,South West Interdisciplinary Teams,NHS SUPPLY CHAIN,1019236321,1.56,290 8858 54,
Department of Health,CT Revenue Funds,07-Mar-19,Absorbents Non X Ray Detectable,South West Interdisciplinary Teams,NHS SUPPLY CHAIN,1019236321,9.3,290 8858 54,
Department of Health,CT Revenue Funds,07-Mar-19,Absorbents Non X Ray Detectable,South West Interdisciplinary Teams,NHS SUPPLY CHAIN,1019236321,0.01,290 8858 54,
Department of Health,CT Revenue Funds,07-Mar-19,Absorbents Non X Ray Detectable,South West Interdisciplinary Teams,NHS SUPPLY CHAIN,1019236321,1.21,290 8858 54,
Department of Health,CT Revenue Funds,07-Mar-19,Absorbents Non X Ray Detectable,South West Interdisciplinary Teams,NHS SUPPLY CHAIN,1019236321,6.73,290 8858 54,
Department of Health,CT Revenue Funds,07-Mar-19,Absorbents Non X Ray Detectable,South West Interdisciplinary Teams,NHS SUPPLY CHAIN,1019236321,0.31,290 8858 54,
Department of Health,CT Revenue Funds,07-Mar-19,Absorbents Non X Ray Detectable,South West Interdisciplinary Teams,NHS SUPPLY CHAIN,1019236321,1.86,290 8858 54,
Department of Health,CT Revenue Funds,07-Mar-19,Absorbents Non X Ray Detectable,South West Interdisciplinary Teams,NHS SUPPLY CHAIN,1019236321,-0.01,290 8858 54,
Department of Health,CT Revenue Funds,07-Mar-19,Absorbents Non X Ray Detectable,South West Interdisciplinary Teams,NHS SUPPLY CHAIN,1019236321,0.01,290 8858 54,
Department of Health,CT Revenue Funds,07-Mar-19,Absorbents Non X Ray Detectable,South West Interdisciplinary Teams,NHS SUPPLY CHAIN,1019236321,0.03,290 8858 54,
Department of Health,CT Revenue Funds,07-Mar-19,Absorbents Non X Ray Detectable,Shrewsbury and Atcham DAART,NHS SUPPLY CHAIN,1019236321,2.03,290 8858 54,
Department of Health,CT Revenue Funds,07-Mar-19,Absorbents Non X Ray Detectable,Shrewsbury and Atcham DAART,NHS SUPPLY CHAIN,1019236321,1.36,290 8858 54,
Department of Health,CT Revenue Funds,07-Mar-19,Absorbents Non X Ray Detectable,Shrewsbury and Atcham DAART,NHS SUPPLY CHAIN,1019236321,0.41,290 8858 54,
Department of Health,CT Revenue Funds,07-Mar-19,Absorbents Non X Ray Detectable,Shrewsbury and Atcham DAART,NHS SUPPLY CHAIN,1019236321,0.27,290 8858 54,
Department of Health,CT Revenue Funds,07-Mar-19,Absorbents Non X Ray Detectable,Shrewsbury and Atcham DAART,NHS SUPPLY CHAIN,1019236321,0.01,290 8858 54,
Department of Health,CT Revenue Funds,07-Mar-19,Absorbents Non X Ray Detectable,Shrewsbury and Atcham North Interdisciplinary Teams,NHS SUPPLY CHAIN,1019236321,-0.01,290 8858 54,
Department of Health,CT Revenue Funds,07-Mar-19,Absorbents Non X Ray Detectable,Shrewsbury and Atcham North Interdisciplinary Teams,NHS SUPPLY CHAIN,1019236321,-0.05,290 8858 54,
Department of Health,CT Revenue Funds,07-Mar-19,Absorbents Non X Ray Detectable,Shrewsbury and Atcham North Interdisciplinary Teams,NHS SUPPLY CHAIN,1019236321,7.8,290 8858 54,
Department of Health,CT Revenue Funds,07-Mar-19,Absorbents Non X Ray Detectable,Shrewsbury and Atcham North Interdisciplinary Teams,NHS SUPPLY CHAIN,1019236321,1.56,290 8858 54,
Department of Health,CT Revenue Funds,07-Mar-19,Absorbents Non X Ray Detectable,North West Shropshire Interdisciplinary Teams,NHS SUPPLY CHAIN,1019236321,0.95,290 8858 54,
Department of Health,CT Revenue Funds,07-Mar-19,Absorbents Non X Ray Detectable,North West Shropshire Interdisciplinary Teams,NHS SUPPLY CHAIN,1019236321,0.19,290 8858 54,
Department of Health,CT Revenue Funds,07-Mar-19,Absorbents Non X Ray Detectable,Bridgnorth Hospital Inpatient Ward,NHS SUPPLY CHAIN,1019236321,1.92,290 8858 54,
Department of Health,CT Revenue Funds,07-Mar-19,Absorbents Non X Ray Detectable,Bridgnorth Hospital Inpatient Ward,NHS SUPPLY CHAIN,1019236321,0.38,290 8858 54,
Department of Health,CT Revenue Funds,07-Mar-19,Absorbents Non X Ray Detectable,North East Shropshire Interdisciplinary Teams,NHS SUPPLY CHAIN,1019236321,7.24,290 8858 54,
Department of Health,CT Revenue Funds,07-Mar-19,Absorbents Non X Ray Detectable,North East Shropshire Interdisciplinary Teams,NHS SUPPLY CHAIN,1019236321,-0.01,290 8858 54,
Department of Health,CT Revenue Funds,07-Mar-19,Absorbents Non X Ray Detectable,North East Shropshire Interdisciplinary Teams,NHS SUPPLY CHAIN,1019236321,1.45,290 8858 54,
Department of Health,CT Revenue Funds,07-Mar-19,Absorbents Non X Ray Detectable,Whitchurch Hospital Inpatient Ward,NHS SUPPLY CHAIN,1019236321,2.03,290 8858 54,
Department of Health,CT Revenue Funds,07-Mar-19,Absorbents Non X Ray Detectable,Whitchurch Hospital Inpatient Ward,NHS SUPPLY CHAIN,1019236321,0.41,290 8858 54,
Department of Health,CT Revenue Funds,07-Mar-19,Absorbents Non X Ray Detectable,Bishops Castle Hospital Inpatient Ward,NHS SUPPLY CHAIN,1019236321,30.09,290 8858 54,
Department of Health,CT Revenue Funds,07-Mar-19,Absorbents Non X Ray Detectable,Bishops Castle Hospital Inpatient Ward,NHS SUPPLY CHAIN,1019236321,0.96,290 8858 54,
Department of Health,CT Revenue Funds,07-Mar-19,Absorbents Non X Ray Detectable,Bishops Castle Hospital Inpatient Ward,NHS SUPPLY CHAIN,1019236321,0.38,290 8858 54,
Department of Health,CT Revenue Funds,07-Mar-19,Absorbents Non X Ray Detectable,Bishops Castle Hospital Inpatient Ward,NHS SUPPLY CHAIN,1019236321,6.02,290 8858 54,
Department of Health,CT Revenue Funds,07-Mar-19,Absorbents Non X Ray Detectable,Bishops Castle Hospital Inpatient Ward,NHS SUPPLY CHAIN,1019236321,0.19,290 8858 54,
Department of Health,CT Revenue Funds,07-Mar-19,Absorbents Non X Ray Detectable,Bishops Castle Hospital Inpatient Ward,NHS SUPPLY CHAIN,1019236321,0.08,290 8858 54,
Department of Health,CT Revenue Funds,07-Mar-19,Absorbents Non X Ray Detectable,Bishops Castle Hospital Inpatient Ward,NHS SUPPLY CHAIN,1019236321,0.01,290 8858 54,
Department of Health,CT Revenue Funds,07-Mar-19,Adhesive Wound Dressings,Oswestry Minor Injuries Unit,NHS SUPPLY CHAIN,1019236321,0.14,290 8858 54,
Department of Health,CT Revenue Funds,07-Mar-19,Adhesive Wound Dressings,Oswestry Minor Injuries Unit,NHS SUPPLY CHAIN,1019236321,-0.01,290 8858 54,
Department of Health,CT Revenue Funds,07-Mar-19,Adhesive Wound Dressings,Shrewsbury and Atcham DAART,NHS SUPPLY CHAIN,1019236321,0.43,290 8858 54,
Department of Health,CT Revenue Funds,07-Mar-19,Adhesive Wound Dressings,Shrewsbury and Atcham DAART,NHS SUPPLY CHAIN,1019236321,0.09,290 8858 54,
Department of Health,CT Revenue Funds,07-Mar-19,Adhesive Wound Dressings,Oswestry Minor Injuries Unit,NHS SUPPLY CHAIN,1019236321,5.34,290 8858 54,
Department of Health,CT Revenue Funds,07-Mar-19,Adhesive Wound Dressings,Oswestry Minor Injuries Unit,NHS SUPPLY CHAIN,1019236321,21.36,290 8858 54,
Department of Health,CT Revenue Funds,07-Mar-19,Adhesive Wound Dressings,Oswestry Minor Injuries Unit,NHS SUPPLY CHAIN,1019236321,1.07,290 8858 54,
Department of Health,CT Revenue Funds,07-Mar-19,Adhesive Wound Dressings,Oswestry Minor Injuries Unit,NHS SUPPLY CHAIN,1019236321,4.28,290 8858 54,
Department of Health,CT Revenue Funds,07-Mar-19,Adhesive Wound Dressings,Oswestry Minor Injuries Unit,NHS SUPPLY CHAIN,1019236321,0.71,290 8858 54,
Department of Health,CT Revenue Funds,07-Mar-19,Adhesive Wound Dressings,Oswestry Minor Injuries Unit,NHS SUPPLY CHAIN,1019236321,-0.03,290 8858 54,
Department of Health,CT Revenue Funds,07-Mar-19,Adhesive Wound Dressings,South West Interdisciplinary Teams,NHS SUPPLY CHAIN,1019236321,4.32,290 8858 54,
Department of Health,CT Revenue Funds,07-Mar-19,Adhesive Wound Dressings,South West Interdisciplinary Teams,NHS SUPPLY CHAIN,1019236321,0.86,290 8858 54,
Department of Health,CT Revenue Funds,07-Mar-19,Adhesive Wound Dressings,Stoke Heath Prison Healthcare,NHS SUPPLY CHAIN,1019236321,-0.01,290 8858 54,
Department of Health,CT Revenue Funds,07-Mar-19,Adhesive Wound Dressings,Stoke Heath Prison Healthcare,NHS SUPPLY CHAIN,1019236321,-0.02,290 8858 54,
Department of Health,CT Revenue Funds,07-Mar-19,Adhesive Wound Dressings,Stoke Heath Prison Healthcare,NHS SUPPLY CHAIN,1019236321,0.65,290 8858 54,
Department of Health,CT Revenue Funds,07-Mar-19,Adhesive Wound Dressings,Stoke Heath Prison Healthcare,NHS SUPPLY CHAIN,1019236321,3.26,290 8858 54,
Department of Health,CT Revenue Funds,07-Mar-19,Adhesive Wound Dressings,Stoke Heath Prison Healthcare,NHS SUPPLY CHAIN,1019236321,3.28,290 8858 54,
Department of Health,CT Revenue Funds,07-Mar-19,Adhesive Wound Dressings,Stoke Heath Prison Healthcare,NHS SUPPLY CHAIN,1019236321,16.32,290 8858 54,
Department of Health,CT Revenue Funds,07-Mar-19,Adhesive Wound Dressings,North West Shropshire Interdisciplinary Teams,NHS SUPPLY CHAIN,1019236321,0.43,290 8858 54,
Department of Health,CT Revenue Funds,07-Mar-19,Adhesive Wound Dressings,North West Shropshire Interdisciplinary Teams,NHS SUPPLY CHAIN,1019236321,0.09,290 8858 54,
Department of Health,CT Revenue Funds,07-Mar-19,Adhesive Wound Dressings,North East Shropshire Interdisciplinary Teams,NHS SUPPLY CHAIN,1019236321,8.64,290 8858 54,
Department of Health,CT Revenue Funds,07-Mar-19,Adhesive Wound Dressings,North East Shropshire Interdisciplinary Teams,NHS SUPPLY CHAIN,1019236321,-0.01,290 8858 54,
Department of Health,CT Revenue Funds,07-Mar-19,Adhesive Wound Dressings,North East Shropshire Interdisciplinary Teams,NHS SUPPLY CHAIN,1019236321,1.73,290 8858 54,
Department of Health,CT Revenue Funds,07-Mar-19,Adhesive Wound Dressings,Whitchurch Hospital Minor Injuries Unit,NHS SUPPLY CHAIN,1019236321,0.63,290 8858 54,
Department of Health,CT Revenue Funds,07-Mar-19,Adhesive Wound Dressings,Whitchurch Hospital Minor Injuries Unit,NHS SUPPLY CHAIN,1019236321,5.44,290 8858 54,
Department of Health,CT Revenue Funds,07-Mar-19,Adhesive Wound Dressings,Whitchurch Hospital Minor Injuries Unit,NHS SUPPLY CHAIN,1019236321,-0.01,290 8858 54,
Department of Health,CT Revenue Funds,07-Mar-19,Adhesive Wound Dressings,Whitchurch Hospital Minor Injuries Unit,NHS SUPPLY CHAIN,1019236321,0.13,290 8858 54,
Department of Health,CT Revenue Funds,07-Mar-19,Adhesive Wound Dressings,Whitchurch Hospital Minor Injuries Unit,NHS SUPPLY CHAIN,1019236321,1.09,290 8858 54,
Department of Health,CT Revenue Funds,07-Mar-19,Admin & Clerical Band 2,Halesfield Premises,TELFORD AND WREKIN CCG,7020301380,1843.55,654 4434 34,
Department of Health,CT Revenue Funds,07-Mar-19,Admin & Clerical Band 4,MSK Rheumatology,ROBERT JONES AND AGNES HUNT NHS FT,20104615,456,654 9380 06,
Department of Health,CT Revenue Funds,07-Mar-19,ANAES : Accessories & Equipment,North West Shropshire Interdisciplinary Teams,NHS SUPPLY CHAIN,1019236321,112.22,290 8858 54,
Department of Health,CT Revenue Funds,07-Mar-19,ANAES : Accessories & Equipment,North West Shropshire Interdisciplinary Teams,NHS SUPPLY CHAIN,1019236321,22.44,290 8858 54,
Department of Health,CT Revenue Funds,07-Mar-19,ANAES : Accessories & Equipment,Community Childrens Nurses,NHS SUPPLY CHAIN,1019236321,21.28,290 8858 54,
Department of Health,CT Revenue Funds,07-Mar-19,ANAES : Accessories & Equipment,Community Childrens Nurses,NHS SUPPLY CHAIN,1019236321,119.78,290 8858 54,
Department of Health,CT Revenue Funds,07-Mar-19,ANAES : Accessories & Equipment,Community Childrens Nurses,NHS SUPPLY CHAIN,1019236321,37.23,290 8858 54,
Department of Health,CT Revenue Funds,07-Mar-19,ANAES : Accessories & Equipment,Community Childrens Nurses,NHS SUPPLY CHAIN,1019236321,4.26,290 8858 54,
Department of Health,CT Revenue Funds,07-Mar-19,ANAES : Accessories & Equipment,Community Childrens Nurses,NHS SUPPLY CHAIN,1019236321,23.96,290 8858 54,
Department of Health,CT Revenue Funds,07-Mar-19,ANAES : Accessories & Equipment,Community Childrens Nurses,NHS SUPPLY CHAIN,1019236321,7.45,290 8858 54,
Department of Health,CT Revenue Funds,07-Mar-19,ANAES : Accessories & Equipment,North East Shropshire Interdisciplinary Teams,NHS SUPPLY CHAIN,1019236321,13.44,290 8858 54,
Department of Health,CT Revenue Funds,07-Mar-19,ANAES : Accessories & Equipment,North East Shropshire Interdisciplinary Teams,NHS SUPPLY CHAIN,1019236321,20.16,290 8858 54,
Department of Health,CT Revenue Funds,07-Mar-19,ANAES : Accessories & Equipment,North East Shropshire Interdisciplinary Teams,NHS SUPPLY CHAIN,1019236321,0.49,290 8858 54,
Department of Health,CT Revenue Funds,07-Mar-19,ANAES : Accessories & Equipment,North East Shropshire Interdisciplinary Teams,NHS SUPPLY CHAIN,1019236321,-0.06,290 8858 54,
Department of Health,CT Revenue Funds,07-Mar-19,ANAES : Accessories & Equipment,North East Shropshire Interdisciplinary Teams,NHS SUPPLY CHAIN,1019236321,2.69,290 8858 54,
Department of Health,CT Revenue Funds,07-Mar-19,ANAES : Accessories & Equipment,North East Shropshire Interdisciplinary Teams,NHS SUPPLY CHAIN,1019236321,4.03,290 8858 54,
Department of Health,CT Revenue Funds,07-Mar-19,ANAES : Accessories & Equipment,North East Shropshire Interdisciplinary Teams,NHS SUPPLY CHAIN,1019236321,0.1,290 8858 54,
Department of Health,CT Revenue Funds,07-Mar-19,ANAES : Accessories & Equipment,North East Shropshire Interdisciplinary Teams,NHS SUPPLY CHAIN,1019236321,-0.01,290 8858 54,
Department of Health,CT Revenue Funds,07-Mar-19,ANAES : Accessories & Equipment,Whitchurch Hospital Inpatient Ward,NHS SUPPLY CHAIN,1019236321,5.2,290 8858 54,
Department of Health,CT Revenue Funds,07-Mar-19,ANAES : Accessories & Equipment,Whitchurch Hospital Inpatient Ward,NHS SUPPLY CHAIN,1019236321,-0.2,290 8858 54,
Department of Health,CT Revenue Funds,07-Mar-19,ANAES : Accessories & Equipment,Whitchurch Hospital Inpatient Ward,NHS SUPPLY CHAIN,1019236321,-0.04,290 8858 54,
Department of Health,CT Revenue Funds,07-Mar-19,ANAES : Accessories & Equipment,Whitchurch Hospital Inpatient Ward,NHS SUPPLY CHAIN,1019236321,1.04,290 8858 54,
Department of Health,CT Revenue Funds,07-Mar-19,ANAES : Accessories & Equipment,Bridgnorth Hospital Inpatient Ward,NHS SUPPLY CHAIN,1019236321,3.04,290 8858 54,
Department of Health,CT Revenue Funds,07-Mar-19,ANAES : Accessories & Equipment,Bridgnorth Hospital Inpatient Ward,NHS SUPPLY CHAIN,1019236321,0.61,290 8858 54,
Department of Health,CT Revenue Funds,07-Mar-19,ANAES : Accessories & Equipment,Bridgnorth Hospital Inpatient Ward,NHS SUPPLY CHAIN,1019236321,-0.01,290 8858 54,
Department of Health,CT Revenue Funds,07-Mar-19,Analysers,Shrewsbury and Atcham DAART,NHS SUPPLY CHAIN,1019236321,6.33,290 8858 54,
Department of Health,CT Revenue Funds,07-Mar-19,Analysers,Shrewsbury and Atcham DAART,NHS SUPPLY CHAIN,1019236321,1.27,290 8858 54,
Department of Health,CT Revenue Funds,07-Mar-19,Analysers,North East Shropshire Interdisciplinary Teams,NHS SUPPLY CHAIN,1019236321,18.99,290 8858 54,
Department of Health,CT Revenue Funds,07-Mar-19,Analysers,North East Shropshire Interdisciplinary Teams,NHS SUPPLY CHAIN,1019236321,-0.01,290 8858 54,
Department of Health,CT Revenue Funds,07-Mar-19,Analysers,North East Shropshire Interdisciplinary Teams,NHS SUPPLY CHAIN,1019236321,3.8,290 8858 54,
Department of Health,CT Revenue Funds,07-Mar-19,Analysers,Shrewsbury and Atcham North Interdisciplinary Teams,NHS SUPPLY CHAIN,1019236321,78.18,290 8858 54,
Department of Health,CT Revenue Funds,07-Mar-19,Analysers,Shrewsbury and Atcham North Interdisciplinary Teams,NHS SUPPLY CHAIN,1019236321,-0.01,290 8858 54,
Department of Health,CT Revenue Funds,07-Mar-19,Analysers,Shrewsbury and Atcham North Interdisciplinary Teams,NHS SUPPLY CHAIN,1019236321,15.64,290 8858 54,
Department of Health,CT Revenue Funds,07-Mar-19,Analysers,Shrewsbury and Atcham North Interdisciplinary Teams,NHS SUPPLY CHAIN,1019236321,-0.03,290 8858 54,
Department of Health,CT Revenue Funds,07-Mar-19,Baby Texture Modified Foods,Whitchurch Hospital Inpatient Ward,NHS SUPPLY CHAIN,1019236321,75.3,290 8858 54,
Department of Health,CT Revenue Funds,07-Mar-19,Bags Sacks,Bridgnorth Hospital Inpatient Ward,NHS SUPPLY CHAIN,1019236321,7.3,290 8858 54,
Department of Health,CT Revenue Funds,07-Mar-19,Bags Sacks,Bridgnorth Hospital Inpatient Ward,NHS SUPPLY CHAIN,1019236321,3.24,290 8858 54,
Department of Health,CT Revenue Funds,07-Mar-19,Bags Sacks,Bridgnorth Hospital Inpatient Ward,NHS SUPPLY CHAIN,1019236321,4.09,290 8858 54,
Department of Health,CT Revenue Funds,07-Mar-19,Bags Sacks,Bridgnorth Hospital Inpatient Ward,NHS SUPPLY CHAIN,1019236321,42.96,290 8858 54,
Department of Health,CT Revenue Funds,07-Mar-19,Bags Sacks,Bridgnorth Hospital Inpatient Ward,NHS SUPPLY CHAIN,1019236321,1.46,290 8858 54,
Department of Health,CT Revenue Funds,07-Mar-19,Bags Sacks,Bridgnorth Hospital Inpatient Ward,NHS SUPPLY CHAIN,1019236321,0.65,290 8858 54,
Department of Health,CT Revenue Funds,07-Mar-19,Bags Sacks,Bridgnorth Hospital Inpatient Ward,NHS SUPPLY CHAIN,1019236321,0.82,290 8858 54,
Department of Health,CT Revenue Funds,07-Mar-19,Bags Sacks,Bridgnorth Hospital Inpatient Ward,NHS SUPPLY CHAIN,1019236321,8.59,290 8858 54,
Department of Health,CT Revenue Funds,07-Mar-19,Bags Sacks,Bridgnorth Hospital Inpatient Ward,NHS SUPPLY CHAIN,1019236321,-0.01,290 8858 54,
Department of Health,CT Revenue Funds,07-Mar-19,Bags Sacks,Telford South Community Nursing,NHS SUPPLY CHAIN,1019236321,7.2,290 8858 54,
Department of Health,CT Revenue Funds,07-Mar-19,Bags Sacks,Telford South Community Nursing,NHS SUPPLY CHAIN,1019236321,9,290 8858 54,
Department of Health,CT Revenue Funds,07-Mar-19,Bags Sacks,Telford South Community Nursing,NHS SUPPLY CHAIN,1019236321,1.44,290 8858 54,
Department of Health,CT Revenue Funds,07-Mar-19,Bags Sacks,Telford South Community Nursing,NHS SUPPLY CHAIN,1019236321,1.8,290 8858 54,
Department of Health,CT Revenue Funds,07-Mar-19,Bags Sacks,Telford Wound Care pilot,NHS SUPPLY CHAIN,1019236321,50,290 8858 54,
Department of Health,CT Revenue Funds,07-Mar-19,Bags Sacks,Telford Wound Care pilot,NHS SUPPLY CHAIN,1019236321,10,290 8858 54,
Department of Health,CT Revenue Funds,07-Mar-19,Bags Sacks,South East Interdisciplinary Teams,NHS SUPPLY CHAIN,1019236321,2.04,290 8858 54,
Department of Health,CT Revenue Funds,07-Mar-19,Bags Sacks,South East Interdisciplinary Teams,NHS SUPPLY CHAIN,1019236321,10.8,290 8858 54,
Department of Health,CT Revenue Funds,07-Mar-19,Bags Sacks,South East Interdisciplinary Teams,NHS SUPPLY CHAIN,1019236321,6,290 8858 54,
Department of Health,CT Revenue Funds,07-Mar-19,Bags Sacks,South East Interdisciplinary Teams,NHS SUPPLY CHAIN,1019236321,0.41,290 8858 54,
Department of Health,CT Revenue Funds,07-Mar-19,Bags Sacks,South East Interdisciplinary Teams,NHS SUPPLY CHAIN,1019236321,2.16,290 8858 54,
Department of Health,CT Revenue Funds,07-Mar-19,Bags Sacks,South East Interdisciplinary Teams,NHS SUPPLY CHAIN,1019236321,1.2,290 8858 54,
Department of Health,CT Revenue Funds,07-Mar-19,Bags Sacks,Ludlow Hospital Inpatient Wards,NHS SUPPLY CHAIN,1019236321,10.65,290 8858 54,
Department of Health,CT Revenue Funds,07-Mar-19,Bags Sacks,Ludlow Hospital Inpatient Wards,NHS SUPPLY CHAIN,1019236321,3.6,290 8858 54,
Department of Health,CT Revenue Funds,07-Mar-19,Bags Sacks,Ludlow Hospital Inpatient Wards,NHS SUPPLY CHAIN,1019236321,2.13,290 8858 54,
Department of Health,CT Revenue Funds,07-Mar-19,Bags Sacks,Ludlow Hospital Inpatient Wards,NHS SUPPLY CHAIN,1019236321,0.72,290 8858 54,
Department of Health,CT Revenue Funds,07-Mar-19,Bags Sacks,North East Shropshire Interdisciplinary Teams,NHS SUPPLY CHAIN,1019236321,2.43,290 8858 54,
Department of Health,CT Revenue Funds,07-Mar-19,Bags Sacks,North East Shropshire Interdisciplinary Teams,NHS SUPPLY CHAIN,1019236321,12.15,290 8858 54,
Department of Health,CT Revenue Funds,07-Mar-19,Bags Sacks,Whitchurch Hospital Catering,NHS SUPPLY CHAIN,1019236321,5,290 8858 54,
Department of Health,CT Revenue Funds,07-Mar-19,Bags Sacks,Whitchurch Hospital Catering,NHS SUPPLY CHAIN,1019236321,20,290 8858 54,
Department of Health,CT Revenue Funds,07-Mar-19,Bags Sacks,Whitchurch Hospital Catering,NHS SUPPLY CHAIN,1019236321,7.28,290 8858 54,
Department of Health,CT Revenue Funds,07-Mar-19,Bags Sacks,Whitchurch Hospital Catering,NHS SUPPLY CHAIN,1019236321,29.12,290 8858 54,
Department of Health,CT Revenue Funds,07-Mar-19,Bags Sacks,Whitchurch Hospital Catering,NHS SUPPLY CHAIN,1019236321,1,290 8858 54,
Department of Health,CT Revenue Funds,07-Mar-19,Bags Sacks,Whitchurch Hospital Catering,NHS SUPPLY CHAIN,1019236321,4,290 8858 54,
Department of Health,CT Revenue Funds,07-Mar-19,Bags Sacks,Whitchurch Hospital Catering,NHS SUPPLY CHAIN,1019236321,1.46,290 8858 54,
Department of Health,CT Revenue Funds,07-Mar-19,Bags Sacks,Whitchurch Hospital Catering,NHS SUPPLY CHAIN,1019236321,5.82,290 8858 54,
Department of Health,CT Revenue Funds,07-Mar-19,Bags Sacks,Whitchurch Hospital Catering,NHS SUPPLY CHAIN,1019236321,8.57,290 8858 54,
Department of Health,CT Revenue Funds,07-Mar-19,Bags Sacks,Whitchurch Hospital Catering,NHS SUPPLY CHAIN,1019236321,30.4,290 8858 54,
Department of Health,CT Revenue Funds,07-Mar-19,Bags Sacks,Whitchurch Hospital Catering,NHS SUPPLY CHAIN,1019236321,0.42,290 8858 54,
Department of Health,CT Revenue Funds,07-Mar-19,Bags Sacks,Whitchurch Hospital Catering,NHS SUPPLY CHAIN,1019236321,-0.05,290 8858 54,
Department of Health,CT Revenue Funds,07-Mar-19,Bags Sacks,Whitchurch Hospital Catering,NHS SUPPLY CHAIN,1019236321,1.71,290 8858 54,
Department of Health,CT Revenue Funds,07-Mar-19,Bags Sacks,Whitchurch Hospital Catering,NHS SUPPLY CHAIN,1019236321,6.08,290 8858 54,
Department of Health,CT Revenue Funds,07-Mar-19,Bags Sacks,Whitchurch Hospital Catering,NHS SUPPLY CHAIN,1019236321,0.08,290 8858 54,
Department of Health,CT Revenue Funds,07-Mar-19,Bags Sacks,Whitchurch Hospital Catering,NHS SUPPLY CHAIN,1019236321,-0.01,290 8858 54,
Department of Health,CT Revenue Funds,07-Mar-19,Bags Sacks,Whitchurch Hospital Inpatient Ward,NHS SUPPLY CHAIN,1019236321,17.76,290 8858 54,
Department of Health,CT Revenue Funds,07-Mar-19,Bags Sacks,Whitchurch Hospital Inpatient Ward,NHS SUPPLY CHAIN,1019236321,0.01,290 8858 54,
Department of Health,CT Revenue Funds,07-Mar-19,Bags Sacks,Whitchurch Hospital Inpatient Ward,NHS SUPPLY CHAIN,1019236321,3.55,290 8858 54,
Department of Health,CT Revenue Funds,07-Mar-19,Bags Sacks,Bridgnorth Hospital Hotel Services,NHS SUPPLY CHAIN,1019236321,9,290 8858 54,
Department of Health,CT Revenue Funds,07-Mar-19,Bags Sacks,Bridgnorth Hospital Hotel Services,NHS SUPPLY CHAIN,1019236321,5,290 8858 54,
Department of Health,CT Revenue Funds,07-Mar-19,Bags Sacks,Bridgnorth Hospital Hotel Services,NHS SUPPLY CHAIN,1019236321,10,290 8858 54,
Department of Health,CT Revenue Funds,07-Mar-19,Bags Sacks,Bridgnorth Hospital Hotel Services,NHS SUPPLY CHAIN,1019236321,8.57,290 8858 54,
Department of Health,CT Revenue Funds,07-Mar-19,Bags Sacks,Bridgnorth Hospital Hotel Services,NHS SUPPLY CHAIN,1019236321,15.2,290 8858 54,
Department of Health,CT Revenue Funds,07-Mar-19,Bags Sacks,Bridgnorth Hospital Hotel Services,NHS SUPPLY CHAIN,1019236321,1.8,290 8858 54,
Department of Health,CT Revenue Funds,07-Mar-19,Bags Sacks,Bridgnorth Hospital Hotel Services,NHS SUPPLY CHAIN,1019236321,1,290 8858 54,
Department of Health,CT Revenue Funds,07-Mar-19,Bags Sacks,Bridgnorth Hospital Hotel Services,NHS SUPPLY CHAIN,1019236321,2,290 8858 54,
Department of Health,CT Revenue Funds,07-Mar-19,Bags Sacks,Bridgnorth Hospital Hotel Services,NHS SUPPLY CHAIN,1019236321,1.71,290 8858 54,
Department of Health,CT Revenue Funds,07-Mar-19,Bags Sacks,Bridgnorth Hospital Hotel Services,NHS SUPPLY CHAIN,1019236321,3.04,290 8858 54,
Department of Health,CT Revenue Funds,07-Mar-19,Bags Sacks,Bishops Castle Hospital Inpatient Ward,NHS SUPPLY CHAIN,1019236321,21.3,290 8858 54,
Department of Health,CT Revenue Funds,07-Mar-19,Bags Sacks,Bishops Castle Hospital Inpatient Ward,NHS SUPPLY CHAIN,1019236321,5.76,290 8858 54,
Department of Health,CT Revenue Funds,07-Mar-19,Bags Sacks,Bishops Castle Hospital Inpatient Ward,NHS SUPPLY CHAIN,1019236321,5.76,290 8858 54,
Department of Health,CT Revenue Funds,07-Mar-19,Bags Sacks,Bishops Castle Hospital Inpatient Ward,NHS SUPPLY CHAIN,1019236321,4.26,290 8858 54,
Department of Health,CT Revenue Funds,07-Mar-19,Bags Sacks,Bishops Castle Hospital Inpatient Ward,NHS SUPPLY CHAIN,1019236321,1.15,290 8858 54,
Department of Health,CT Revenue Funds,07-Mar-19,Bags Sacks,Bishops Castle Hospital Inpatient Ward,NHS SUPPLY CHAIN,1019236321,1.15,290 8858 54,
Department of Health,CT Revenue Funds,07-Mar-19,Bags Sacks,Bishops Castle Hospital Inpatient Ward,NHS SUPPLY CHAIN,1019236321,0.01,290 8858 54,
Department of Health,CT Revenue Funds,07-Mar-19,Bags Sacks,Bishops Castle Hospital Inpatient Ward,NHS SUPPLY CHAIN,1019236321,0.01,290 8858 54,
Department of Health,CT Revenue Funds,07-Mar-19,Bags Sacks,Ludlow Hospital Hotel Services,NHS SUPPLY CHAIN,1019236321,40.56,290 8858 54,
Department of Health,CT Revenue Funds,07-Mar-19,Bags Sacks,Ludlow Hospital Hotel Services,NHS SUPPLY CHAIN,1019236321,2.78,290 8858 54,
Department of Health,CT Revenue Funds,07-Mar-19,Bags Sacks,Ludlow Hospital Hotel Services,NHS SUPPLY CHAIN,1019236321,13.9,290 8858 54,
Department of Health,CT Revenue Funds,07-Mar-19,Bags Sacks,Ludlow Hospital Hotel Services,NHS SUPPLY CHAIN,1019236321,-0.01,290 8858 54,
Department of Health,CT Revenue Funds,07-Mar-19,Bags Sacks,Ludlow Hospital Hotel Services,NHS SUPPLY CHAIN,1019236321,0.02,290 8858 54,
Department of Health,CT Revenue Funds,07-Mar-19,Bags Sacks,Ludlow Hospital Hotel Services,NHS SUPPLY CHAIN,1019236321,8.11,290 8858 54,
Department of Health,CT Revenue Funds,07-Mar-19,Bags Sacks,Ludlow Hospital Hotel Services,NHS SUPPLY CHAIN,1019236321,0.56,290 8858 54,
Department of Health,CT Revenue Funds,07-Mar-19,Bags Sacks,Ludlow Hospital Hotel Services,NHS SUPPLY CHAIN,1019236321,2.78,290 8858 54,
Department of Health,CT Revenue Funds,07-Mar-19,Bags Sacks,Ludlow Hospital Hotel Services,NHS SUPPLY CHAIN,1019236321,-0.06,290 8858 54,
Department of Health,CT Revenue Funds,07-Mar-19,Bags Sacks,Ludlow Hospital Hotel Services,NHS SUPPLY CHAIN,1019236321,0.1,290 8858 54,
Department of Health,CT Revenue Funds,07-Mar-19,Bags Sacks,Ludlow Hospital Hotel Services,NHS SUPPLY CHAIN,1019236321,0.02,290 8858 54,
Department of Health,CT Revenue Funds,07-Mar-19,Bedding & Linen : Non-Disposable,Telford Wound Care pilot,NHS SUPPLY CHAIN,1019236321,24.8,290 8858 54,
Department of Health,CT Revenue Funds,07-Mar-19,Bedding & Linen : Non-Disposable,Telford Wound Care pilot,NHS SUPPLY CHAIN,1019236321,4.96,290 8858 54,
Department of Health,CT Revenue Funds,07-Mar-19,Bedding & Linen : Non-Disposable,Tissue Viability Nurses (T&W),NHS SUPPLY CHAIN,1019236321,24.8,290 8858 54,
Department of Health,CT Revenue Funds,07-Mar-19,Bedding & Linen : Non-Disposable,Tissue Viability Nurses (T&W),NHS SUPPLY CHAIN,1019236321,4.96,290 8858 54,
Department of Health,CT Revenue Funds,07-Mar-19,Bedding & Linen : Non-Disposable,Whitchurch Hospital Inpatient Ward,NHS SUPPLY CHAIN,1019236321,47.3,290 8858 54,
Department of Health,CT Revenue Funds,07-Mar-19,Bedding & Linen : Non-Disposable,Whitchurch Hospital Inpatient Ward,NHS SUPPLY CHAIN,1019236321,-0.05,290 8858 54,
Department of Health,CT Revenue Funds,07-Mar-19,Bedding & Linen : Non-Disposable,Whitchurch Hospital Inpatient Ward,NHS SUPPLY CHAIN,1019236321,-0.01,290 8858 54,
Department of Health,CT Revenue Funds,07-Mar-19,Bedding & Linen : Non-Disposable,Whitchurch Hospital Inpatient Ward,NHS SUPPLY CHAIN,1019236321,9.46,290 8858 54,
Department of Health,CT Revenue Funds,07-Mar-19,Beverages,HR and Workforce,NHS SUPPLY CHAIN,1019236321,9.33,290 8858 54,
Department of Health,CT Revenue Funds,07-Mar-19,Beverages,Whitchurch Hospital Catering,NHS SUPPLY CHAIN,1019236321,10.74,290 8858 54,
Department of Health,CT Revenue Funds,07-Mar-19,Beverages,Whitchurch Hospital Catering,NHS SUPPLY CHAIN,1019236321,23.4,290 8858 54,
Department of Health,CT Revenue Funds,07-Mar-19,Blood Products From Other NHS Bodies,Shrewsbury and Atcham DAART,SHREWSBURY AND TELFORD HOSPITAL NHS TRUST,10130959,2984.69,654939296,
Department of Health,CT Revenue Funds,07-Mar-19,Blood Products From Other NHS Bodies,Shrewsbury and Atcham DAART,SHREWSBURY AND TELFORD HOSPITAL NHS TRUST,10130960,3113.68,654939296,
Department of Health,CT Revenue Funds,07-Mar-19,"Books, Journals & Subscriptions",Bridgnorth Hospital Inpatient Ward,NHS SUPPLY CHAIN,1019236321,19.59,290 8858 54,
Department of Health,CT Revenue Funds,07-Mar-19,"Books, Journals & Subscriptions",Bridgnorth Hospital Inpatient Ward,NHS SUPPLY CHAIN,1019236321,-0.01,290 8858 54,
Department of Health,CT Revenue Funds,07-Mar-19,"Books, Journals & Subscriptions",Bridgnorth Hospital Inpatient Ward,NHS SUPPLY CHAIN,1019236321,3.92,290 8858 54,
Department of Health,CT Revenue Funds,07-Mar-19,Catering Equipment - Purchase,Falls Prevention,NHS SUPPLY CHAIN,1019236321,25.26,290 8858 54,
Department of Health,CT Revenue Funds,07-Mar-19,Catering Equipment - Purchase,Falls Prevention,NHS SUPPLY CHAIN,1019236321,5.05,290 8858 54,
Department of Health,CT Revenue Funds,07-Mar-19,Catering Equipment - Purchase,Bridgnorth Hospital Inpatient Ward,NHS SUPPLY CHAIN,1019236321,8.86,290 8858 54,
Department of Health,CT Revenue Funds,07-Mar-19,Catering Equipment - Purchase,Bridgnorth Hospital Inpatient Ward,NHS SUPPLY CHAIN,1019236321,18.2,290 8858 54,
Department of Health,CT Revenue Funds,07-Mar-19,Catering Equipment - Purchase,Bridgnorth Hospital Inpatient Ward,NHS SUPPLY CHAIN,1019236321,4.08,290 8858 54,
Department of Health,CT Revenue Funds,07-Mar-19,Catering Equipment - Purchase,Bridgnorth Hospital Inpatient Ward,NHS SUPPLY CHAIN,1019236321,1.77,290 8858 54,
Department of Health,CT Revenue Funds,07-Mar-19,Catering Equipment - Purchase,Bridgnorth Hospital Inpatient Ward,NHS SUPPLY CHAIN,1019236321,3.64,290 8858 54,
Department of Health,CT Revenue Funds,07-Mar-19,Catering Equipment - Purchase,Bridgnorth Hospital Inpatient Ward,NHS SUPPLY CHAIN,1019236321,0.81,290 8858 54,
Department of Health,CT Revenue Funds,07-Mar-19,Catering Equipment - Purchase,Bridgnorth Hospital Inpatient Ward,NHS SUPPLY CHAIN,1019236321,-0.03,290 8858 54,
Department of Health,CT Revenue Funds,07-Mar-19,Catering Equipment - Purchase,Bridgnorth Hospital Inpatient Ward,NHS SUPPLY CHAIN,1019236321,-0.01,290 8858 54,
Department of Health,CT Revenue Funds,07-Mar-19,Catering Equipment - Purchase,Bridgnorth Hospital Inpatient Ward,NHS SUPPLY CHAIN,1019236321,-0.01,290 8858 54,
Department of Health,CT Revenue Funds,07-Mar-19,Catering Equipment - Purchase,Tissue Viability Nurses (T&W),NHS SUPPLY CHAIN,1019236321,21.03,290 8858 54,
Department of Health,CT Revenue Funds,07-Mar-19,Catering Equipment - Purchase,Tissue Viability Nurses (T&W),NHS SUPPLY CHAIN,1019236321,29.2,290 8858 54,
Department of Health,CT Revenue Funds,07-Mar-19,Catering Equipment - Purchase,Tissue Viability Nurses (T&W),NHS SUPPLY CHAIN,1019236321,4.21,290 8858 54,
Department of Health,CT Revenue Funds,07-Mar-19,Catering Equipment - Purchase,Tissue Viability Nurses (T&W),NHS SUPPLY CHAIN,1019236321,5.84,290 8858 54,
Department of Health,CT Revenue Funds,07-Mar-19,Catering Equipment - Purchase,Oswestry DAART,NHS SUPPLY CHAIN,1019236321,12.28,290 8858 54,
Department of Health,CT Revenue Funds,07-Mar-19,Catering Equipment - Purchase,Oswestry DAART,NHS SUPPLY CHAIN,1019236321,2.46,290 8858 54,
Department of Health,CT Revenue Funds,07-Mar-19,Catering Equipment - Purchase,Stoke Heath Prison Healthcare,NHS SUPPLY CHAIN,1019236321,49.2,290 8858 54,
Department of Health,CT Revenue Funds,07-Mar-19,Catering Equipment - Purchase,Stoke Heath Prison Healthcare,NHS SUPPLY CHAIN,1019236321,0.03,290 8858 54,
Department of Health,CT Revenue Funds,07-Mar-19,Catering Equipment - Purchase,Stoke Heath Prison Healthcare,NHS SUPPLY CHAIN,1019236321,0.13,290 8858 54,
Department of Health,CT Revenue Funds,07-Mar-19,Catering Equipment - Purchase,Stoke Heath Prison Healthcare,NHS SUPPLY CHAIN,1019236321,9.84,290 8858 54,
Department of Health,CT Revenue Funds,07-Mar-19,Catering Equipment - Purchase,Whitchurch Hospital Inpatient Ward,NHS SUPPLY CHAIN,1019236321,13.65,290 8858 54,
Department of Health,CT Revenue Funds,07-Mar-19,Catering Equipment - Purchase,Whitchurch Hospital Inpatient Ward,NHS SUPPLY CHAIN,1019236321,2.04,290 8858 54,
Department of Health,CT Revenue Funds,07-Mar-19,Catering Equipment - Purchase,Whitchurch Hospital Inpatient Ward,NHS SUPPLY CHAIN,1019236321,-0.02,290 8858 54,
Department of Health,CT Revenue Funds,07-Mar-19,Catering Equipment - Purchase,Whitchurch Hospital Inpatient Ward,NHS SUPPLY CHAIN,1019236321,-0.01,290 8858 54,
Department of Health,CT Revenue Funds,07-Mar-19,Catering Equipment - Purchase,Whitchurch Hospital Inpatient Ward,NHS SUPPLY CHAIN,1019236321,2.73,290 8858 54,
Department of Health,CT Revenue Funds,07-Mar-19,Catering Equipment - Purchase,Whitchurch Hospital Inpatient Ward,NHS SUPPLY CHAIN,1019236321,0.41,290 8858 54,
Department of Health,CT Revenue Funds,07-Mar-19,Catering Provisions,Bridgnorth Hospital Inpatient Ward,NHS SUPPLY CHAIN,1019236321,13.25,290 8858 54,
Department of Health,CT Revenue Funds,07-Mar-19,Catering Provisions,Bridgnorth Hospital Inpatient Ward,NHS SUPPLY CHAIN,1019236321,2.65,290 8858 54,
Department of Health,CT Revenue Funds,07-Mar-19,Catering Provisions,Operations Directorate Divisional Management,NHS SUPPLY CHAIN,1019236321,26.58,290 8858 54,
Department of Health,CT Revenue Funds,07-Mar-19,Catering Provisions,Ludlow Hospital Inpatient Wards,NHS SUPPLY CHAIN,1019236321,2.46,290 8858 54,
Department of Health,CT Revenue Funds,07-Mar-19,Catering Provisions,Ludlow Hospital Inpatient Wards,NHS SUPPLY CHAIN,1019236321,2,290 8858 54,
Department of Health,CT Revenue Funds,07-Mar-19,Catering Provisions,Ludlow Hospital Inpatient Wards,NHS SUPPLY CHAIN,1019236321,2.22,290 8858 54,
Department of Health,CT Revenue Funds,07-Mar-19,Catering Provisions,Whitchurch Hospital Catering,NHS SUPPLY CHAIN,1019236321,9.12,290 8858 54,
Department of Health,CT Revenue Funds,07-Mar-19,Catering Provisions,Whitchurch Hospital Catering,NHS SUPPLY CHAIN,1019236321,8.04,290 8858 54,
Department of Health,CT Revenue Funds,07-Mar-19,Catering Provisions,Whitchurch Hospital Catering,NHS SUPPLY CHAIN,1019236321,9.6,290 8858 54,
Department of Health,CT Revenue Funds,07-Mar-19,Catering Provisions,Whitchurch Hospital Catering,NHS SUPPLY CHAIN,1019236321,25.86,290 8858 54,
Department of Health,CT Revenue Funds,07-Mar-19,Catering Provisions,Whitchurch Hospital Catering,NHS SUPPLY CHAIN,1019236321,11.24,290 8858 54,
Department of Health,CT Revenue Funds,07-Mar-19,Catering Provisions,Whitchurch Hospital Catering,NHS SUPPLY CHAIN,1019236321,11.24,290 8858 54,
Department of Health,CT Revenue Funds,07-Mar-19,Catering Provisions,Whitchurch Hospital Catering,NHS SUPPLY CHAIN,1019236321,32.29,290 8858 54,
Department of Health,CT Revenue Funds,07-Mar-19,Catering Provisions,Whitchurch Hospital Catering,NHS SUPPLY CHAIN,1019236321,11.52,290 8858 54,
Department of Health,CT Revenue Funds,07-Mar-19,Catering Provisions,Whitchurch Hospital Catering,NHS SUPPLY CHAIN,1019236321,10.32,290 8858 54,
Department of Health,CT Revenue Funds,07-Mar-19,Catering Provisions,Whitchurch Hospital Catering,NHS SUPPLY CHAIN,1019236321,3.53,290 8858 54,
Department of Health,CT Revenue Funds,07-Mar-19,Catering Provisions,Whitchurch Hospital Catering,NHS SUPPLY CHAIN,1019236321,18.6,290 8858 54,
Department of Health,CT Revenue Funds,07-Mar-19,Catering Provisions,Whitchurch Hospital Catering,NHS SUPPLY CHAIN,1019236321,27.6,290 8858 54,
Department of Health,CT Revenue Funds,07-Mar-19,Catering Provisions,Whitchurch Hospital Catering,NHS SUPPLY CHAIN,1019236321,13.48,290 8858 54,
Department of Health,CT Revenue Funds,07-Mar-19,Catering Provisions,Whitchurch Hospital Catering,NHS SUPPLY CHAIN,1019236321,6.56,290 8858 54,
Department of Health,CT Revenue Funds,07-Mar-19,Catering Provisions,Whitchurch Hospital Catering,NHS SUPPLY CHAIN,1019236321,6.7,290 8858 54,
Department of Health,CT Revenue Funds,07-Mar-19,Catering Provisions,Whitchurch Hospital Catering,NHS SUPPLY CHAIN,1019236321,6.76,290 8858 54,
Department of Health,CT Revenue Funds,07-Mar-19,Catering Provisions,Ludlow Hospital Catering,NHS SUPPLY CHAIN,1019236321,9.58,290 8858 54,
Department of Health,CT Revenue Funds,07-Mar-19,Catering Provisions,Ludlow Hospital Catering,NHS SUPPLY CHAIN,1019236321,7.2,290 8858 54,
Department of Health,CT Revenue Funds,07-Mar-19,Catering Provisions,Ludlow Hospital Catering,NHS SUPPLY CHAIN,1019236321,9.68,290 8858 54,
Department of Health,CT Revenue Funds,07-Mar-19,Catering Provisions,Ludlow Hospital Catering,NHS SUPPLY CHAIN,1019236321,4.2,290 8858 54,
Department of Health,CT Revenue Funds,07-Mar-19,Catering Provisions,Ludlow Hospital Catering,NHS SUPPLY CHAIN,1019236321,20.58,290 8858 54,
Department of Health,CT Revenue Funds,07-Mar-19,Catering Provisions,Ludlow Hospital Catering,NHS SUPPLY CHAIN,1019236321,10.68,290 8858 54,
Department of Health,CT Revenue Funds,07-Mar-19,Catering Provisions,Ludlow Hospital Catering,NHS SUPPLY CHAIN,1019236321,4.76,290 8858 54,
Department of Health,CT Revenue Funds,07-Mar-19,Catering Provisions,Ludlow Hospital Catering,NHS SUPPLY CHAIN,1019236321,3.16,290 8858 54,
Department of Health,CT Revenue Funds,07-Mar-19,Catheters,Telford South Community Nursing,NHS SUPPLY CHAIN,1019236321,9.69,290 8858 54,
Department of Health,CT Revenue Funds,07-Mar-19,Catheters,Telford South Community Nursing,NHS SUPPLY CHAIN,1019236321,19.38,290 8858 54,
Department of Health,CT Revenue Funds,07-Mar-19,Catheters,Telford South Community Nursing,NHS SUPPLY CHAIN,1019236321,9.69,290 8858 54,
Department of Health,CT Revenue Funds,07-Mar-19,Catheters,Telford South Community Nursing,NHS SUPPLY CHAIN,1019236321,1.94,290 8858 54,
Department of Health,CT Revenue Funds,07-Mar-19,Catheters,Telford South Community Nursing,NHS SUPPLY CHAIN,1019236321,3.88,290 8858 54,
Department of Health,CT Revenue Funds,07-Mar-19,Catheters,Telford South Community Nursing,NHS SUPPLY CHAIN,1019236321,1.94,290 8858 54,
Department of Health,CT Revenue Funds,07-Mar-19,Catheters,South West Interdisciplinary Teams,NHS SUPPLY CHAIN,1019236321,21.46,290 8858 54,
Department of Health,CT Revenue Funds,07-Mar-19,Catheters,South West Interdisciplinary Teams,NHS SUPPLY CHAIN,1019236321,11.95,290 8858 54,
Department of Health,CT Revenue Funds,07-Mar-19,Catheters,South West Interdisciplinary Teams,NHS SUPPLY CHAIN,1019236321,4.29,290 8858 54,
Department of Health,CT Revenue Funds,07-Mar-19,Catheters,South West Interdisciplinary Teams,NHS SUPPLY CHAIN,1019236321,2.39,290 8858 54,
Department of Health,CT Revenue Funds,07-Mar-19,Catheters,South West Interdisciplinary Teams,NHS SUPPLY CHAIN,1019236321,0.01,290 8858 54,
Department of Health,CT Revenue Funds,07-Mar-19,Catheters,Bishops Castle Hospital Inpatient Ward,NHS SUPPLY CHAIN,1019236321,21.46,290 8858 54,
Department of Health,CT Revenue Funds,07-Mar-19,Catheters,Bishops Castle Hospital Inpatient Ward,NHS SUPPLY CHAIN,1019236321,42.92,290 8858 54,
Department of Health,CT Revenue Funds,07-Mar-19,Catheters,Bishops Castle Hospital Inpatient Ward,NHS SUPPLY CHAIN,1019236321,4.29,290 8858 54,
Department of Health,CT Revenue Funds,07-Mar-19,Catheters,Bishops Castle Hospital Inpatient Ward,NHS SUPPLY CHAIN,1019236321,8.59,290 8858 54,
Department of Health,CT Revenue Funds,07-Mar-19,Catheters,Bishops Castle Hospital Inpatient Ward,NHS SUPPLY CHAIN,1019236321,0.01,290 8858 54,
Department of Health,CT Revenue Funds,07-Mar-19,Catheters,Bishops Castle Hospital Inpatient Ward,NHS SUPPLY CHAIN,1019236321,0.01,290 8858 54,
Department of Health,CT Revenue Funds,07-Mar-19,Catheters,Ludlow Hospital Inpatient Wards,NHS SUPPLY CHAIN,1019236321,1.47,290 8858 54,
Department of Health,CT Revenue Funds,07-Mar-19,Catheters,Ludlow Hospital Inpatient Wards,NHS SUPPLY CHAIN,1019236321,42.92,290 8858 54,
Department of Health,CT Revenue Funds,07-Mar-19,Catheters,Ludlow Hospital Inpatient Wards,NHS SUPPLY CHAIN,1019236321,0.29,290 8858 54,
Department of Health,CT Revenue Funds,07-Mar-19,Catheters,Ludlow Hospital Inpatient Wards,NHS SUPPLY CHAIN,1019236321,8.59,290 8858 54,
Department of Health,CT Revenue Funds,07-Mar-19,Catheters,Ludlow Hospital Inpatient Wards,NHS SUPPLY CHAIN,1019236321,0.01,290 8858 54,
Department of Health,CT Revenue Funds,07-Mar-19,Cleaning Equipment,Whitchurch Hospital Administration,NHS SUPPLY CHAIN,1019236321,81.4,290 8858 54,
Department of Health,CT Revenue Funds,07-Mar-19,Cleaning Equipment,Whitchurch Hospital Administration,NHS SUPPLY CHAIN,1019236321,16.28,290 8858 54,
Department of Health,CT Revenue Funds,07-Mar-19,Cleaning Materials,Wheelchair Services,NHS SUPPLY CHAIN,1019236321,7.48,290 8858 54,
Department of Health,CT Revenue Funds,07-Mar-19,Cleaning Materials,Wheelchair Services,NHS SUPPLY CHAIN,1019236321,-0.01,290 8858 54,
Department of Health,CT Revenue Funds,07-Mar-19,Cleaning Materials,Wheelchair Services,NHS SUPPLY CHAIN,1019236321,1.49,290 8858 54,
Department of Health,CT Revenue Funds,07-Mar-19,Cleaning Materials,APCS Administration,NHS SUPPLY CHAIN,1019236321,7.48,290 8858 54,
Department of Health,CT Revenue Funds,07-Mar-19,Cleaning Materials,APCS Administration,NHS SUPPLY CHAIN,1019236321,1.49,290 8858 54,
Department of Health,CT Revenue Funds,07-Mar-19,Cleaning Materials,APCS Administration,NHS SUPPLY CHAIN,1019236321,-0.01,290 8858 54,
Department of Health,CT Revenue Funds,07-Mar-19,Cleaning Materials,Telford South Community Nursing,NHS SUPPLY CHAIN,1019236321,2.32,290 8858 54,
Department of Health,CT Revenue Funds,07-Mar-19,Cleaning Materials,Telford South Community Nursing,NHS SUPPLY CHAIN,1019236321,0.47,290 8858 54,
Department of Health,CT Revenue Funds,07-Mar-19,Cleaning Materials,Telford South Community Nursing,NHS SUPPLY CHAIN,1019236321,0.01,290 8858 54,
Department of Health,CT Revenue Funds,07-Mar-19,Cleaning Materials,North East Shropshire Interdisciplinary Teams,NHS SUPPLY CHAIN,1019236321,0.58,290 8858 54,
Department of Health,CT Revenue Funds,07-Mar-19,Cleaning Materials,North East Shropshire Interdisciplinary Teams,NHS SUPPLY CHAIN,1019236321,0.12,290 8858 54,
Department of Health,CT Revenue Funds,07-Mar-19,Cleaning Materials,Whitchurch Hospital Catering,NHS SUPPLY CHAIN,1019236321,9.6,290 8858 54,
Department of Health,CT Revenue Funds,07-Mar-19,Cleaning Materials,Whitchurch Hospital Catering,NHS SUPPLY CHAIN,1019236321,7.92,290 8858 54,
Department of Health,CT Revenue Funds,07-Mar-19,Cleaning Materials,Whitchurch Hospital Catering,NHS SUPPLY CHAIN,1019236321,18.48,290 8858 54,
Department of Health,CT Revenue Funds,07-Mar-19,Cleaning Materials,Whitchurch Hospital Catering,NHS SUPPLY CHAIN,1019236321,12.53,290 8858 54,
Department of Health,CT Revenue Funds,07-Mar-19,Cleaning Materials,Whitchurch Hospital Catering,NHS SUPPLY CHAIN,1019236321,1.92,290 8858 54,
Department of Health,CT Revenue Funds,07-Mar-19,Cleaning Materials,Whitchurch Hospital Catering,NHS SUPPLY CHAIN,1019236321,1.59,290 8858 54,
Department of Health,CT Revenue Funds,07-Mar-19,Cleaning Materials,Whitchurch Hospital Catering,NHS SUPPLY CHAIN,1019236321,3.7,290 8858 54,
Department of Health,CT Revenue Funds,07-Mar-19,Cleaning Materials,Whitchurch Hospital Catering,NHS SUPPLY CHAIN,1019236321,2.51,290 8858 54,
Department of Health,CT Revenue Funds,07-Mar-19,Cleaning Materials,Whitchurch Hospital Catering,NHS SUPPLY CHAIN,1019236321,0.26,290 8858 54,
Department of Health,CT Revenue Funds,07-Mar-19,Cleaning Materials,Whitchurch Hospital Catering,NHS SUPPLY CHAIN,1019236321,-0.1,290 8858 54,
Department of Health,CT Revenue Funds,07-Mar-19,Cleaning Materials,Whitchurch Hospital Catering,NHS SUPPLY CHAIN,1019236321,0.05,290 8858 54,
Department of Health,CT Revenue Funds,07-Mar-19,Cleaning Materials,Whitchurch Hospital Catering,NHS SUPPLY CHAIN,1019236321,-0.02,290 8858 54,
Department of Health,CT Revenue Funds,07-Mar-19,Cleaning Materials,Bridgnorth Hospital Hotel Services,NHS SUPPLY CHAIN,1019236321,13.56,290 8858 54,
Department of Health,CT Revenue Funds,07-Mar-19,Cleaning Materials,Bridgnorth Hospital Hotel Services,NHS SUPPLY CHAIN,1019236321,6.05,290 8858 54,
Department of Health,CT Revenue Funds,07-Mar-19,Cleaning Materials,Bridgnorth Hospital Hotel Services,NHS SUPPLY CHAIN,1019236321,13.72,290 8858 54,
Department of Health,CT Revenue Funds,07-Mar-19,Cleaning Materials,Bridgnorth Hospital Hotel Services,NHS SUPPLY CHAIN,1019236321,10.92,290 8858 54,
Department of Health,CT Revenue Funds,07-Mar-19,Cleaning Materials,Bridgnorth Hospital Hotel Services,NHS SUPPLY CHAIN,1019236321,13.44,290 8858 54,
Department of Health,CT Revenue Funds,07-Mar-19,Cleaning Materials,Bridgnorth Hospital Hotel Services,NHS SUPPLY CHAIN,1019236321,13.44,290 8858 54,
Department of Health,CT Revenue Funds,07-Mar-19,Cleaning Materials,Bridgnorth Hospital Hotel Services,NHS SUPPLY CHAIN,1019236321,13.44,290 8858 54,
Department of Health,CT Revenue Funds,07-Mar-19,Cleaning Materials,Bridgnorth Hospital Hotel Services,NHS SUPPLY CHAIN,1019236321,-0.06,290 8858 54,
Department of Health,CT Revenue Funds,07-Mar-19,Cleaning Materials,Bridgnorth Hospital Hotel Services,NHS SUPPLY CHAIN,1019236321,-0.02,290 8858 54,
Department of Health,CT Revenue Funds,07-Mar-19,Cleaning Materials,Bridgnorth Hospital Hotel Services,NHS SUPPLY CHAIN,1019236321,-0.04,290 8858 54,
Department of Health,CT Revenue Funds,07-Mar-19,Cleaning Materials,Bridgnorth Hospital Hotel Services,NHS SUPPLY CHAIN,1019236321,-0.04,290 8858 54,
Department of Health,CT Revenue Funds,07-Mar-19,Cleaning Materials,Bridgnorth Hospital Hotel Services,NHS SUPPLY CHAIN,1019236321,-0.04,290 8858 54,
Department of Health,CT Revenue Funds,07-Mar-19,Cleaning Materials,Bridgnorth Hospital Hotel Services,NHS SUPPLY CHAIN,1019236321,2.71,290 8858 54,
Department of Health,CT Revenue Funds,07-Mar-19,Cleaning Materials,Bridgnorth Hospital Hotel Services,NHS SUPPLY CHAIN,1019236321,1.21,290 8858 54,
Department of Health,CT Revenue Funds,07-Mar-19,Cleaning Materials,Bridgnorth Hospital Hotel Services,NHS SUPPLY CHAIN,1019236321,2.74,290 8858 54,
Department of Health,CT Revenue Funds,07-Mar-19,Cleaning Materials,Bridgnorth Hospital Hotel Services,NHS SUPPLY CHAIN,1019236321,2.18,290 8858 54,
Department of Health,CT Revenue Funds,07-Mar-19,Cleaning Materials,Bridgnorth Hospital Hotel Services,NHS SUPPLY CHAIN,1019236321,2.69,290 8858 54,
Department of Health,CT Revenue Funds,07-Mar-19,Cleaning Materials,Bridgnorth Hospital Hotel Services,NHS SUPPLY CHAIN,1019236321,2.69,290 8858 54,
Department of Health,CT Revenue Funds,07-Mar-19,Cleaning Materials,Bridgnorth Hospital Hotel Services,NHS SUPPLY CHAIN,1019236321,2.69,290 8858 54,
Department of Health,CT Revenue Funds,07-Mar-19,Cleaning Materials,Bridgnorth Hospital Hotel Services,NHS SUPPLY CHAIN,1019236321,-0.01,290 8858 54,
Department of Health,CT Revenue Funds,07-Mar-19,Cleaning Materials,Bridgnorth Hospital Hotel Services,NHS SUPPLY CHAIN,1019236321,-0.01,290 8858 54,
Department of Health,CT Revenue Funds,07-Mar-19,Cleaning Materials,Bridgnorth Hospital Hotel Services,NHS SUPPLY CHAIN,1019236321,-0.01,290 8858 54,
Department of Health,CT Revenue Funds,07-Mar-19,Cleaning Materials,Bridgnorth Hospital Hotel Services,NHS SUPPLY CHAIN,1019236321,-0.01,290 8858 54,
Department of Health,CT Revenue Funds,07-Mar-19,Cleaning Materials,Ludlow Hospital Hotel Services,NHS SUPPLY CHAIN,1019236321,46.71,290 8858 54,
Department of Health,CT Revenue Funds,07-Mar-19,Cleaning Materials,Ludlow Hospital Hotel Services,NHS SUPPLY CHAIN,1019236321,10.45,290 8858 54,
Department of Health,CT Revenue Funds,07-Mar-19,Cleaning Materials,Ludlow Hospital Hotel Services,NHS SUPPLY CHAIN,1019236321,10.92,290 8858 54,
Department of Health,CT Revenue Funds,07-Mar-19,Cleaning Materials,Ludlow Hospital Hotel Services,NHS SUPPLY CHAIN,1019236321,16.9,290 8858 54,
Department of Health,CT Revenue Funds,07-Mar-19,Cleaning Materials,Ludlow Hospital Hotel Services,NHS SUPPLY CHAIN,1019236321,16.9,290 8858 54,
Department of Health,CT Revenue Funds,07-Mar-19,Cleaning Materials,Ludlow Hospital Hotel Services,NHS SUPPLY CHAIN,1019236321,16.9,290 8858 54,
Department of Health,CT Revenue Funds,07-Mar-19,Cleaning Materials,Ludlow Hospital Hotel Services,NHS SUPPLY CHAIN,1019236321,27.33,290 8858 54,
Department of Health,CT Revenue Funds,07-Mar-19,Cleaning Materials,Ludlow Hospital Hotel Services,NHS SUPPLY CHAIN,1019236321,48.2,290 8858 54,
Department of Health,CT Revenue Funds,07-Mar-19,Cleaning Materials,Ludlow Hospital Hotel Services,NHS SUPPLY CHAIN,1019236321,9.34,290 8858 54,
Department of Health,CT Revenue Funds,07-Mar-19,Cleaning Materials,Ludlow Hospital Hotel Services,NHS SUPPLY CHAIN,1019236321,2.09,290 8858 54,
Department of Health,CT Revenue Funds,07-Mar-19,Cleaning Materials,Ludlow Hospital Hotel Services,NHS SUPPLY CHAIN,1019236321,2.18,290 8858 54,
Department of Health,CT Revenue Funds,07-Mar-19,Cleaning Materials,Ludlow Hospital Hotel Services,NHS SUPPLY CHAIN,1019236321,3.38,290 8858 54,
Department of Health,CT Revenue Funds,07-Mar-19,Cleaning Materials,Ludlow Hospital Hotel Services,NHS SUPPLY CHAIN,1019236321,3.38,290 8858 54,
Department of Health,CT Revenue Funds,07-Mar-19,Cleaning Materials,Ludlow Hospital Hotel Services,NHS SUPPLY CHAIN,1019236321,3.38,290 8858 54,
Department of Health,CT Revenue Funds,07-Mar-19,Cleaning Materials,Ludlow Hospital Hotel Services,NHS SUPPLY CHAIN,1019236321,5.47,290 8858 54,
Department of Health,CT Revenue Funds,07-Mar-19,Cleaning Materials,Ludlow Hospital Hotel Services,NHS SUPPLY CHAIN,1019236321,9.64,290 8858 54,
Department of Health,CT Revenue Funds,07-Mar-19,Cleaning Materials,Ludlow Hospital Hotel Services,NHS SUPPLY CHAIN,1019236321,-0.02,290 8858 54,
Department of Health,CT Revenue Funds,07-Mar-19,Cleaning Materials,Bishops Castle Hospital Domestics,NHS SUPPLY CHAIN,1019236321,10.92,290 8858 54,
Department of Health,CT Revenue Funds,07-Mar-19,Cleaning Materials,Bishops Castle Hospital Domestics,NHS SUPPLY CHAIN,1019236321,27.44,290 8858 54,
Department of Health,CT Revenue Funds,07-Mar-19,Cleaning Materials,Bishops Castle Hospital Domestics,NHS SUPPLY CHAIN,1019236321,9.1,290 8858 54,
Department of Health,CT Revenue Funds,07-Mar-19,Cleaning Materials,Bishops Castle Hospital Domestics,NHS SUPPLY CHAIN,1019236321,25.06,290 8858 54,
Department of Health,CT Revenue Funds,07-Mar-19,Cleaning Materials,Bishops Castle Hospital Domestics,NHS SUPPLY CHAIN,1019236321,2.18,290 8858 54,
Department of Health,CT Revenue Funds,07-Mar-19,Cleaning Materials,Bishops Castle Hospital Domestics,NHS SUPPLY CHAIN,1019236321,5.49,290 8858 54,
Department of Health,CT Revenue Funds,07-Mar-19,Cleaning Materials,Bishops Castle Hospital Domestics,NHS SUPPLY CHAIN,1019236321,1.82,290 8858 54,
Department of Health,CT Revenue Funds,07-Mar-19,Cleaning Materials,Bishops Castle Hospital Domestics,NHS SUPPLY CHAIN,1019236321,5.01,290 8858 54,
Department of Health,CT Revenue Funds,07-Mar-19,Cleaning Materials,Bishops Castle Hospital Domestics,NHS SUPPLY CHAIN,1019236321,-0.02,290 8858 54,
Department of Health,CT Revenue Funds,07-Mar-19,Cleaning Materials,Bishops Castle Hospital Domestics,NHS SUPPLY CHAIN,1019236321,-0.01,290 8858 54,
Department of Health,CT Revenue Funds,07-Mar-19,Cleaning Materials,Bishops Castle Hospital Domestics,NHS SUPPLY CHAIN,1019236321,-0.02,290 8858 54,
Department of Health,CT Revenue Funds,07-Mar-19,Cleaning Materials,Bishops Castle Hospital Domestics,NHS SUPPLY CHAIN,1019236321,0.01,290 8858 54,
Department of Health,CT Revenue Funds,07-Mar-19,"Colostomy, Ileostomy, Urostomy & Incontinence Products",Ludlow Hospital Inpatient Wards,NHS SUPPLY CHAIN,1019236321,10.05,290 8858 54,
Department of Health,CT Revenue Funds,07-Mar-19,"Colostomy, Ileostomy, Urostomy & Incontinence Products",Ludlow Hospital Inpatient Wards,NHS SUPPLY CHAIN,1019236321,8.78,290 8858 54,
Department of Health,CT Revenue Funds,07-Mar-19,"Colostomy, Ileostomy, Urostomy & Incontinence Products",Ludlow Hospital Inpatient Wards,NHS SUPPLY CHAIN,1019236321,13.17,290 8858 54,
Department of Health,CT Revenue Funds,07-Mar-19,"Colostomy, Ileostomy, Urostomy & Incontinence Products",Ludlow Hospital Inpatient Wards,NHS SUPPLY CHAIN,1019236321,4.39,290 8858 54,
Department of Health,CT Revenue Funds,07-Mar-19,"Colostomy, Ileostomy, Urostomy & Incontinence Products",Ludlow Hospital Inpatient Wards,NHS SUPPLY CHAIN,1019236321,3.76,290 8858 54,
Department of Health,CT Revenue Funds,07-Mar-19,"Colostomy, Ileostomy, Urostomy & Incontinence Products",Ludlow Hospital Inpatient Wards,NHS SUPPLY CHAIN,1019236321,6.64,290 8858 54,
Department of Health,CT Revenue Funds,07-Mar-19,"Colostomy, Ileostomy, Urostomy & Incontinence Products",Ludlow Hospital Inpatient Wards,NHS SUPPLY CHAIN,1019236321,-0.01,290 8858 54,
Department of Health,CT Revenue Funds,07-Mar-19,"Colostomy, Ileostomy, Urostomy & Incontinence Products",Ludlow Hospital Inpatient Wards,NHS SUPPLY CHAIN,1019236321,0.01,290 8858 54,
Department of Health,CT Revenue Funds,07-Mar-19,"Colostomy, Ileostomy, Urostomy & Incontinence Products",Ludlow Hospital Inpatient Wards,NHS SUPPLY CHAIN,1019236321,-0.01,290 8858 54,
Department of Health,CT Revenue Funds,07-Mar-19,"Colostomy, Ileostomy, Urostomy & Incontinence Products",Ludlow Hospital Inpatient Wards,NHS SUPPLY CHAIN,1019236321,-0.04,290 8858 54,
Department of Health,CT Revenue Funds,07-Mar-19,"Colostomy, Ileostomy, Urostomy & Incontinence Products",Ludlow Hospital Inpatient Wards,NHS SUPPLY CHAIN,1019236321,2.01,290 8858 54,
Department of Health,CT Revenue Funds,07-Mar-19,"Colostomy, Ileostomy, Urostomy & Incontinence Products",Ludlow Hospital Inpatient Wards,NHS SUPPLY CHAIN,1019236321,1.76,290 8858 54,
Department of Health,CT Revenue Funds,07-Mar-19,"Colostomy, Ileostomy, Urostomy & Incontinence Products",Ludlow Hospital Inpatient Wards,NHS SUPPLY CHAIN,1019236321,2.64,290 8858 54,
Department of Health,CT Revenue Funds,07-Mar-19,"Colostomy, Ileostomy, Urostomy & Incontinence Products",Ludlow Hospital Inpatient Wards,NHS SUPPLY CHAIN,1019236321,0.88,290 8858 54,
Department of Health,CT Revenue Funds,07-Mar-19,"Colostomy, Ileostomy, Urostomy & Incontinence Products",Ludlow Hospital Inpatient Wards,NHS SUPPLY CHAIN,1019236321,0.75,290 8858 54,
Department of Health,CT Revenue Funds,07-Mar-19,"Colostomy, Ileostomy, Urostomy & Incontinence Products",Ludlow Hospital Inpatient Wards,NHS SUPPLY CHAIN,1019236321,1.33,290 8858 54,
Department of Health,CT Revenue Funds,07-Mar-19,"Colostomy, Ileostomy, Urostomy & Incontinence Products",Whitchurch Hospital Inpatient Ward,NHS SUPPLY CHAIN,1019236321,6.52,290 8858 54,
Department of Health,CT Revenue Funds,07-Mar-19,"Colostomy, Ileostomy, Urostomy & Incontinence Products",Whitchurch Hospital Inpatient Ward,NHS SUPPLY CHAIN,1019236321,8.64,290 8858 54,
Department of Health,CT Revenue Funds,07-Mar-19,"Colostomy, Ileostomy, Urostomy & Incontinence Products",Whitchurch Hospital Inpatient Ward,NHS SUPPLY CHAIN,1019236321,0.01,290 8858 54,
Department of Health,CT Revenue Funds,07-Mar-19,"Colostomy, Ileostomy, Urostomy & Incontinence Products",Whitchurch Hospital Inpatient Ward,NHS SUPPLY CHAIN,1019236321,-0.01,290 8858 54,
Department of Health,CT Revenue Funds,07-Mar-19,"Colostomy, Ileostomy, Urostomy & Incontinence Products",Whitchurch Hospital Inpatient Ward,NHS SUPPLY CHAIN,1019236321,1.31,290 8858 54,
Department of Health,CT Revenue Funds,07-Mar-19,"Colostomy, Ileostomy, Urostomy & Incontinence Products",Whitchurch Hospital Inpatient Ward,NHS SUPPLY CHAIN,1019236321,1.73,290 8858 54,
Department of Health,CT Revenue Funds,07-Mar-19,"Colostomy, Ileostomy, Urostomy & Incontinence Products",Bishops Castle Hospital Inpatient Ward,NHS SUPPLY CHAIN,1019236321,3.24,290 8858 54,
Department of Health,CT Revenue Funds,07-Mar-19,"Colostomy, Ileostomy, Urostomy & Incontinence Products",Bishops Castle Hospital Inpatient Ward,NHS SUPPLY CHAIN,1019236321,0.65,290 8858 54,
Department of Health,CT Revenue Funds,07-Mar-19,"Colostomy, Ileostomy, Urostomy & Incontinence Products",Bridgnorth Hospital Inpatient Ward,NHS SUPPLY CHAIN,1019236321,3.24,290 8858 54,
Department of Health,CT Revenue Funds,07-Mar-19,"Colostomy, Ileostomy, Urostomy & Incontinence Products",Bridgnorth Hospital Inpatient Ward,NHS SUPPLY CHAIN,1019236321,3.24,290 8858 54,
Department of Health,CT Revenue Funds,07-Mar-19,"Colostomy, Ileostomy, Urostomy & Incontinence Products",Bridgnorth Hospital Inpatient Ward,NHS SUPPLY CHAIN,1019236321,6.52,290 8858 54,
Department of Health,CT Revenue Funds,07-Mar-19,"Colostomy, Ileostomy, Urostomy & Incontinence Products",Bridgnorth Hospital Inpatient Ward,NHS SUPPLY CHAIN,1019236321,6.52,290 8858 54,
Department of Health,CT Revenue Funds,07-Mar-19,"Colostomy, Ileostomy, Urostomy & Incontinence Products",Bridgnorth Hospital Inpatient Ward,NHS SUPPLY CHAIN,1019236321,0.01,290 8858 54,
Department of Health,CT Revenue Funds,07-Mar-19,"Colostomy, Ileostomy, Urostomy & Incontinence Products",Bridgnorth Hospital Inpatient Ward,NHS SUPPLY CHAIN,1019236321,0.01,290 8858 54,
Department of Health,CT Revenue Funds,07-Mar-19,"Colostomy, Ileostomy, Urostomy & Incontinence Products",Bridgnorth Hospital Inpatient Ward,NHS SUPPLY CHAIN,1019236321,0.65,290 8858 54,
Department of Health,CT Revenue Funds,07-Mar-19,"Colostomy, Ileostomy, Urostomy & Incontinence Products",Bridgnorth Hospital Inpatient Ward,NHS SUPPLY CHAIN,1019236321,0.65,290 8858 54,
Department of Health,CT Revenue Funds,07-Mar-19,"Colostomy, Ileostomy, Urostomy & Incontinence Products",Bridgnorth Hospital Inpatient Ward,NHS SUPPLY CHAIN,1019236321,1.31,290 8858 54,
Department of Health,CT Revenue Funds,07-Mar-19,"Colostomy, Ileostomy, Urostomy & Incontinence Products",Bridgnorth Hospital Inpatient Ward,NHS SUPPLY CHAIN,1019236321,1.31,290 8858 54,
Department of Health,CT Revenue Funds,07-Mar-19,Computer Consumables,Bridgnorth Hospital Theatre,NHS SUPPLY CHAIN,1019236321,125.01,290 8858 54,
Department of Health,CT Revenue Funds,07-Mar-19,Computer Consumables,Bridgnorth Hospital Theatre,NHS SUPPLY CHAIN,1019236321,42.07,290 8858 54,
Department of Health,CT Revenue Funds,07-Mar-19,Computer Consumables,Bridgnorth Hospital Theatre,NHS SUPPLY CHAIN,1019236321,42.07,290 8858 54,
Department of Health,CT Revenue Funds,07-Mar-19,Computer Consumables,Bridgnorth Hospital Theatre,NHS SUPPLY CHAIN,1019236321,-0.01,290 8858 54,
Department of Health,CT Revenue Funds,07-Mar-19,Computer Consumables,Bridgnorth Hospital Theatre,NHS SUPPLY CHAIN,1019236321,25,290 8858 54,
Department of Health,CT Revenue Funds,07-Mar-19,Computer Consumables,Bridgnorth Hospital Theatre,NHS SUPPLY CHAIN,1019236321,8.41,290 8858 54,
Department of Health,CT Revenue Funds,07-Mar-19,Computer Consumables,Bridgnorth Hospital Theatre,NHS SUPPLY CHAIN,1019236321,8.41,290 8858 54,
Department of Health,CT Revenue Funds,07-Mar-19,Computer Consumables,Finance Directorate Management,NHS SUPPLY CHAIN,1019236321,273.93,290 8858 54,
Department of Health,CT Revenue Funds,07-Mar-19,Computer Consumables,Finance Directorate Management,NHS SUPPLY CHAIN,1019236321,273.93,290 8858 54,
Department of Health,CT Revenue Funds,07-Mar-19,Computer Consumables,Finance Directorate Management,NHS SUPPLY CHAIN,1019236321,259.47,290 8858 54,
Department of Health,CT Revenue Funds,07-Mar-19,Computer Consumables,Finance Directorate Management,NHS SUPPLY CHAIN,1019236321,273.93,290 8858 54,
Department of Health,CT Revenue Funds,07-Mar-19,Computer Consumables,Finance Directorate Management,NHS SUPPLY CHAIN,1019236321,51.9,290 8858 54,
Department of Health,CT Revenue Funds,07-Mar-19,Computer Consumables,Finance Directorate Management,NHS SUPPLY CHAIN,1019236321,54.78,290 8858 54,
Department of Health,CT Revenue Funds,07-Mar-19,Computer Consumables,Finance Directorate Management,NHS SUPPLY CHAIN,1019236321,54.78,290 8858 54,
Department of Health,CT Revenue Funds,07-Mar-19,Computer Consumables,Finance Directorate Management,NHS SUPPLY CHAIN,1019236321,54.78,290 8858 54,
Department of Health,CT Revenue Funds,07-Mar-19,Computer Consumables,Finance Directorate Management,NHS SUPPLY CHAIN,1019236321,-0.57,290 8858 54,
Department of Health,CT Revenue Funds,07-Mar-19,Computer Consumables,Finance Directorate Management,NHS SUPPLY CHAIN,1019236321,0.01,290 8858 54,
Department of Health,CT Revenue Funds,07-Mar-19,Computer Consumables,Finance Directorate Management,NHS SUPPLY CHAIN,1019236321,-0.01,290 8858 54,
Department of Health,CT Revenue Funds,07-Mar-19,Computer Consumables,Finance Directorate Management,NHS SUPPLY CHAIN,1019236321,-0.01,290 8858 54,
Department of Health,CT Revenue Funds,07-Mar-19,Computer Consumables,Finance Directorate Management,NHS SUPPLY CHAIN,1019236321,-0.01,290 8858 54,
Department of Health,CT Revenue Funds,07-Mar-19,Computer Consumables,MSK Management & Admin,NHS SUPPLY CHAIN,1019236321,46.34,290 8858 54,
Department of Health,CT Revenue Funds,07-Mar-19,Computer Consumables,MSK Management & Admin,NHS SUPPLY CHAIN,1019236321,9.27,290 8858 54,
Department of Health,CT Revenue Funds,07-Mar-19,Computer Consumables,MSK Rheumatology,NHS SUPPLY CHAIN,1019236321,-71.12,290 8858 54,
Department of Health,CT Revenue Funds,07-Mar-19,Computer Consumables,MSK Rheumatology,NHS SUPPLY CHAIN,1019236321,-14.22,290 8858 54,
Department of Health,CT Revenue Funds,07-Mar-19,Computer Consumables,Ludlow Hospital Inpatient Wards,NHS SUPPLY CHAIN,1019236321,0.74,290 8858 54,
Department of Health,CT Revenue Funds,07-Mar-19,Computer Consumables,Ludlow Hospital Inpatient Wards,NHS SUPPLY CHAIN,1019236321,3.72,290 8858 54,
Department of Health,CT Revenue Funds,07-Mar-19,Computer Consumables,Ludlow Hospital Inpatient Wards,NHS SUPPLY CHAIN,1019236321,3.72,290 8858 54,
Department of Health,CT Revenue Funds,07-Mar-19,Computer Consumables,Ludlow Hospital Inpatient Wards,NHS SUPPLY CHAIN,1019236321,0.74,290 8858 54,
Department of Health,CT Revenue Funds,07-Mar-19,Computer Consumables,Diabetes Specialist Nursing,NHS SUPPLY CHAIN,1019236321,190.68,290 8858 54,
Department of Health,CT Revenue Funds,07-Mar-19,Computer Consumables,Diabetes Specialist Nursing,NHS SUPPLY CHAIN,1019236321,13.99,290 8858 54,
Department of Health,CT Revenue Funds,07-Mar-19,Computer Consumables,Diabetes Specialist Nursing,NHS SUPPLY CHAIN,1019236321,-0.01,290 8858 54,
Department of Health,CT Revenue Funds,07-Mar-19,Computer Consumables,Diabetes Specialist Nursing,NHS SUPPLY CHAIN,1019236321,38.13,290 8858 54,
Department of Health,CT Revenue Funds,07-Mar-19,Computer Consumables,Diabetes Specialist Nursing,NHS SUPPLY CHAIN,1019236321,2.8,290 8858 54,
Department of Health,CT Revenue Funds,07-Mar-19,Computer Consumables,North East Shropshire Interdisciplinary Teams,NHS SUPPLY CHAIN,1019236321,85.6,290 8858 54,
Department of Health,CT Revenue Funds,07-Mar-19,Computer Consumables,North East Shropshire Interdisciplinary Teams,NHS SUPPLY CHAIN,1019236321,91.82,290 8858 54,
Department of Health,CT Revenue Funds,07-Mar-19,Computer Consumables,North East Shropshire Interdisciplinary Teams,NHS SUPPLY CHAIN,1019236321,52.29,290 8858 54,
Department of Health,CT Revenue Funds,07-Mar-19,Computer Consumables,North East Shropshire Interdisciplinary Teams,NHS SUPPLY CHAIN,1019236321,52.29,290 8858 54,
Department of Health,CT Revenue Funds,07-Mar-19,Computer Consumables,North East Shropshire Interdisciplinary Teams,NHS SUPPLY CHAIN,1019236321,17.12,290 8858 54,
Department of Health,CT Revenue Funds,07-Mar-19,Computer Consumables,North East Shropshire Interdisciplinary Teams,NHS SUPPLY CHAIN,1019236321,18.36,290 8858 54,
Department of Health,CT Revenue Funds,07-Mar-19,Computer Consumables,North East Shropshire Interdisciplinary Teams,NHS SUPPLY CHAIN,1019236321,10.46,290 8858 54,
Department of Health,CT Revenue Funds,07-Mar-19,Computer Consumables,North East Shropshire Interdisciplinary Teams,NHS SUPPLY CHAIN,1019236321,10.46,290 8858 54,
Department of Health,CT Revenue Funds,07-Mar-19,Computer Consumables,North East Shropshire Physiotherapy Clinics,NHS SUPPLY CHAIN,1019236321,70,290 8858 54,
Department of Health,CT Revenue Funds,07-Mar-19,Computer Consumables,North East Shropshire Physiotherapy Clinics,NHS SUPPLY CHAIN,1019236321,70,290 8858 54,
Department of Health,CT Revenue Funds,07-Mar-19,Computer Consumables,North East Shropshire Physiotherapy Clinics,NHS SUPPLY CHAIN,1019236321,14,290 8858 54,
Department of Health,CT Revenue Funds,07-Mar-19,Computer Consumables,North East Shropshire Physiotherapy Clinics,NHS SUPPLY CHAIN,1019236321,14,290 8858 54,
Department of Health,CT Revenue Funds,07-Mar-19,Computer Consumables,Shrewsbury and Atcham DAART,NHS SUPPLY CHAIN,1019236321,126.21,290 8858 54,
Department of Health,CT Revenue Funds,07-Mar-19,Computer Consumables,Shrewsbury and Atcham DAART,NHS SUPPLY CHAIN,1019236321,-0.01,290 8858 54,
Department of Health,CT Revenue Funds,07-Mar-19,Computer Consumables,Shrewsbury and Atcham DAART,NHS SUPPLY CHAIN,1019236321,25.24,290 8858 54,
Department of Health,CT Revenue Funds,07-Mar-19,Computer Consumables,Stoke Heath Prison Healthcare,NHS SUPPLY CHAIN,1019236321,71.12,290 8858 54,
Department of Health,CT Revenue Funds,07-Mar-19,Computer Consumables,Stoke Heath Prison Healthcare,NHS SUPPLY CHAIN,1019236321,14.22,290 8858 54,
Department of Health,CT Revenue Funds,07-Mar-19,Computer Consumables,North Shropshire PHNS,NHS SUPPLY CHAIN,1019236321,14.14,290 8858 54,
Department of Health,CT Revenue Funds,07-Mar-19,Computer Consumables,North Shropshire PHNS,NHS SUPPLY CHAIN,1019236321,28.93,290 8858 54,
Department of Health,CT Revenue Funds,07-Mar-19,Computer Consumables,North Shropshire PHNS,NHS SUPPLY CHAIN,1019236321,28.93,290 8858 54,
Department of Health,CT Revenue Funds,07-Mar-19,Computer Consumables,North Shropshire PHNS,NHS SUPPLY CHAIN,1019236321,5.79,290 8858 54,
Department of Health,CT Revenue Funds,07-Mar-19,Computer Consumables,North Shropshire PHNS,NHS SUPPLY CHAIN,1019236321,2.83,290 8858 54,
Department of Health,CT Revenue Funds,07-Mar-19,Computer Consumables,North Shropshire PHNS,NHS SUPPLY CHAIN,1019236321,5.79,290 8858 54,
Department of Health,CT Revenue Funds,07-Mar-19,Computer Consumables,North Shropshire PHNS,NHS SUPPLY CHAIN,1019236321,5.79,290 8858 54,
Department of Health,CT Revenue Funds,07-Mar-19,Computer Consumables,North Shropshire PHNS,NHS SUPPLY CHAIN,1019236321,28.93,290 8858 54,
Department of Health,CT Revenue Funds,07-Mar-19,Computer Consumables,Whitchurch Hospital Administration,NHS SUPPLY CHAIN,1019236321,45.42,290 8858 54,
Department of Health,CT Revenue Funds,07-Mar-19,Computer Consumables,Whitchurch Hospital Administration,NHS SUPPLY CHAIN,1019236321,93.18,290 8858 54,
Department of Health,CT Revenue Funds,07-Mar-19,Computer Consumables,Whitchurch Hospital Administration,NHS SUPPLY CHAIN,1019236321,9.08,290 8858 54,
Department of Health,CT Revenue Funds,07-Mar-19,Computer Consumables,Whitchurch Hospital Administration,NHS SUPPLY CHAIN,1019236321,18.64,290 8858 54,
Department of Health,CT Revenue Funds,07-Mar-19,Computer Consumables,North West Shropshire Interdisciplinary Teams,NHS SUPPLY CHAIN,1019236321,85.6,290 8858 54,
Department of Health,CT Revenue Funds,07-Mar-19,Computer Consumables,North West Shropshire Interdisciplinary Teams,NHS SUPPLY CHAIN,1019236321,91.82,290 8858 54,
Department of Health,CT Revenue Funds,07-Mar-19,Computer Consumables,North West Shropshire Interdisciplinary Teams,NHS SUPPLY CHAIN,1019236321,52.29,290 8858 54,
Department of Health,CT Revenue Funds,07-Mar-19,Computer Consumables,North West Shropshire Interdisciplinary Teams,NHS SUPPLY CHAIN,1019236321,17.12,290 8858 54,
Department of Health,CT Revenue Funds,07-Mar-19,Computer Consumables,North West Shropshire Interdisciplinary Teams,NHS SUPPLY CHAIN,1019236321,18.36,290 8858 54,
Department of Health,CT Revenue Funds,07-Mar-19,Computer Consumables,North West Shropshire Interdisciplinary Teams,NHS SUPPLY CHAIN,1019236321,10.46,290 8858 54,
Department of Health,CT Revenue Funds,07-Mar-19,Computer Consumables,APCS Administration,NHS SUPPLY CHAIN,1019236321,70.64,290 8858 54,
Department of Health,CT Revenue Funds,07-Mar-19,Computer Consumables,APCS Administration,NHS SUPPLY CHAIN,1019236321,14.13,290 8858 54,
Department of Health,CT Revenue Funds,07-Mar-19,Computer Network Costs,Dudley School Nurses,NHS SUPPLY CHAIN,1019236321,6.78,290 8858 54,
Department of Health,CT Revenue Funds,07-Mar-19,Computer Network Costs,Dudley School Nurses,NHS SUPPLY CHAIN,1019236321,1.36,290 8858 54,
Department of Health,CT Revenue Funds,07-Mar-19,Consultant - Cardiology,Respiratory Liaison Nurses (T&W),SHREWSBURY AND TELFORD HOSPITAL NHS TRUST,10130872,1162.34,654939296,
Department of Health,CT Revenue Funds,07-Mar-19,Consultant - Orthopaedics,Bridgnorth Hospital Outpatients,ROBERT JONES AND AGNES HUNT NHS FT,20104870,877.5,654 9380 06,
Department of Health,CT Revenue Funds,07-Mar-19,Consultant - Rheumatology,MSK Rheumatology,ROBERT JONES AND AGNES HUNT NHS FT,20104615,11520,654 9380 06,
Department of Health,CT Revenue Funds,07-Mar-19,Consultant - Rheumatology,MSK Rheumatology,ROBERT JONES AND AGNES HUNT NHS FT,20104615,8677,654 9380 06,
Department of Health,CT Revenue Funds,07-Mar-19,Dental From Other NHS Bodies,Special Care and Access,ROBERT JONES AND AGNES HUNT NHS FT,20104871,5358,654 9380 06,
Department of Health,CT Revenue Funds,07-Mar-19,Dental Surgery Sundries,Special Care and Access,NHS SUPPLY CHAIN,1019236321,4.42,290 8858 54,
Department of Health,CT Revenue Funds,07-Mar-19,Dental Surgery Sundries,M Drayton Dental Practice,NHS SUPPLY CHAIN,1019236321,13.26,290 8858 54,
Department of Health,CT Revenue Funds,07-Mar-19,Dental Surgery Sundries,M Drayton Dental Practice,NHS SUPPLY CHAIN,1019236321,8.62,290 8858 54,
Department of Health,CT Revenue Funds,07-Mar-19,Dental Surgery Sundries,M Drayton Dental Practice,NHS SUPPLY CHAIN,1019236321,31.23,290 8858 54,
Department of Health,CT Revenue Funds,07-Mar-19,Dental Surgery Sundries,M Drayton Dental Practice,NHS SUPPLY CHAIN,1019236321,2.65,290 8858 54,
Department of Health,CT Revenue Funds,07-Mar-19,Dental Surgery Sundries,M Drayton Dental Practice,NHS SUPPLY CHAIN,1019236321,1.72,290 8858 54,
Department of Health,CT Revenue Funds,07-Mar-19,Dental Surgery Sundries,M Drayton Dental Practice,NHS SUPPLY CHAIN,1019236321,6.25,290 8858 54,
Department of Health,CT Revenue Funds,07-Mar-19,Dental Surgery Sundries,Special Care and Access,NHS SUPPLY CHAIN,1019236321,22.08,290 8858 54,
Department of Health,CT Revenue Funds,07-Mar-19,Dental Surgery Sundries,Special Care and Access,NHS SUPPLY CHAIN,1019236321,-0.01,290 8858 54,
Department of Health,CT Revenue Funds,07-Mar-19,Dental Surgery Sundries,Special Care and Access,NHS SUPPLY CHAIN,1019236321,-0.03,290 8858 54,
Department of Health,CT Revenue Funds,07-Mar-19,Dental Surgery Sundries,Stoke Heath Prison Healthcare,NHS SUPPLY CHAIN,1019236321,48.29,290 8858 54,
Department of Health,CT Revenue Funds,07-Mar-19,Dental Surgery Sundries,Stoke Heath Prison Healthcare,NHS SUPPLY CHAIN,1019236321,14.94,290 8858 54,
Department of Health,CT Revenue Funds,07-Mar-19,Dental Surgery Sundries,Stoke Heath Prison Healthcare,NHS SUPPLY CHAIN,1019236321,41.38,290 8858 54,
Department of Health,CT Revenue Funds,07-Mar-19,Dental Surgery Sundries,Stoke Heath Prison Healthcare,NHS SUPPLY CHAIN,1019236321,4.15,290 8858 54,
Department of Health,CT Revenue Funds,07-Mar-19,Dental Surgery Sundries,Stoke Heath Prison Healthcare,NHS SUPPLY CHAIN,1019236321,28.47,290 8858 54,
Department of Health,CT Revenue Funds,07-Mar-19,Dental Surgery Sundries,Stoke Heath Prison Healthcare,NHS SUPPLY CHAIN,1019236321,10.64,290 8858 54,
Department of Health,CT Revenue Funds,07-Mar-19,Dental Surgery Sundries,Stoke Heath Prison Healthcare,NHS SUPPLY CHAIN,1019236321,-0.01,290 8858 54,
Department of Health,CT Revenue Funds,07-Mar-19,Dental Surgery Sundries,Stoke Heath Prison Healthcare,NHS SUPPLY CHAIN,1019236321,9.66,290 8858 54,
Department of Health,CT Revenue Funds,07-Mar-19,Dental Surgery Sundries,Stoke Heath Prison Healthcare,NHS SUPPLY CHAIN,1019236321,2.99,290 8858 54,
Department of Health,CT Revenue Funds,07-Mar-19,Dental Surgery Sundries,Stoke Heath Prison Healthcare,NHS SUPPLY CHAIN,1019236321,8.28,290 8858 54,
Department of Health,CT Revenue Funds,07-Mar-19,Dental Surgery Sundries,Stoke Heath Prison Healthcare,NHS SUPPLY CHAIN,1019236321,0.83,290 8858 54,
Department of Health,CT Revenue Funds,07-Mar-19,Dental Surgery Sundries,Stoke Heath Prison Healthcare,NHS SUPPLY CHAIN,1019236321,5.69,290 8858 54,
Department of Health,CT Revenue Funds,07-Mar-19,Dental Surgery Sundries,Stoke Heath Prison Healthcare,NHS SUPPLY CHAIN,1019236321,2.13,290 8858 54,
Department of Health,CT Revenue Funds,07-Mar-19,Disposable Table Linen,Bishops Castle Hospital Domestics,NHS SUPPLY CHAIN,1019236321,1.38,290 8858 54,
Department of Health,CT Revenue Funds,07-Mar-19,Disposable Table Linen,Bishops Castle Hospital Domestics,NHS SUPPLY CHAIN,1019236321,0.28,290 8858 54,
Department of Health,CT Revenue Funds,07-Mar-19,Disposable Table Linen,Whitchurch Hospital Inpatient Ward,NHS SUPPLY CHAIN,1019236321,2.76,290 8858 54,
Department of Health,CT Revenue Funds,07-Mar-19,Disposable Table Linen,Whitchurch Hospital Inpatient Ward,NHS SUPPLY CHAIN,1019236321,0.01,290 8858 54,
Department of Health,CT Revenue Funds,07-Mar-19,Disposable Table Linen,Whitchurch Hospital Inpatient Ward,NHS SUPPLY CHAIN,1019236321,0.55,290 8858 54,
Department of Health,CT Revenue Funds,07-Mar-19,Disposable Table Linen,Bishops Castle Hospital Inpatient Ward,NHS SUPPLY CHAIN,1019236321,2.76,290 8858 54,
Department of Health,CT Revenue Funds,07-Mar-19,Disposable Table Linen,Bishops Castle Hospital Inpatient Ward,NHS SUPPLY CHAIN,1019236321,1.38,290 8858 54,
Department of Health,CT Revenue Funds,07-Mar-19,Disposable Table Linen,Bishops Castle Hospital Inpatient Ward,NHS SUPPLY CHAIN,1019236321,0.55,290 8858 54,
Department of Health,CT Revenue Funds,07-Mar-19,Disposable Table Linen,Bishops Castle Hospital Inpatient Ward,NHS SUPPLY CHAIN,1019236321,0.28,290 8858 54,
Department of Health,CT Revenue Funds,07-Mar-19,Disposable Table Linen,Bishops Castle Hospital Inpatient Ward,NHS SUPPLY CHAIN,1019236321,0.01,290 8858 54,
Department of Health,CT Revenue Funds,07-Mar-19,Disposable Theatre Drapes & Wipes,Community Childrens Nurses,NHS SUPPLY CHAIN,1019236321,3.04,290 8858 54,
Department of Health,CT Revenue Funds,07-Mar-19,Disposable Theatre Drapes & Wipes,Community Childrens Nurses,NHS SUPPLY CHAIN,1019236321,-0.01,290 8858 54,
Department of Health,CT Revenue Funds,07-Mar-19,Disposable Theatre Drapes & Wipes,Community Childrens Nurses,NHS SUPPLY CHAIN,1019236321,0.61,290 8858 54,
Department of Health,CT Revenue Funds,07-Mar-19,Disposable Theatre Drapes & Wipes,Community Equipment Stores,NHS SUPPLY CHAIN,1019236321,65.16,290 8858 54,
Department of Health,CT Revenue Funds,07-Mar-19,Disposable Theatre Drapes & Wipes,Community Equipment Stores,NHS SUPPLY CHAIN,1019236321,-0.06,290 8858 54,
Department of Health,CT Revenue Funds,07-Mar-19,Disposable Theatre Drapes & Wipes,Community Equipment Stores,NHS SUPPLY CHAIN,1019236321,13.03,290 8858 54,
Department of Health,CT Revenue Funds,07-Mar-19,Disposable Theatre Drapes & Wipes,Community Equipment Stores,NHS SUPPLY CHAIN,1019236321,-0.01,290 8858 54,
Department of Health,CT Revenue Funds,07-Mar-19,Disposable Theatre Drapes & Wipes,APCS ENT,NHS SUPPLY CHAIN,1019236321,4.6,290 8858 54,
Department of Health,CT Revenue Funds,07-Mar-19,Disposable Theatre Drapes & Wipes,APCS ENT,NHS SUPPLY CHAIN,1019236321,0.92,290 8858 54,
Department of Health,CT Revenue Funds,07-Mar-19,Disposable Theatre Drapes & Wipes,Telford Wound Care pilot,NHS SUPPLY CHAIN,1019236321,15.2,290 8858 54,
Department of Health,CT Revenue Funds,07-Mar-19,Disposable Theatre Drapes & Wipes,Telford Wound Care pilot,NHS SUPPLY CHAIN,1019236321,16.88,290 8858 54,
Department of Health,CT Revenue Funds,07-Mar-19,Disposable Theatre Drapes & Wipes,Telford Wound Care pilot,NHS SUPPLY CHAIN,1019236321,3.04,290 8858 54,
Department of Health,CT Revenue Funds,07-Mar-19,Disposable Theatre Drapes & Wipes,Telford Wound Care pilot,NHS SUPPLY CHAIN,1019236321,3.38,290 8858 54,
Department of Health,CT Revenue Funds,07-Mar-19,Disposable Theatre Drapes & Wipes,Telford South Community Nursing,NHS SUPPLY CHAIN,1019236321,2.68,290 8858 54,
Department of Health,CT Revenue Funds,07-Mar-19,Disposable Theatre Drapes & Wipes,Telford South Community Nursing,NHS SUPPLY CHAIN,1019236321,9.66,290 8858 54,
Department of Health,CT Revenue Funds,07-Mar-19,Disposable Theatre Drapes & Wipes,Telford South Community Nursing,NHS SUPPLY CHAIN,1019236321,0.53,290 8858 54,
Department of Health,CT Revenue Funds,07-Mar-19,Disposable Theatre Drapes & Wipes,Telford South Community Nursing,NHS SUPPLY CHAIN,1019236321,1.93,290 8858 54,
Department of Health,CT Revenue Funds,07-Mar-19,Disposable Theatre Drapes & Wipes,Telford South Community Nursing,NHS SUPPLY CHAIN,1019236321,-0.01,290 8858 54,
Department of Health,CT Revenue Funds,07-Mar-19,Disposable Theatre Drapes & Wipes,Telford South Community Nursing,NHS SUPPLY CHAIN,1019236321,-0.01,290 8858 54,
Department of Health,CT Revenue Funds,07-Mar-19,Disposable Theatre Drapes & Wipes,Ludlow Hospital Inpatient Wards,NHS SUPPLY CHAIN,1019236321,12.13,290 8858 54,
Department of Health,CT Revenue Funds,07-Mar-19,Disposable Theatre Drapes & Wipes,Ludlow Hospital Inpatient Wards,NHS SUPPLY CHAIN,1019236321,18.77,290 8858 54,
Department of Health,CT Revenue Funds,07-Mar-19,Disposable Theatre Drapes & Wipes,Ludlow Hospital Inpatient Wards,NHS SUPPLY CHAIN,1019236321,7.65,290 8858 54,
Department of Health,CT Revenue Funds,07-Mar-19,Disposable Theatre Drapes & Wipes,Ludlow Hospital Inpatient Wards,NHS SUPPLY CHAIN,1019236321,2.43,290 8858 54,
Department of Health,CT Revenue Funds,07-Mar-19,Disposable Theatre Drapes & Wipes,Ludlow Hospital Inpatient Wards,NHS SUPPLY CHAIN,1019236321,3.75,290 8858 54,
Department of Health,CT Revenue Funds,07-Mar-19,Disposable Theatre Drapes & Wipes,Ludlow Hospital Inpatient Wards,NHS SUPPLY CHAIN,1019236321,1.53,290 8858 54,
Department of Health,CT Revenue Funds,07-Mar-19,Disposable Theatre Drapes & Wipes,South West Interdisciplinary Teams,NHS SUPPLY CHAIN,1019236321,3.42,290 8858 54,
Department of Health,CT Revenue Funds,07-Mar-19,Disposable Theatre Drapes & Wipes,South West Interdisciplinary Teams,NHS SUPPLY CHAIN,1019236321,0.69,290 8858 54,
Department of Health,CT Revenue Funds,07-Mar-19,Disposable Theatre Drapes & Wipes,South West Interdisciplinary Teams,NHS SUPPLY CHAIN,1019236321,0.01,290 8858 54,
Department of Health,CT Revenue Funds,07-Mar-19,Disposable Theatre Drapes & Wipes,Special Care and Access,NHS SUPPLY CHAIN,1019236321,12.13,290 8858 54,
Department of Health,CT Revenue Funds,07-Mar-19,Disposable Theatre Drapes & Wipes,Special Care and Access,NHS SUPPLY CHAIN,1019236321,2.43,290 8858 54,
Department of Health,CT Revenue Funds,07-Mar-19,Disposable Theatre Drapes & Wipes,M Drayton Dental Practice,NHS SUPPLY CHAIN,1019236321,30.4,290 8858 54,
Department of Health,CT Revenue Funds,07-Mar-19,Disposable Theatre Drapes & Wipes,M Drayton Dental Practice,NHS SUPPLY CHAIN,1019236321,0.02,290 8858 54,
Department of Health,CT Revenue Funds,07-Mar-19,Disposable Theatre Drapes & Wipes,M Drayton Dental Practice,NHS SUPPLY CHAIN,1019236321,6.08,290 8858 54,
Department of Health,CT Revenue Funds,07-Mar-19,Disposable Theatre Drapes & Wipes,Shrewsbury and Atcham DAART,NHS SUPPLY CHAIN,1019236321,6.08,290 8858 54,
Department of Health,CT Revenue Funds,07-Mar-19,Disposable Theatre Drapes & Wipes,Shrewsbury and Atcham DAART,NHS SUPPLY CHAIN,1019236321,6.08,290 8858 54,
Department of Health,CT Revenue Funds,07-Mar-19,Disposable Theatre Drapes & Wipes,Shrewsbury and Atcham DAART,NHS SUPPLY CHAIN,1019236321,3.64,290 8858 54,
Department of Health,CT Revenue Funds,07-Mar-19,Disposable Theatre Drapes & Wipes,Shrewsbury and Atcham DAART,NHS SUPPLY CHAIN,1019236321,1.57,290 8858 54,
Department of Health,CT Revenue Funds,07-Mar-19,Disposable Theatre Drapes & Wipes,Shrewsbury and Atcham DAART,NHS SUPPLY CHAIN,1019236321,-0.01,290 8858 54,
Department of Health,CT Revenue Funds,07-Mar-19,Disposable Theatre Drapes & Wipes,Shrewsbury and Atcham DAART,NHS SUPPLY CHAIN,1019236321,1.22,290 8858 54,
Department of Health,CT Revenue Funds,07-Mar-19,Disposable Theatre Drapes & Wipes,Shrewsbury and Atcham DAART,NHS SUPPLY CHAIN,1019236321,1.22,290 8858 54,
Department of Health,CT Revenue Funds,07-Mar-19,Disposable Theatre Drapes & Wipes,Shrewsbury and Atcham DAART,NHS SUPPLY CHAIN,1019236321,0.73,290 8858 54,
Department of Health,CT Revenue Funds,07-Mar-19,Disposable Theatre Drapes & Wipes,Shrewsbury and Atcham DAART,NHS SUPPLY CHAIN,1019236321,0.31,290 8858 54,
Department of Health,CT Revenue Funds,07-Mar-19,Disposable Theatre Drapes & Wipes,Podiatry Services,NHS SUPPLY CHAIN,1019236321,7.28,290 8858 54,
Department of Health,CT Revenue Funds,07-Mar-19,Disposable Theatre Drapes & Wipes,Podiatry Services,NHS SUPPLY CHAIN,1019236321,-0.01,290 8858 54,
Department of Health,CT Revenue Funds,07-Mar-19,Disposable Theatre Drapes & Wipes,Podiatry Services,NHS SUPPLY CHAIN,1019236321,1.45,290 8858 54,
Department of Health,CT Revenue Funds,07-Mar-19,Disposable Theatre Drapes & Wipes,Shrewsbury and Atcham North Interdisciplinary Teams,NHS SUPPLY CHAIN,1019236321,4.02,290 8858 54,
Department of Health,CT Revenue Funds,07-Mar-19,Disposable Theatre Drapes & Wipes,Shrewsbury and Atcham North Interdisciplinary Teams,NHS SUPPLY CHAIN,1019236321,0.8,290 8858 54,
Department of Health,CT Revenue Funds,07-Mar-19,Disposable Theatre Drapes & Wipes,Shrewsbury and Atcham North Interdisciplinary Teams,NHS SUPPLY CHAIN,1019236321,-0.02,290 8858 54,
Department of Health,CT Revenue Funds,07-Mar-19,Disposable Theatre Drapes & Wipes,Bridgnorth Hospital Theatre,NHS SUPPLY CHAIN,1019236321,23.66,290 8858 54,
Department of Health,CT Revenue Funds,07-Mar-19,Disposable Theatre Drapes & Wipes,Bridgnorth Hospital Theatre,NHS SUPPLY CHAIN,1019236321,4.73,290 8858 54,
Department of Health,CT Revenue Funds,07-Mar-19,Disposable Theatre Drapes & Wipes,North East Shropshire Interdisciplinary Teams,NHS SUPPLY CHAIN,1019236321,1.61,290 8858 54,
Department of Health,CT Revenue Funds,07-Mar-19,Disposable Theatre Drapes & Wipes,North East Shropshire Interdisciplinary Teams,NHS SUPPLY CHAIN,1019236321,3.55,290 8858 54,
Department of Health,CT Revenue Funds,07-Mar-19,Disposable Theatre Drapes & Wipes,North East Shropshire Interdisciplinary Teams,NHS SUPPLY CHAIN,1019236321,0.32,290 8858 54,
Department of Health,CT Revenue Funds,07-Mar-19,Disposable Theatre Drapes & Wipes,North East Shropshire Interdisciplinary Teams,NHS SUPPLY CHAIN,1019236321,0.71,290 8858 54,
Department of Health,CT Revenue Funds,07-Mar-19,Disposable Theatre Drapes & Wipes,Whitchurch Hospital Inpatient Ward,NHS SUPPLY CHAIN,1019236321,14.8,290 8858 54,
Department of Health,CT Revenue Funds,07-Mar-19,Disposable Theatre Drapes & Wipes,Whitchurch Hospital Inpatient Ward,NHS SUPPLY CHAIN,1019236321,20.72,290 8858 54,
Department of Health,CT Revenue Funds,07-Mar-19,Disposable Theatre Drapes & Wipes,Whitchurch Hospital Inpatient Ward,NHS SUPPLY CHAIN,1019236321,12.24,290 8858 54,
Department of Health,CT Revenue Funds,07-Mar-19,Disposable Theatre Drapes & Wipes,Whitchurch Hospital Inpatient Ward,NHS SUPPLY CHAIN,1019236321,18.36,290 8858 54,
Department of Health,CT Revenue Funds,07-Mar-19,Disposable Theatre Drapes & Wipes,Whitchurch Hospital Inpatient Ward,NHS SUPPLY CHAIN,1019236321,0.37,290 8858 54,
Department of Health,CT Revenue Funds,07-Mar-19,Disposable Theatre Drapes & Wipes,Whitchurch Hospital Inpatient Ward,NHS SUPPLY CHAIN,1019236321,0.05,290 8858 54,
Department of Health,CT Revenue Funds,07-Mar-19,Disposable Theatre Drapes & Wipes,Whitchurch Hospital Inpatient Ward,NHS SUPPLY CHAIN,1019236321,0.36,290 8858 54,
Department of Health,CT Revenue Funds,07-Mar-19,Disposable Theatre Drapes & Wipes,Whitchurch Hospital Inpatient Ward,NHS SUPPLY CHAIN,1019236321,0.04,290 8858 54,
Department of Health,CT Revenue Funds,07-Mar-19,Disposable Theatre Drapes & Wipes,Whitchurch Hospital Inpatient Ward,NHS SUPPLY CHAIN,1019236321,0.07,290 8858 54,
Department of Health,CT Revenue Funds,07-Mar-19,Disposable Theatre Drapes & Wipes,Whitchurch Hospital Inpatient Ward,NHS SUPPLY CHAIN,1019236321,0.01,290 8858 54,
Department of Health,CT Revenue Funds,07-Mar-19,Disposable Theatre Drapes & Wipes,Whitchurch Hospital Inpatient Ward,NHS SUPPLY CHAIN,1019236321,0.07,290 8858 54,
Department of Health,CT Revenue Funds,07-Mar-19,Disposable Theatre Drapes & Wipes,Whitchurch Hospital Inpatient Ward,NHS SUPPLY CHAIN,1019236321,0.01,290 8858 54,
Department of Health,CT Revenue Funds,07-Mar-19,Disposable Theatre Drapes & Wipes,Whitchurch Hospital Inpatient Ward,NHS SUPPLY CHAIN,1019236321,2.96,290 8858 54,
Department of Health,CT Revenue Funds,07-Mar-19,Disposable Theatre Drapes & Wipes,Whitchurch Hospital Inpatient Ward,NHS SUPPLY CHAIN,1019236321,4.14,290 8858 54,
Department of Health,CT Revenue Funds,07-Mar-19,Disposable Theatre Drapes & Wipes,Whitchurch Hospital Inpatient Ward,NHS SUPPLY CHAIN,1019236321,2.45,290 8858 54,
Department of Health,CT Revenue Funds,07-Mar-19,Disposable Theatre Drapes & Wipes,Whitchurch Hospital Inpatient Ward,NHS SUPPLY CHAIN,1019236321,3.67,290 8858 54,
Department of Health,CT Revenue Funds,07-Mar-19,Disposable Theatre Drapes & Wipes,Bishops Castle Hospital Inpatient Ward,NHS SUPPLY CHAIN,1019236321,18.77,290 8858 54,
Department of Health,CT Revenue Funds,07-Mar-19,Disposable Theatre Drapes & Wipes,Bishops Castle Hospital Inpatient Ward,NHS SUPPLY CHAIN,1019236321,18.77,290 8858 54,
Department of Health,CT Revenue Funds,07-Mar-19,Disposable Theatre Drapes & Wipes,Bishops Castle Hospital Inpatient Ward,NHS SUPPLY CHAIN,1019236321,11.4,290 8858 54,
Department of Health,CT Revenue Funds,07-Mar-19,Disposable Theatre Drapes & Wipes,Bishops Castle Hospital Inpatient Ward,NHS SUPPLY CHAIN,1019236321,11.4,290 8858 54,
Department of Health,CT Revenue Funds,07-Mar-19,Disposable Theatre Drapes & Wipes,Bishops Castle Hospital Inpatient Ward,NHS SUPPLY CHAIN,1019236321,3.75,290 8858 54,
Department of Health,CT Revenue Funds,07-Mar-19,Disposable Theatre Drapes & Wipes,Bishops Castle Hospital Inpatient Ward,NHS SUPPLY CHAIN,1019236321,3.75,290 8858 54,
Department of Health,CT Revenue Funds,07-Mar-19,Disposable Theatre Drapes & Wipes,Bishops Castle Hospital Inpatient Ward,NHS SUPPLY CHAIN,1019236321,2.28,290 8858 54,
Department of Health,CT Revenue Funds,07-Mar-19,Disposable Theatre Drapes & Wipes,Bishops Castle Hospital Inpatient Ward,NHS SUPPLY CHAIN,1019236321,2.28,290 8858 54,
Department of Health,CT Revenue Funds,07-Mar-19,Disposable Theatre Drapes & Wipes,Bishops Castle Hospital Inpatient Ward,NHS SUPPLY CHAIN,1019236321,-0.02,290 8858 54,
